Workbook

Sheet Instructions
A104: 6/25/19 update

Sheet Global Inputs
A1: RAD Inventory Assessment Tool for PHAs - Third Edition (June 2019)
A3: Global Inputs (Affecting All Properties)
A5: Select your PHA ------------> | D5: BLANK | F5: ALERT! This routine may take a while to run for larger PHAs. | K5: =ROW(' '!$A$6)-1 -> 5 | L5: is the row offset into the HUD data table
A6: PHA Name | D6: =IF(ISERROR(VLOOKUP(D5,'PHA List'!$A$2:$B$2920,2,FALSE)),"FATAL ERROR: PHA NUMBER NOT APPLICABLE",VLOOKUP(D5,'PHA List'!$A$2:$B$2920,2,FALSE)) -> Blank PHA - Start tool entry for new property | K6: =IF(ISNA(MATCH('Global Inputs'!$D$5,' '!$A$6:$A$6798,0)),9999,MATCH('Global Inputs'!$D$5,' '!$A$6:$A$6798,0)) -> 9999 | L6: is the first property for this PHA
A7: Number of Properties | B7: ? | D7: ='DNU Data'!B3 -> 3 | F7: (Make Sure to "Enable Macros") | K7: =IF(K6=9999,1,0) -> 1
A8: Click here to populate PHA data or to reset the defaults on the "Inventory Overview" tab | D8: ----------->
A9: Enter the following inputs, which will be applied to all projects in the PHA's inventory. Each global input can be modified for individual projects on the Inventory Overview sheet
A10: Type of Rental Assistance Contract
A11: Project Based Rental Assistance (PBRA) or Project Based Vouchers (PBVs)? | B11: ? | D11: PBRA | L11: PBRA | M11: PBV
A13: Income and Expenses Assumptions
A14: Vacancy Loss (% of Gross Potential Rents) | B14: ? | D14: 0.03
A15: Bad Debt Loss (% of Gross Potential Rents) | B15: ? | D15: 0.02
A16: Other Income (PUPA) | B16: ? | D16: 120
A17: Operating Expenses | B17: ? | D17: 95% of "Formula Expenses" | F17: =IF(D17=L17,"►►►","") ->  | H17: per unit per year | K17: No global input | L17: Use my market estimate | M17: 95% of "Formula Expenses" | N17: 85% of "Formula Expenses"
A18: Replacement Reserve (PUPA) | B18: ? | D18: 500
A20: Estimated Rehab/Construction Costs Per Unit (Portfolio-Wide) | B20: ? | D20: 0
A22: Financing Approach (Portfolio Wide) | B22: ? | D22: No new financing
A24: First Mortgage Financing Terms
A25: Interest Rate | B25: ? | D25: 0.0475 | F25: annual rate
A26: Amortization Term | B26: ? | D26: 35 | F26: years
A27: MIP or Other Credit Enhancement | B27: ? | D27: 0.0025 | F27: per year
A28: Debt Service Coverage Ratio | B28: ? | D28: 1.2
A30: Tax Credit Pricing Variables (Only required if using LIHTC as a funding source)
A31: LIHTC Pricing Per Credit | B31: ? | D31: 0.92
A32: Current Rate for LIHTC 4% bonds | B32: ? | D32: 0.0325
A33: Current Rate for LIHTC 9% bonds | B33: ? | D33: 0.09
A37: 6/7/19 update

Sheet Inventory Overview
D1: BLANK000001 | G1: BLANK000002 | J1: BLANK000003
A2: ="Inventory Overview for "&'Global Inputs'!D6 -> Inventory Overview for Blank PHA - Start tool entry for new property | E2: 0
D3: 0 | E3: 0 | G3: 0 | J3: 0 | M3: 1
A4: PIC Development Number | D4: =+D$1 -> BLANK000001 | G4: =+G$1 -> BLANK000002 | J4: =+J$1 -> BLANK000003
A5: Project Name | D5: =+'DNU Data'!D11 -> Blank Property 1 | G5: =+'DNU Data'!G11 -> Blank Property 2 | J5: =+'DNU Data'!J11 -> Blank Property 3
D6: Section 1: Income and Expenses
A7: Total Units | B7: ? | D7: =D51+D65 -> 0 | G7: =G51+G65 -> 0 | J7: =J51+J65 -> 0
A8: Weighted Avg # Bedrooms | D8: =IFERROR((SUMPRODUCT(D45:D50,$A$263:$A$268)+SUMPRODUCT(D59:D64,$A$263:$A$268))/D7,0) -> 0 | E8: =D8 -> 0 | G8: =IFERROR((SUMPRODUCT(G45:G50,$A$263:$A$268)+SUMPRODUCT(G59:G64,$A$263:$A$268))/G7,0) -> 0 | H8: =G8 -> 0 | J8: =IFERROR((SUMPRODUCT(J45:J50,$A$263:$A$268)+SUMPRODUCT(J59:J64,$A$263:$A$268))/J7,0) -> 0 | K8: =J8 -> 0
A10: RAD Contract Rent (PUPM) | B10: ? | D10: =E51 -> 0 | G10: =H51 -> 0 | J10: =K51 -> 0
A11: Enter estimated per unit rehab cost | B11: ? | D11: ='Global Inputs'!$D$20 -> 0 | G11: ='Global Inputs'!$D$20 -> 0 | J11: ='Global Inputs'!$D$20 -> 0
A12: Select a financing approach | B12: ? | D12: ='Global Inputs'!$D$22 -> No new financing | G12: ='Global Inputs'!$D$22 -> No new financing | J12: ='Global Inputs'!$D$22 -> No new financing | T12: No new financing | U12: Debt only | V12: 4% LIHTC w/Debt | W12: 9% LIHTC w/Debt
D13: =IF(AND(OR(D12=$U12,D12=$V12,D12=$W12),D11=0),"Enter rehab cost in Row 11 or review rehab value in Sec 3","") ->  | G13: =IF(AND(OR(G12=$U12,G12=$V12,G12=$W12),G11=0),"Enter rehab cost in Row 11 or review rehab value in Sec 3","") ->  | J13: =IF(AND(OR(J12=$U12,J12=$V12,J12=$W12),J11=0),"Enter rehab cost in Row 11 or review rehab value in Sec 3","") -> 
A14: Income and Expenses | D14: Project | E14: Per Unit/Year | G14: Project | H14: Per Unit/Year | J14: Project | K14: Per Unit/Year
A15: Gross Potential Rents | B15: ? | D15: =+E15*D$7 ->  | E15: =+(D10*12*D51+E65*12*D65)/D7 ->  | G15: =+H15*G$7 ->  | H15: =+(G10*12*G51+H65*12*G65)/G7 ->  | J15: =+K15*J$7 ->  | K15: =+(J10*12*J51+K65*12*J65)/J7 -> 
A16: Vacancy Loss | B16: ? | D16: =ROUND(D$7*E16,0) ->  | E16: =-E15*'Global Inputs'!$D$14 ->  | G16: =ROUND(G$7*H16,0) ->  | H16: =-H15*'Global Inputs'!$D$14 ->  | J16: =ROUND(J$7*K16,0) ->  | K16: =-K15*'Global Inputs'!$D$14 -> 
A17: Bad Debt Loss | B17: ? | D17: =ROUND(D$7*E17,0) ->  | E17: =-E15*'Global Inputs'!$D$15 ->  | G17: =ROUND(G$7*H17,0) ->  | H17: =-H15*'Global Inputs'!$D$15 ->  | J17: =ROUND(J$7*K17,0) ->  | K17: =-K15*'Global Inputs'!$D$15 -> 
A18: Other Income | B18: ? | D18: =+E18*D$7 -> 0 | E18: ='Global Inputs'!$D$16 -> 120 | G18: =+H18*G$7 -> 0 | H18: ='Global Inputs'!$D$16 -> 120 | J18: =+K18*J$7 -> 0 | K18: ='Global Inputs'!$D$16 -> 120
A20: Effective Gross Income | B20: ? | D20: =SUM(D15:D19) ->  | E20: =IF(D$7=0,0,D20/D$7) -> 0 | G20: =SUM(G15:G19) ->  | H20: =IF(G$7=0,0,G20/G$7) -> 0 | J20: =SUM(J15:J19) ->  | K20: =IF(J$7=0,0,J20/J$7) -> 0
A22: Operating Expenses | B22: ? | D22: =+E22*D$7 -> 0 | E22: =D225 -> 0 | G22: =+H22*G$7 -> 0 | H22: =G225 -> 0 | J22: =+K22*J$7 -> 0 | K22: =J225 -> 0
A23: Replacement Reserve | B23: ? | D23: =+E23*D$7 -> 0 | E23: ='Global Inputs'!$D$18 -> 500 | G23: =+H23*G$7 -> 0 | H23: ='Global Inputs'!$D$18 -> 500 | J23: =+K23*J$7 -> 0 | K23: ='Global Inputs'!$D$18 -> 500
A25: Net Operating Income (NOI) | B25: ? | D25: =D20-SUM(D21:D24) ->  | E25: =IF(D$7=0,0,D25/D$7) -> 0 | G25: =G20-SUM(G21:G24) ->  | H25: =IF(G$7=0,0,G25/G$7) -> 0 | J25: =J20-SUM(J21:J24) ->  | K25: =IF(J$7=0,0,J25/J$7) -> 0
A27: Debt Service | B27: ? | D27: =IF(OR(D175=0,E22=0,D$12=$T12),0,MAX(0,ROUND(D25/D175,0))) -> 0 | E27: =IF(D$7=0,0,D27/D$7) -> 0 | G27: =IF(OR(G175=0,H22=0,G$12=$T12),0,MAX(0,ROUND(G25/G175,0))) -> 0 | H27: =IF(G$7=0,0,G27/G$7) -> 0 | J27: =IF(OR(J175=0,K22=0,J$12=$T12),0,MAX(0,ROUND(J25/J175,0))) -> 0 | K27: =IF(J$7=0,0,J27/J$7) -> 0
A29: Cash Flow | B29: ? | D29: =+D25-D27 ->  | E29: =IF(D$7=0,0,D29/D$7) -> 0 | G29: =+G25-G27 ->  | H29: =IF(G$7=0,0,G29/G$7) -> 0 | J29: =+J25-J27 ->  | K29: =IF(J$7=0,0,J29/J$7) -> 0
D32: Total | E32: Per Unit | G32: Total | H32: Per Unit | J32: Total | K32: Per Unit
A33: Maximum Supportable First Mortgage | B33: ? | D33: =IF(D177=0,0,ROUNDDOWN(MAX(0,ROUND(D25/D175,0))/D177,-2)) ->  | E33: =IF(D$7=0,0,D33/D$7) -> 0 | G33: =IF(G177=0,0,ROUNDDOWN(MAX(0,ROUND(G25/G175,0))/G177,-2)) ->  | H33: =IF(G$7=0,0,G33/G$7) -> 0 | J33: =IF(J177=0,0,ROUNDDOWN(MAX(0,ROUND(J25/J175,0))/J177,-2)) ->  | K33: =IF(J$7=0,0,J33/J$7) -> 0
D34: =IF(E22=0,"Operating expenses needed",IF(AND(OR(D12=$V12,D12=$W12),D33>D191),"Check DSCR loan requirements in future years (lines 181)","")) -> Operating expenses needed | G34: =IF(H22=0,"Operating expenses needed",IF(AND(OR(G12=$V12,G12=$W12),G33>G191),"Check DSCR loan requirements in future years (lines 181)","")) -> Operating expenses needed | J34: =IF(K22=0,"Operating expenses needed",IF(AND(OR(J12=$V12,J12=$W12),J33>J191),"Check DSCR loan requirements in future years (lines 181)","")) -> Operating expenses needed
A35: 20 Year Replacement Reserve | B35: ? | D35: =D23*20 -> 0 | E35: =E23*20 -> 10000 | G35: =G23*20 -> 0 | H35: =H23*20 -> 10000 | J35: =J23*20 -> 0 | K35: =K23*20 -> 10000
D40: Section 2: Property Units and Rents
D41: This Property | E41: Global Input | G41: This Property | H41: Global Input | J41: This Property | K41: Global Input
A42: Type of Rental Assistance Contract | B42: ? | D42: =E42 -> PBRA | E42: =+'Global Inputs'!$D$11 -> PBRA | G42: =H42 -> PBRA | H42: =+'Global Inputs'!$D$11 -> PBRA | J42: =K42 -> PBRA | K42: =+'Global Inputs'!$D$11 -> PBRA | P42: PBRA | Q42: PBV
A44: RAD Unit and Rents | B44: ? | D44: Units | E44: Rents | G44: Units | H44: Rents | J44: Units | K44: Rents
A45: 0 Bedroom | D45: =D229 -> 0 | E45: =IF(D45=0,0,E237) -> 0 | G45: =G229 -> 0 | H45: =IF(G45=0,0,H237) -> 0 | J45: =J229 -> 0 | K45: =IF(J45=0,0,K237) -> 0
A46: 1 Bedroom | D46: 0 | E46: 0 | G46: =G230 -> 0 | H46: 0 | J46: =J230 -> 0 | K46: 0
A47: 2 Bedroom | D47: 0 | E47: 0 | G47: =G231 -> 0 | H47: 0 | J47: =J231 -> 0 | K47: 0
A48: 3 Bedroom | D48: 0 | E48: 0 | G48: =G232 -> 0 | H48: 0 | J48: =J232 -> 0 | K48: 0
A49: 4 Bedroom | D49: 0 | E49: 0 | G49: 0 | H49: 0 | J49: 0 | K49: 0
A50: 5 Bedroom | D50: 0 | E50: 0 | G50: =G234 -> 0 | H50: 0 | J50: =J234 -> 0 | K50: 0
A51: Total/Weighted Average | D51: =SUM(D45:D50) -> 0 | E51: 0 | G51: =SUM(G45:G50) -> 0 | H51: 0 | J51: =SUM(J45:J50) -> 0 | K51: 0
D53: PIC Data | E53: Override | G53: PIC Data | H53: Override | J53: PIC Data | K53: Override
A54: Average Current Utility Allowance | B54: ? | D54: ='DNU Data'!D$41 -> 0 | E54: =D54 -> 0 | G54: ='DNU Data'!G$41 -> 0 | H54: =G54 -> 0 | J54: ='DNU Data'!J$41 -> 0 | K54: =J54 -> 0
A55: Average RAD Gross Rent | B55: ? | E55: =E51+E54 -> 0 | H55: =H51+H54 -> 0 | K55: =K51+K54 -> 0
A56: RAD Rents as % of FMR | B56: ? | E56: =(E51+E54)/E75 ->  | H56: =(H51+H54)/H75 ->  | K56: =(K51+K54)/K75 -> 
A58: Other Units and Rents | B58: ? | D58: Units | E58: Rents | G58: Units | H58: Rents | J58: Units | K58: Rents
A59: 0 Bedroom | D59: 0 | E59: 0 | G59: 0 | H59: 0 | J59: 0 | K59: 0
A60: 1 Bedroom | D60: 0 | E60: 0 | G60: 0 | H60: 0 | J60: 0 | K60: 0
A61: 2 Bedroom | D61: 0 | E61: 0 | G61: 0 | H61: 0 | J61: 0 | K61: 0
A62: 3 Bedroom | D62: 0 | E62: 0 | G62: 0 | H62: 0 | J62: 0 | K62: 0
A63: 4 Bedroom | D63: 0 | E63: 0 | G63: 0 | H63: 0 | J63: 0 | K63: 0
A64: 5 Bedroom | D64: 0 | E64: 0 | G64: 0 | H64: 0 | J64: 0 | K64: 0
A65: Total/Weighted Average | D65: =SUM(D59:D64) -> 0 | E65: =IFERROR(SUMPRODUCT(D59:D64,E59:E64)/D65,0) -> 0 | G65: =SUM(G59:G64) -> 0 | H65: =IFERROR(SUMPRODUCT(G59:G64,H59:H64)/G65,0) -> 0 | J65: =SUM(J59:J64) -> 0 | K65: =IFERROR(SUMPRODUCT(J59:J64,K59:K64)/J65,0) -> 0
A67: RENT CAPS AND CALCULATION
A68: 2019 Fair Market Rents (FMRs) | B68: ? | D68: HUD Data | E68: Corrected | G68: HUD Data | H68: Corrected | J68: HUD Data | K68: Corrected
A69: 0 Bedroom | D69: ='DNU Data'!D28 -> 0 | E69: =D69 -> 0 | G69: ='DNU Data'!G28 -> 0 | H69: =G69 -> 0 | J69: ='DNU Data'!J28 -> 0 | K69: =J69 -> 0
A70: 1 Bedroom | D70: ='DNU Data'!D29 -> 0 | E70: =D70 -> 0 | G70: ='DNU Data'!G29 -> 0 | H70: 0 | J70: ='DNU Data'!J29 -> 0 | K70: 0
A71: 2 Bedroom | D71: ='DNU Data'!D30 -> 0 | E71: 0 | G71: ='DNU Data'!G30 -> 0 | H71: 0 | J71: ='DNU Data'!J30 -> 0 | K71: 0
A72: 3 Bedroom | D72: ='DNU Data'!D31 -> 0 | E72: 0 | G72: ='DNU Data'!G31 -> 0 | H72: 0 | J72: ='DNU Data'!J31 -> 0 | K72: 0
A73: 4 Bedroom | D73: ='DNU Data'!D32 -> 0 | E73: 0 | G73: ='DNU Data'!G32 -> 0 | H73: 0 | J73: ='DNU Data'!J32 -> 0 | K73: 0
A74: 5 Bedroom | D74: ='DNU Data'!D33 -> 0 | E74: 0 | G74: ='DNU Data'!G33 -> 0 | H74: 0 | J74: ='DNU Data'!J33 -> 0 | K74: 0
A75: Weighted Average | D75: =IFERROR(SUMPRODUCT(D45:D50,E69:E74)/D51,0) -> 0 | E75: =IFERROR(SUMPRODUCT(E69:E74,D45:D50)/D51,0) -> 0 | G75: =IFERROR(SUMPRODUCT(G45:G50,H69:H74)/G51,0) -> 0 | H75: =IFERROR(SUMPRODUCT(H69:H74,G45:G50)/G51,0) -> 0 | J75: =IFERROR(SUMPRODUCT(J45:J50,K69:K74)/J51,0) -> 0 | K75: =IFERROR(SUMPRODUCT(K69:K74,J45:J50)/J51,0) -> 0
A77: Reasonable Rent/Comparable Market Rent | B77: ?
A78: 0 Bedroom | D78: - | G78: - | J78: -
A79: 1 Bedroom | B79: ? | D79: - | E79: =D79 -> - | G79: - | H79: =G79 -> - | J79: - | K79: =J79 -> -
A80: 2 Bedroom | D80: - | E80: - | G80: - | H80: - | J80: - | K80: -
A81: 3 Bedroom | D81: - | E81: - | G81: - | H81: - | J81: - | K81: -
A82: 4 Bedroom | D82: - | E82: - | G82: - | H82: - | J82: - | K82: -
A83: 5 Bedroom | D83: - | E83: - | G83: - | H83: - | J83: - | K83: -
A84: Weighted Average | D84: =IFERROR(SUMPRODUCT(D78:D83,D45:D50)/D51,0) -> 0 | G84: =IFERROR(SUMPRODUCT(G78:G83,G45:G50)/G51,0) -> 0 | J84: =IFERROR(SUMPRODUCT(J78:J83,J45:J50)/J51,0) -> 0
A86: RAD Rent Caps | D86: PUPM | G86: PUPM | J86: PUPM
A87: (A) Current Funding | D87: =D243 ->  | G87: =G243 ->  | J87: =J243 -> 
A88: (B) Reasonable Rent | D88: =IF(D84=0,"-",D84) -> - | G88: =IF(G84=0,"-",G84) -> - | J88: =IF(J84=0,"-",J84) -> -
A89: (C) 110% of FMRs - UAs (PBVs) | D89: =110%*E$75-E54 -> 0 | G89: =110%*H$75-H54 -> 0 | J89: =110%*K$75-K54 -> 0
A90: RAD Contract Rent if PBVs | B90: ? | D90: =IF(D88=0,MIN(D87,D89),MIN(D87,D88,D89)) ->  | G90: =IF(G88=0,MIN(G87,G89),MIN(G87,G88,G89)) ->  | J90: =IF(J88=0,MIN(J87,J89),MIN(J87,J88,J89)) -> 
A92: (A) Current Funding | D92: =D243 ->  | G92: =G243 ->  | J92: =J243 -> 
A93: (B) 120% of FMRs - UAs (PBRA) | D93: =120%*E$75-E54 -> 0 | G93: =120%*H$75-H54 -> 0 | J93: =120%*K$75-K54 -> 0
A94: (C) Comparable Market Rent | D94: =IF(D84=0,"-",D84) -> - | G94: =IF(G84=0,"-",G84) -> - | J94: =IF(J84=0,"-",J84) -> -
A95: (D) 150% of FMRs - UAs (PBRA) | D95: =150%*E$75-E54 -> 0 | G95: =150%*H$75-H54 -> 0 | J95: =150%*K$75-K54 -> 0
A96: RAD Contract Rent if PBRA | B96: ? | D96: =MAX(MIN(D92,D93),IF(D88=0,MIN(D92,D94,D95))) ->  | G96: =MAX(MIN(G92,G93),IF(G88=0,MIN(G92,G94,G95))) ->  | J96: =MAX(MIN(J92,J93),IF(J88=0,MIN(J92,J94,J95))) -> 
A98: Indicated by your PBRA/PBV selection | D98: =IF(D42="PBV",D90,D96) ->  | G98: =IF(G42="PBV",G90,G96) ->  | J98: =IF(J42="PBV",J90,J96) -> 
D100: Section 3: Sources and Uses
A102: Build Out Sources & Uses Budget | B102: ?
A103: USES | B103: ?
A104: Acquisition | D104: =E139 -> 0 | G104: =H139 -> 0 | J104: =K139 -> 0
A105: Payoff Outstanding Debt | D105: =E140 -> 0 | G105: =H140 -> 0 | J105: =K140 -> 0
A106: Hard Costs | D106: =SUM(E142:E144) -> 0 | G106: =SUM(H142:H144) -> 0 | J106: =SUM(K142:K144) -> 0
A107: Relocation Costs | D107: =E146 -> 0 | G107: =H146 -> 0 | J107: =K146 -> 0
A108: Soft Costs | D108: =SUM(E149:E162) -> 55000 | G108: =SUM(H149:H162) -> 55000 | J108: =SUM(K149:K162) -> 55000
A109: Reserves | D109: =SUM(E165:E166) -> 0 | G109: =SUM(H165:H166) -> 0 | J109: =SUM(K165:K166) -> 0
A110: Developer Fee | D110: =E168 -> 0 | G110: =H168 -> 0 | J110: =K168 -> 0
A111: Total | D111: =SUM(D104:D110) -> 55000 | G111: =SUM(G104:G110) -> 55000 | J111: =SUM(J104:J110) -> 55000
A113: SOURCES
A114: Hard Debt | D114: Calculated | E114: Corrected | G114: Calculated | H114: Corrected | J114: Calculated | K114: Corrected
A115: New First Mortgage Loan | B115: ? | D115: =IF(D$12=$T12,0,D33) -> 0 | E115: =D115 -> 0 | G115: =IF(G$12=$T12,0,G33) -> 0 | H115: =G115 -> 0 | J115: =IF(J$12=$T12,0,J33) -> 0 | K115: =J115 -> 0
A116: Soft Debt/Grants
A117: Public housing funds | B117: ? | D117: 0 | E117: =D117 -> 0 | G117: 0 | H117: =G117 -> 0 | J117: 0 | K117: =J117 -> 0
A118: HOME/CDBG/National HTF | B118: ? | D118: 0 | E118: 0 | G118: 0 | H118: 0 | J118: 0 | K118: 0
A119: FHLB Affordable Housing Program | B119: ? | D119: 0 | E119: 0 | G119: 0 | H119: 0 | J119: 0 | K119: 0
A120: Green Energy Programs | B120: ? | D120: 0 | E120: 0 | G120: 0 | H120: 0 | J120: 0 | K120: 0
A121: Local housing trust funds | D121: 0 | E121: 0 | G121: 0 | H121: 0 | J121: 0 | K121: 0
A122: Seller Take-Back Financing | B122: ? | D122: =D104 -> 0 | E122: 0 | G122: =G104 -> 0 | H122: 0 | J122: =J104 -> 0 | K122: 0
A123: Deferred Developer Fee | B123: ? | D123: 0 | E123: 0 | G123: 0 | H123: 0 | J123: 0 | K123: 0
A124: Interim Income | B124: ? | D124: 0 | E124: 0 | G124: 0 | H124: 0 | J124: 0 | K124: 0
A125: Other | D125: 0 | E125: 0 | G125: 0 | H125: 0 | J125: 0 | K125: 0
A126: Equity
A127: Value of LIHTC | B127: ? | D127: =IF(OR(D12=$V12,D12=$W12),D209,0) -> 0 | E127: =D127 -> 0 | G127: =IF(OR(G12=$V12,G12=$W12),G209,0) -> 0 | H127: =G127 -> 0 | J127: =IF(OR(J12=$V12,J12=$W12),J209,0) -> 0 | K127: =J127 -> 0
A128: Historic Rehabilitation Tax Credits | B128: ? | D128: 0 | E128: =D128 -> 0 | G128: 0 | H128: =G128 -> 0 | J128: 0 | K128: =J128 -> 0
A129: State Tax Credits | B129: ? | D129: 0 | E129: =D129 -> 0 | G129: 0 | H129: =G129 -> 0 | J129: 0 | K129: =J129 -> 0
A130: Other | D130: 0 | E130: =D130 -> 0 | G130: 0 | H130: =G130 -> 0 | J130: 0 | K130: =J130 -> 0
A131: Total | D131: =SUM(D115:D130) -> 0 | E131: =SUM(E115:E130) -> 0 | G131: =SUM(G115:G130) -> 0 | H131: =SUM(H115:H130) -> 0 | J131: =SUM(J115:J130) -> 0 | K131: =SUM(K115:K130) -> 0
A133: SURPLUS/(GAP) | B133: ? | D133: =D131-D111 -> -55000 | E133: =E131-D111 -> -55000 | G133: =G131-G111 -> -55000 | H133: =H131-G111 -> -55000 | J133: =J131-J111 -> -55000 | K133: =K131-J111 -> -55000
D135: Section 4: Development Budget (Detail)
N136: Prepopulated assumption
A137: Construction Budget | D137: Calculation | E137: User Override | G137: Calculation | H137: User Override | J137: Calculation | K137: User Override | N137: No new financing | O137: Debt only | P137: 4% LIHTC w/Debt | Q137: 9% LIHTC w/Debt | R137: Description | S137: Eligible for non-acqusition Basis
A138: Acquisition Costs
A139: Acquisition | B139: ? | D139: =IF(D$12=$T$12,0,IF(D$12=$U$12,0,IF(D$12=$V$12,D197,IF(D$12=$W$12,D197)))) -> 0 | E139: =D139 -> 0 | G139: =IF(G$12=$T$12,0,IF(G$12=$U$12,0,IF(G$12=$V$12,G197,IF(G$12=$W$12,G197)))) -> 0 | H139: =G139 -> 0 | J139: =IF(J$12=$T$12,0,IF(J$12=$U$12,0,IF(J$12=$V$12,J197,IF(J$12=$W$12,J197)))) -> 0 | K139: =J139 -> 0 | N139: 0 | O139: 0 | P139: Cap Rate | Q139: Cap Rate | S139: No
A140: Payoff Outstanding Debt | B140: ? | D140: =IF(D$12=$T$12,$N140,IF(D$12=$U$12,$O140,IF(D$12=$V$12,$P140,IF(D$12=$W$12,$Q140,0)))) -> 0 | E140: =D140 -> 0 | G140: =IF(G$12=$T$12,$N140,IF(G$12=$U$12,$O140,IF(G$12=$V$12,$P140,IF(G$12=$W$12,$Q140,0)))) -> 0 | H140: =G140 -> 0 | J140: =IF(J$12=$T$12,$N140,IF(J$12=$U$12,$O140,IF(J$12=$V$12,$P140,IF(J$12=$W$12,$Q140,0)))) -> 0 | K140: =J140 -> 0 | N140: 0 | O140: 0 | P140: 0 | Q140: 0 | R140: starting assumption = 0 | S140: No
A141: Construction Costs
A142: Construction Costs (incl GC fees) | B142: ? | D142: =D11*D7 -> 0 | E142: =D142 -> 0 | G142: =G11*G7 -> 0 | H142: =G142 -> 0 | J142: =J11*J7 -> 0 | K142: =J142 -> 0 | N142: 5000 | O142: 18000 | P142: 40000 | Q142: 75000 | R142: per unit | S142: Yes
A143: Construction Contingency | B143: ? | D143: =IF(D$12=$T$12,$N143,IF(D$12=$U$12,$O143,IF(D$12=$V$12,$P143,IF(D$12=$W$12,$Q143,0))))*E142 -> 0 | E143: =D143 -> 0 | G143: =IF(G$12=$T$12,$N143,IF(G$12=$U$12,$O143,IF(G$12=$V$12,$P143,IF(G$12=$W$12,$Q143,0))))*H142 -> 0 | H143: =G143 -> 0 | J143: =IF(J$12=$T$12,$N143,IF(J$12=$U$12,$O143,IF(J$12=$V$12,$P143,IF(J$12=$W$12,$Q143,0))))*K142 -> 0 | K143: =J143 -> 0 | N143: 0 | O143: 0.1 | P143: 0.1 | Q143: 0.1 | R143: of construction costs | S143: Yes
A144: Builder's Risk Insurance | B144: ? | D144: =IF(D$12=$T$12,$N144,IF(D$12=$U$12,$O144,IF(D$12=$V$12,$P144,IF(D$12=$W$12,$Q144,0)))) -> 0 | E144: =D144 -> 0 | G144: =IF(G$12=$T$12,$N144,IF(G$12=$U$12,$O144,IF(G$12=$V$12,$P144,IF(G$12=$W$12,$Q144,0)))) -> 0 | H144: =G144 -> 0 | J144: =IF(J$12=$T$12,$N144,IF(J$12=$U$12,$O144,IF(J$12=$V$12,$P144,IF(J$12=$W$12,$Q144,0)))) -> 0 | K144: =J144 -> 0 | N144: 0 | O144: 40000 | P144: 40000 | Q144: 40000 | R144: per project | S144: Yes
A146: Relocation Costs | B146: ? | D146: =IF(D$12=$T$12,$N146,IF(D$12=$U$12,$O146,IF(D$12=$V$12,$P146,IF(D$12=$W$12,$Q146,0))))*D7 -> 0 | E146: =D146 -> 0 | G146: =IF(G$12=$T$12,$N146,IF(G$12=$U$12,$O146,IF(G$12=$V$12,$P146,IF(G$12=$W$12,$Q146,0))))*G7 -> 0 | H146: =G146 -> 0 | J146: =IF(J$12=$T$12,$N146,IF(J$12=$U$12,$O146,IF(J$12=$V$12,$P146,IF(J$12=$W$12,$Q146,0))))*J7 -> 0 | K146: =J146 -> 0 | N146: 0 | O146: 750 | P146: 1500 | Q146: 1500 | R146: per unit | S146: Yes
A148: Soft Costs
A149: Architect & Engineering | B149: ? | D149: =IF(G$12=$T$12,$N149,IF(G$12=$U$12,$O149,IF(G$12=$V$12,$P149,IF(G$12=$W$12,$Q149,0))))*E142 -> 0 | E149: =D149 -> 0 | G149: =IF(J$12=$T$12,$N149,IF(J$12=$U$12,$O149,IF(J$12=$V$12,$P149,IF(J$12=$W$12,$Q149,0))))*H142 -> 0 | H149: =G149 -> 0 | J149: =IF(M$12=$T$12,$N149,IF(M$12=$U$12,$O149,IF(M$12=$V$12,$P149,IF(M$12=$W$12,$Q149,0))))*K142 -> 0 | K149: =J149 -> 0 | N149: 0 | O149: 0.03 | P149: 0.03 | Q149: 0.04 | R149: of construction costs | S149: Yes
A150: Real Estate Attorney | B150: ? | D150: =IF(D$12=$T$12,$N150,IF(D$12=$U$12,$O150,IF(D$12=$V$12,$P150,IF(D$12=$W$12,$Q150,0)))) -> 20000 | E150: 20000 | G150: =IF(G$12=$T$12,$N150,IF(G$12=$U$12,$O150,IF(G$12=$V$12,$P150,IF(G$12=$W$12,$Q150,0)))) -> 20000 | H150: 20000 | J150: =IF(J$12=$T$12,$N150,IF(J$12=$U$12,$O150,IF(J$12=$V$12,$P150,IF(J$12=$W$12,$Q150,0)))) -> 20000 | K150: 20000 | N150: 20000 | O150: 20000 | P150: 75000 | Q150: 75000 | R150: per project | S150: Yes
A151: Survey | B151: ? | D151: 5000 | E151: 5000 | G151: 5000 | H151: 5000 | J151: 5000 | K151: 5000 | N151: 5000 | O151: 5000 | P151: 7500 | Q151: 7500 | R151: per project | S151: Yes
A152: CNA, Appraisal, ESA, Market Study | B152: ? | D152: 10000 | E152: 10000 | G152: 10000 | H152: 10000 | J152: 10000 | K152: 10000 | N152: 10000 | O152: 25000 | P152: 35000 | Q152: 35000 | R152: per project | S152: Yes
A153: Environmental | B153: ? | D153: 10000 | E153: 10000 | G153: 10000 | H153: 10000 | J153: 10000 | K153: 10000 | N153: 10000 | O153: 10000 | P153: 10000 | Q153: 10000 | R153: per project | S153: Yes
A154: Accounting | B154: ? | D154: 0 | E154: 0 | G154: 0 | H154: 0 | J154: 0 | K154: 0 | N154: 0 | O154: 5000 | P154: 15000 | Q154: 15000 | R154: per project | S154: Yes
A155: Syndication Fees | B155: ? | D155: 0 | E155: 0 | G155: 0 | H155: 0 | J155: 0 | K155: 0 | N155: 0 | O155: 0 | P155: 50000 | Q155: 50000 | R155: per project | S155: Yes
A156: Soft Cost Contingency | B156: ? | D156: 0 | E156: 0 | G156: 0 | H156: 0 | J156: 0 | K156: 0 | N156: 0 | O156: 0 | P156: 75000 | Q156: 75000 | R156: per project | S156: Yes
A157: Construction Period Interest | B157: ? | D157: =IF(D$12=$T$12,$N157,IF(D$12=$U$12,$O157,IF(D$12=$V$12,$P157,IF(D$12=$W$12,$Q157,0))))*E142*0.5*D172 -> 0 | E157: =D157 -> 0 | G157: =IF(G$12=$T$12,$N157,IF(G$12=$U$12,$O157,IF(G$12=$V$12,$P157,IF(G$12=$W$12,$Q157,0))))*H142*0.5*G172 -> 0 | H157: =G157 -> 0 | J157: =IF(J$12=$T$12,$N157,IF(J$12=$U$12,$O157,IF(J$12=$V$12,$P157,IF(J$12=$W$12,$Q157,0))))*K142*0.5*J172 -> 0 | K157: =J157 -> 0 | N157: 0 | O157: 0 | P157: 0.5 | Q157: 0.5 | R157: X contruction costs X interest rate | S157: Partially
A158: Taxes During Construction | B158: ? | D158: =IF(D$12=$T$12,$N158,IF(D$12=$U$12,$O158,IF(D$12=$V$12,$P158,IF(D$12=$W$12,$Q158,0)))) -> 0 | E158: 0 | G158: =IF(G$12=$T$12,$N158,IF(G$12=$U$12,$O158,IF(G$12=$V$12,$P158,IF(G$12=$W$12,$Q158,0)))) -> 0 | H158: 0 | J158: =IF(J$12=$T$12,$N158,IF(J$12=$U$12,$O158,IF(J$12=$V$12,$P158,IF(J$12=$W$12,$Q158,0)))) -> 0 | K158: 0 | N158: 0 | O158: 0 | P158: 0 | Q158: 0 | R158: starting assumption = 0 | S158: Yes
A159: Equity Bridge Loan Fees | B159: ? | D159: =IF(D$12=$T$12,$N159,IF(D$12=$U$12,$O159,IF(D$12=$V$12,$P159,IF(D$12=$W$12,$Q159,0)))) -> 0 | E159: 0 | G159: =IF(G$12=$T$12,$N159,IF(G$12=$U$12,$O159,IF(G$12=$V$12,$P159,IF(G$12=$W$12,$Q159,0)))) -> 0 | H159: 0 | J159: =IF(J$12=$T$12,$N159,IF(J$12=$U$12,$O159,IF(J$12=$V$12,$P159,IF(J$12=$W$12,$Q159,0)))) -> 0 | K159: 0 | N159: 0 | O159: 0 | P159: 0 | Q159: 0 | R159: of TDC (excluding Dev Fee) | S159: Yes
A160: Equity Bridge Loan Legal | B160: ? | D160: =IF(D$12=$T$12,$N160,IF(D$12=$U$12,$O160,IF(D$12=$V$12,$P160,IF(D$12=$W$12,$Q160,0)))) -> 0 | E160: 0 | G160: =IF(G$12=$T$12,$N160,IF(G$12=$U$12,$O160,IF(G$12=$V$12,$P160,IF(G$12=$W$12,$Q160,0)))) -> 0 | H160: 0 | J160: =IF(J$12=$T$12,$N160,IF(J$12=$U$12,$O160,IF(J$12=$V$12,$P160,IF(J$12=$W$12,$Q160,0)))) -> 0 | K160: 0 | N160: 0 | O160: 0 | P160: 0 | Q160: 0 | R160: per project | S160: Yes
A161: Title and Recording | B161: ? | D161: =10000+E115/1000*IF(D$12=$T$12,$N161,IF(D$12=$U$12,$O161,IF(D$12=$V$12,$P161,IF(D$12=$W$12,$Q161,0)))) -> 10000 | E161: 10000 | G161: =10000+H115/1000*IF(G$12=$T$12,$N161,IF(G$12=$U$12,$O161,IF(G$12=$V$12,$P161,IF(G$12=$W$12,$Q161,0)))) -> 10000 | H161: 10000 | J161: =10000+K115/1000*IF(J$12=$T$12,$N161,IF(J$12=$U$12,$O161,IF(J$12=$V$12,$P161,IF(J$12=$W$12,$Q161,0)))) -> 10000 | K161: 10000 | N161: 3 | O161: 3 | P161: 3 | Q161: 3 | R161: per $1,000 loan | S161: Partially
A162: Permanent Loan Legal Costs | B162: ? | D162: =IF(D$12=$T$12,$N162,IF(D$12=$U$12,$O162,IF(D$12=$V$12,$P162,IF(D$12=$W$12,$Q162,0)))) -> 0 | E162: 0 | G162: =IF(G$12=$T$12,$N162,IF(G$12=$U$12,$O162,IF(G$12=$V$12,$P162,IF(G$12=$W$12,$Q162,0)))) -> 0 | H162: 0 | J162: =IF(J$12=$T$12,$N162,IF(J$12=$U$12,$O162,IF(J$12=$V$12,$P162,IF(J$12=$W$12,$Q162,0)))) -> 0 | K162: 0 | N162: 0 | O162: 50000 | P162: 50000 | Q162: 50000 | R162: per project | S162: No
A164: Reserves
A165: Initial Deposit to Replacement Reserve | B165: ? | D165: =IF(D$12=$T$12,$N165,IF(D$12=$U$12,$O165,IF(D$12=$V$12,$P165,IF(D$12=$W$12,$Q165,0))))*D7 -> 0 | E165: =D165 -> 0 | G165: =IF(G$12=$T$12,$N165,IF(G$12=$U$12,$O165,IF(G$12=$V$12,$P165,IF(G$12=$W$12,$Q165,0))))*G7 -> 0 | H165: =G165 -> 0 | J165: =IF(J$12=$T$12,$N165,IF(J$12=$U$12,$O165,IF(J$12=$V$12,$P165,IF(J$12=$W$12,$Q165,0))))*J7 -> 0 | K165: =J165 -> 0 | N165: 500 | O165: 500 | P165: 0 | Q165: 0 | R165: per unit | S165: No
A166: Operating Reserve | B166: ? | D166: =IF(D$12=$T$12,$N166,IF(D$12=$U$12,$O166,IF(D$12=$V$12,$P166,IF(D$12=$W$12,$Q166,0))))*(E22+E27) -> 0 | E166: =D166 -> 0 | G166: =IF(G$12=$T$12,$N166,IF(G$12=$U$12,$O166,IF(G$12=$V$12,$P166,IF(G$12=$W$12,$Q166,0))))*(H22+H27) -> 0 | H166: =G166 -> 0 | J166: =IF(J$12=$T$12,$N166,IF(J$12=$U$12,$O166,IF(J$12=$V$12,$P166,IF(J$12=$W$12,$Q166,0))))*(K22+K27) -> 0 | K166: =J166 -> 0 | N166: 0 | O166: 0 | P166: 0.5 | Q166: 0.5 | R166: of annual OpEx + Debt Service | S166: No
A168: Developer Fee | B168: ? | D168: =IF(D$12=$T$12,$N168,IF(D$12=$U$12,$O168,IF(D$12=$V$12,$P168,IF(D$12=$W$12,$Q168,0))))*SUM(E142:E162) -> 0 | E168: =D168 -> 0 | G168: =IF(G$12=$T$12,$N168,IF(G$12=$U$12,$O168,IF(G$12=$V$12,$P168,IF(G$12=$W$12,$Q168,0))))*SUM(H142:H162) -> 0 | H168: =G168 -> 0 | J168: =IF(J$12=$T$12,$N168,IF(J$12=$U$12,$O168,IF(J$12=$V$12,$P168,IF(J$12=$W$12,$Q168,0))))*SUM(K142:K162) -> 0 | K168: =J168 -> 0 | N168: 0 | O168: 0.1 | P168: 0.15 | Q168: 0.15 | R168: of TDC (exc Dev Fee, Reserves, Acquisition) | S168: Yes
D170: Section 5: Debt and LIHTC Terms
A171: First Mortgage Key Business Terms | D171: This Property | E171: Global Input | G171: This Property | H171: Global Input | J171: This Property | K171: Global Input
A172: Interest Rate | B172: ? | D172: =E172 -> 0.0475 | E172: =+'Global Inputs'!$D$25 -> 0.0475 | G172: =H172 -> 0.0475 | H172: =+'Global Inputs'!$D$25 -> 0.0475 | J172: =K172 -> 0.0475 | K172: =+'Global Inputs'!$D$25 -> 0.0475
A173: Amortization Term (years) | D173: 35 | E173: =+'Global Inputs'!$D$26 -> 35 | G173: 35 | H173: =+'Global Inputs'!$D$26 -> 35 | J173: 35 | K173: =+'Global Inputs'!$D$26 -> 35
A174: MIP / other credit enhancement | B174: ? | D174: 0.0025 | E174: =+'Global Inputs'!$D$27 -> 0.0025 | G174: 0.0025 | H174: =+'Global Inputs'!$D$27 -> 0.0025 | J174: 0.0025 | K174: =+'Global Inputs'!$D$27 -> 0.0025
A175: DSCR | B175: ? | D175: 1.2 | E175: =+'Global Inputs'!$D$28 -> 1.2 | G175: 1.2 | H175: =+'Global Inputs'!$D$28 -> 1.2 | J175: 1.2 | K175: =+'Global Inputs'!$D$28 -> 1.2
A176: P+I Factor | B176: ? | D176: =IF(ISERROR(-PMT(D172/12,D173*12,1)*12),0,-PMT(D172/12,D173*12,1)*12) -> 0.05866280939 | E176: =IF(ISERROR(-PMT(E172/12,E173*12,1)*12),0,-PMT(E172/12,E173*12,1)*12) -> 0.05866280939 | G176: =IF(ISERROR(-PMT(G172/12,G173*12,1)*12),0,-PMT(G172/12,G173*12,1)*12) -> 0.05866280939 | H176: =IF(ISERROR(-PMT(H172/12,H173*12,1)*12),0,-PMT(H172/12,H173*12,1)*12) -> 0.05866280939 | J176: =IF(ISERROR(-PMT(J172/12,J173*12,1)*12),0,-PMT(J172/12,J173*12,1)*12) -> 0.05866280939 | K176: =IF(ISERROR(-PMT(K172/12,K173*12,1)*12),0,-PMT(K172/12,K173*12,1)*12) -> 0.05866280939
A177: P+I+MIP Factor | B177: ? | D177: =+D176+D174 -> 0.06116280939 | E177: =+E176+E174 -> 0.06116280939 | G177: =+G176+G174 -> 0.06116280939 | H177: =+H176+H174 -> 0.06116280939 | J177: =+J176+J174 -> 0.06116280939 | K177: =+K176+K174 -> 0.06116280939
A178: Supportable Mortgage Loan Amount (DSCR) | B178: ? | D178: =IF(D177=0,0,ROUNDDOWN(D27/D177,-2)) -> 0 | E178: =IF(E177=0,0,ROUNDDOWN(D27/E177,-2)) -> 0 | G178: =IF(G177=0,0,ROUNDDOWN(G27/G177,-2)) -> 0 | H178: =IF(H177=0,0,ROUNDDOWN(G27/H177,-2)) -> 0 | J178: =IF(J177=0,0,ROUNDDOWN(J27/J177,-2)) -> 0 | K178: =IF(K177=0,0,ROUNDDOWN(J27/K177,-2)) -> 0
A181: Debt Service Coverage | B181: ?
A182: This section allows users to estimate debt service coverage in future years based on trending assumptions.
A183: Annual Rent Increase | B183: =2% -> 0.02 | D183: =(1+$B183)^$B$186 -> 1.345868338 | E183: =D183*D20 ->  | G183: =(1+$B183)^$B$186 -> 1.345868338 | H183: =G183*G20 ->  | J183: =(1+$B183)^$B$186 -> 1.345868338 | K183: =J183*J20 -> 
A184: Annual Operating Expense Increase | B184: =3% -> 0.03 | D184: =(1+$B184)^$B$186 -> 1.557967417 | E184: =D184*D22 -> 0 | G184: =(1+$B184)^$B$186 -> 1.557967417 | H184: =G184*G22 -> 0 | J184: =(1+$B184)^$B$186 -> 1.557967417 | K184: =J184*J22 -> 0
A185: Annual Replacement Reserve Increase | B185: =3% -> 0.03 | D185: =(1+$B185)^$B$186 -> 1.557967417 | E185: =D185*D23 -> 0 | G185: =(1+$B185)^$B$186 -> 1.557967417 | H185: =G185*G23 -> 0 | J185: =(1+$B185)^$B$186 -> 1.557967417 | K185: =J185*J23 -> 0
A186: Year of Analysis | B186: =15 -> 15
A187: ="Minimum Required DSCR in Year "&TEXT(B186,0) -> Minimum Required DSCR in Year 15 | B187: =0.95 -> 0.95
A189: Debt Service on New 1st Mtg Loan | B189: ? | D189: =IFERROR(-PMT(D172/12,D173*12,E115)*12+E115*D174,0) -> 0 | G189: =IFERROR(-PMT(G172/12,G173*12,H115)*12+H115*G174,0) -> 0 | J189: =IFERROR(-PMT(J172/12,J173*12,K115)*12+K115*J174,0) -> 0
A190: ="DSCR in Year "&TEXT(B186,0) -> DSCR in Year 15 | B190: ? | D190: =IF(D189=0,0,(E183-E184-E185)/D189) -> 0 | G190: =IF(G189=0,0,(H183-H184-H185)/G189) -> 0 | J190: =IF(J189=0,0,(K183-K184-K185)/J189) -> 0
A191: ="Maximum loan based on DSCR in Year "&TEXT(B186,0) -> Maximum loan based on DSCR in Year 15 | B191: ? | D191: =IF((E183-E184-E185)/$B187<0,0,ROUNDDOWN((E183-E184-E185)/$B187/D177,-2)) ->  | G191: =IF((H183-H184-H185)/$B187<0,0,ROUNDDOWN((H183-H184-H185)/$B187/G177,-2)) ->  | J191: =IF((K183-K184-K185)/$B187<0,0,ROUNDDOWN((K183-K184-K185)/$B187/J177,-2)) -> 
A193: LIHTC Variables
A194: Is Property in QCT or DDA? | B194: ? | D194: No | G194: No | J194: No
A195: Boost Amount | B195: ? | D195: =IF(D194="Yes",130%,100%) -> 1 | G195: =IF(G194="Yes",130%,100%) -> 1 | J195: =IF(J194="Yes",130%,100%) -> 1
A196: Capitalization Rate | B196: ? | D196: =E196 -> 0.07 | E196: 0.07 | G196: =H196 -> 0.07 | H196: 0.07 | J196: =K196 -> 0.07 | K196: 0.07
A197: Estimated FMV of Property (Cap Rate Basis) | B197: ? | E197: =MAX(0,D25/D196) ->  | H197: =MAX(0,G25/G196) ->  | K197: =MAX(0,J25/J196) -> 
A198: Percent of value allocated to building | B198: ? | D198: =E198 -> 0.85 | E198: 0.85 | G198: =H198 -> 0.85 | H198: 0.85 | J198: =K198 -> 0.85 | K198: 0.85
A200: TAX CREDIT ESTIMATOR | D200: 30% PV | E200: 70% PV | G200: 30% PV | H200: 70% PV | J200: 30% PV | K200: 70% PV
A201: Totals for Basis | D201: =E139*D$198 -> 0 | E201: =SUM(E142:E161,E168)-0.5*(E157+E161) -> 50000 | G201: =H139*G$198 -> 0 | H201: =SUM(H142:H161,H168)-0.5*(H157+H161) -> 50000 | J201: =K139*J$198 -> 0 | K201: =SUM(K142:K161,K168)-0.5*(K157+K161) -> 50000
A202: Boost | D202: 1 | E202: =D195 -> 1 | G202: 1 | H202: =G195 -> 1 | J202: 1 | K202: =J195 -> 1
A203: Revised Basis | D203: =D201*D202 -> 0 | E203: =E201*E202 -> 50000 | G203: =G201*G202 -> 0 | H203: =H201*H202 -> 50000 | J203: =J201*J202 -> 0 | K203: =K201*K202 -> 50000
A204: Percentage of units at or below 60% AMI? | B204: ? | D204: =E204 -> 1 | E204: 1 | G204: =H204 -> 1 | H204: 1 | J204: =K204 -> 1 | K204: 1
A205: Credit % | B205: ? | D205: ='Global Inputs'!$D$32 -> 0.0325 | E205: =IF(D12=$V12,'Global Inputs'!$D$32,'Global Inputs'!$D$33) -> 0.09 | G205: ='Global Inputs'!$D$32 -> 0.0325 | H205: =IF(G12=$V12,'Global Inputs'!$D$32,'Global Inputs'!$D$33) -> 0.09 | J205: ='Global Inputs'!$D$32 -> 0.0325 | K205: =IF(J12=$V12,'Global Inputs'!$D$32,'Global Inputs'!$D$33) -> 0.09
A206: Credits | D206: =D205*D204*D203 -> 0 | E206: =E205*E204*E203 -> 4500 | G206: =G205*G204*G203 -> 0 | H206: =H205*H204*H203 -> 4500 | J206: =J205*J204*J203 -> 0 | K206: =K205*K204*K203 -> 4500
A207: Total Credits | D207: =SUM(D206:E206)*10 -> 45000 | G207: =SUM(G206:H206)*10 -> 45000 | J207: =SUM(J206:K206)*10 -> 45000
A208: Pricing | B208: ? | D208: ='Global Inputs'!$D$31 -> 0.92 | G208: ='Global Inputs'!$D$31 -> 0.92 | J208: ='Global Inputs'!$D$31 -> 0.92
A209: Total Equity Available | D209: =D207*D208 -> 41400 | G209: =G207*G208 -> 41400 | J209: =J207*J208 -> 41400
A211: LIHTC Options | B211: ? | D211: 0.04 | E211: 0.09 | G211: 0.04 | H211: 0.09 | J211: 0.04 | K211: 0.09
A212: Without Boost | D212: =(D201*D204*'Global Inputs'!$D$32+'Inventory Overview'!E201*'Inventory Overview'!E204* 'Global Inputs'!$D$32)*D208*10 -> 14950 | E212: =(D201*D204*'Global Inputs'!$D$32+'Inventory Overview'!E201*'Inventory Overview'!E204*E211)*D208*10 -> 41400 | G212: =(G201*G204*'Global Inputs'!$D$32+'Inventory Overview'!H201*'Inventory Overview'!H204* 'Global Inputs'!$D$32)*G208*10 -> 14950 | H212: =(G201*G204*'Global Inputs'!$D$32+'Inventory Overview'!H201*'Inventory Overview'!H204*H211)*G208*10 -> 41400 | J212: =(J201*J204*'Global Inputs'!$D$32+'Inventory Overview'!K201*'Inventory Overview'!K204* 'Global Inputs'!$D$32)*J208*10 -> 14950 | K212: =(J201*J204*'Global Inputs'!$D$32+'Inventory Overview'!K201*'Inventory Overview'!K204*K211)*J208*10 -> 41400
A213: With 130% Boost | D213: =(D201*D204*'Global Inputs'!$D$32+E201*E204* 'Global Inputs'!$D$32*130%)*D208*10 -> 19435 | E213: =(D201*D204*'Global Inputs'!$D$32+1.3*E201*E204*E211)*D208*10 -> 53820 | G213: =(G201*G204*'Global Inputs'!$D$32+H201*H204* 'Global Inputs'!$D$32*130%)*G208*10 -> 19435 | H213: =(G201*G204*'Global Inputs'!$D$32+1.3*H201*H204*H211)*G208*10 -> 53820 | J213: =(J201*J204*'Global Inputs'!$D$32+K201*K204* 'Global Inputs'!$D$32*130%)*J208*10 -> 19435 | K213: =(J201*J204*'Global Inputs'!$D$32+1.3*K201*K204*K211)*J208*10 -> 53820
A216: PRE-POPULATED DATA FROM HUD'S DATABASE (AFTER VALIDATION CHECKING AND ANY CHANGES BY THE USER)
A218: Operating Expense Pre-Pop
A219: ='Global Inputs'!K17 -> No global input | D219: 0 | G219: 0 | J219: 0
A220: ='Global Inputs'!L17 -> Use my market estimate | D220: ='Global Inputs'!$G17 -> 0 | G220: ='Global Inputs'!$G17 -> 0 | J220: ='Global Inputs'!$G17 -> 0
A221: ='Global Inputs'!M17 -> 95% of "Formula Expenses" | B221: ? | D221: ='DNU Data'!D38:E38*0.95 -> 0 | E221: =D221 -> 0 | G221: ='DNU Data'!G38:H38*0.95 -> 0 | H221: =G221 -> 0 | J221: ='DNU Data'!J38:K38*0.95 -> 0 | K221: =J221 -> 0
A222: ='Global Inputs'!N17 -> 85% of "Formula Expenses" | D222: =D221/0.95*0.85 -> 0 | G222: =G221/0.95*0.85 -> 0 | J222: =J221/0.95*0.85 -> 0
A225: Operating Expense Pre-Pop | D225: =IF('Global Inputs'!$D17=$A219,D219,IF('Global Inputs'!$D17=$A220,D220,IF('Global Inputs'!$D17=$A221,D221,IF('Global Inputs'!$D17=$A222,D222,0)))) -> 0 | G225: =IF('Global Inputs'!$D17=$A219,G219,IF('Global Inputs'!$D17=$A220,G220,IF('Global Inputs'!$D17=$A221,G221,IF('Global Inputs'!$D17=$A222,G222,0)))) -> 0 | J225: =IF('Global Inputs'!$D17=$A219,J219,IF('Global Inputs'!$D17=$A220,J220,IF('Global Inputs'!$D17=$A221,J221,IF('Global Inputs'!$D17=$A222,J222,0)))) -> 0
A227: Unit Count | D227: PIC Data | G227: PIC Data | J227: PIC Data
A228: Total | D228: =SUM(D229:D234) -> 0 | E228: =D51 -> 0 | G228: =SUM(G229:H234) -> 0 | J228: =SUM(J229:K234) -> 0
A229: 0 Bedroom | D229: ='DNU Data'!D19 -> 0 | E229: =D45 -> 0 | G229: ='DNU Data'!G19 -> 0 | J229: ='DNU Data'!J19 -> 0
A230: 1 Bedroom | D230: ='DNU Data'!D20 -> 0 | E230: 0 | G230: ='DNU Data'!G20 -> 0 | J230: ='DNU Data'!J20 -> 0
A231: 2 Bedroom | D231: ='DNU Data'!D21 -> 0 | E231: 0 | G231: ='DNU Data'!G21 -> 0 | J231: ='DNU Data'!J21 -> 0
A232: 3 Bedroom | D232: ='DNU Data'!D22 -> 0 | E232: 0 | G232: ='DNU Data'!G22 -> 0 | J232: ='DNU Data'!J22 -> 0
A233: 4 Bedroom | D233: ='DNU Data'!D23 -> 0 | E233: 0 | G233: ='DNU Data'!G23 -> 0 | J233: ='DNU Data'!J23 -> 0
A234: 5 Bedroom | D234: ='DNU Data'!D24 -> 0 | E234: 0 | G234: ='DNU Data'!G24 -> 0 | J234: ='DNU Data'!J24 -> 0
A236: Contract Rent Schedule | D236: Contract Rents | E236: Adjusted By Rent Cap | G236: Contract Rents | J236: Contract Rents
A237: 0 Bedroom | D237: ='DNU Data'!D56 -> 0 | E237: =D237*D$98/D$243 ->  | G237: ='DNU Data'!G56 -> 0 | H237: =G237*G$98/G$243 ->  | J237: ='DNU Data'!J56 -> 0 | K237: =J237*J$98/J$243 -> 
A238: 1 Bedroom | D238: ='DNU Data'!D57 -> 0 | G238: ='DNU Data'!G57 -> 0 | J238: ='DNU Data'!J57 -> 0
A239: 2 Bedroom | D239: ='DNU Data'!D58 -> 0 | G239: ='DNU Data'!G58 -> 0 | J239: ='DNU Data'!J58 -> 0
A240: 3 Bedroom | D240: ='DNU Data'!D59 -> 0 | G240: ='DNU Data'!G59 -> 0 | J240: ='DNU Data'!J59 -> 0
A241: 4 Bedroom | D241: ='DNU Data'!D60 -> 0 | G241: ='DNU Data'!G60 -> 0 | J241: ='DNU Data'!J60 -> 0
A242: 5 Bedroom | D242: ='DNU Data'!D61 -> 0 | G242: ='DNU Data'!G61 -> 0 | J242: ='DNU Data'!J61 -> 0
A243: Average | D243: =SUMPRODUCT(D237:D242,D45:D50)/D51 ->  | E243: =SUMPRODUCT(E237:E242,D45:D50)/D51 ->  | G243: =SUMPRODUCT(G237:G242,G45:G50)/G51 ->  | H243: =SUMPRODUCT(H237:H242,G45:G50)/G51 ->  | J243: =SUMPRODUCT(J237:J242,J45:J50)/J51 ->  | K243: =SUMPRODUCT(K237:K242,J45:J50)/J51 -> 
... 6 more rows

Sheet DNU Data (hidden)
D1: BLANK000001 | G1: BLANK000002 | J1: BLANK000003
A3: Global D8 | B3: =COUNTIF(' '!$A$3:$A$6798,'Global Inputs'!D5) -> 3
A4: Global K6 | B4: =ROW(' '!A6)-1 -> 5 | C4: is the row offset into the HUD data table
A5: Global K7 | B5: =IF(ISNA(MATCH('Global Inputs'!$D$5,' '!$A$3:$A$6798,0)),9999,MATCH('Global Inputs'!$D$5,' '!$A$3:$A$6798,0)) -> 1
A6: Global E8 | B6: =IF(COUNTIF(' '!$A$3:$A$6798,'Global Inputs'!D5)=0,"FATAL ERROR: NO PHA PROPERTY DATA","") -> 
M10: 1
A11: Project Name | D11: =IF(ISERROR(VLOOKUP(D$1,' '!$B$3:$Z$6798,'DNU Data'!$M11,FALSE)),0,VLOOKUP(D$1,' '!$B$3:$Z$6798,'DNU Data'!$M11,FALSE)) -> Blank Property 1 | G11: =IF(ISERROR(VLOOKUP(G$1,' '!$B$3:$Z$6798,'DNU Data'!$M11,FALSE)),0,VLOOKUP(G$1,' '!$B$3:$Z$6798,'DNU Data'!$M11,FALSE)) -> Blank Property 2 | J11: =IF(ISERROR(VLOOKUP(J$1,' '!$B$3:$Z$6798,'DNU Data'!$M11,FALSE)),0,VLOOKUP(J$1,' '!$B$3:$Z$6798,'DNU Data'!$M11,FALSE)) -> Blank Property 3 | M11: 2
A13: Operating Fund | D13: =IF(ISERROR(VLOOKUP(D$1,' '!$B$3:$Z$6798,$M13,FALSE)),0,VLOOKUP(D$1,' '!$B$3:$Z$6798,$M13,FALSE)) -> 0 | G13: =IF(ISERROR(VLOOKUP(G$1,' '!$B$6:$Z$6798,$M13,FALSE)),0,VLOOKUP(G$1,' '!$B$6:$Z$6798,$M13,FALSE)) -> 0 | J13: =IF(ISERROR(VLOOKUP(J$1,' '!$B$6:$Z$6798,$M13,FALSE)),0,VLOOKUP(J$1,' '!$B$6:$Z$6798,$M13,FALSE)) -> 0 | M13: 5
A14: Capital Fund | D14: =IF(ISERROR(VLOOKUP(D$1,' '!$B$3:$Z$6798,$M14,FALSE)),0,VLOOKUP(D$1,' '!$B$3:$Z$6798,$M14,FALSE)) -> 0 | G14: =IF(ISERROR(VLOOKUP(G$1,' '!$B$6:$Z$6798,$M14,FALSE)),0,VLOOKUP(G$1,' '!$B$6:$Z$6798,$M14,FALSE)) -> 0 | J14: =IF(ISERROR(VLOOKUP(J$1,' '!$B$6:$Z$6798,$M14,FALSE)),0,VLOOKUP(J$1,' '!$B$6:$Z$6798,$M14,FALSE)) -> 0 | M14: 7
A15: Tenant Payments | D15: =IF(ISERROR(VLOOKUP(D$1,' '!$B$3:$Z$6798,$M15,FALSE)),0,VLOOKUP(D$1,' '!$B$3:$Z$6798,$M15,FALSE)) -> 0 | G15: =IF(ISERROR(VLOOKUP(G$1,' '!$B$6:$Z$6798,$M15,FALSE)),0,VLOOKUP(G$1,' '!$B$6:$Z$6798,$M15,FALSE)) -> 0 | J15: =IF(ISERROR(VLOOKUP(J$1,' '!$B$6:$Z$6798,$M15,FALSE)),0,VLOOKUP(J$1,' '!$B$6:$Z$6798,$M15,FALSE)) -> 0 | M15: 6
A17: Unit Count
A18: Total
A19: 0 Bedroom | D19: =IF(ISERROR(VLOOKUP(D$1,' '!$B$6:$Z$6798,'DNU Data'!$M19,FALSE)),0,VLOOKUP(D$1,' '!$B$6:$Z$6798,'DNU Data'!$M19,FALSE)) -> 0 | G19: =IF(ISERROR(VLOOKUP(G$1,' '!$B$6:$Z$6798,'DNU Data'!$M19,FALSE)),0,VLOOKUP(G$1,' '!$B$6:$Z$6798,'DNU Data'!$M19,FALSE)) -> 0 | J19: =IF(ISERROR(VLOOKUP(J$1,' '!$B$6:$Z$6798,'DNU Data'!$M19,FALSE)),0,VLOOKUP(J$1,' '!$B$6:$Z$6798,'DNU Data'!$M19,FALSE)) -> 0 | M19: 12
A20: 1 Bedroom | D20: =IF(ISERROR(VLOOKUP(D$1,' '!$B$6:$Z$6798,'DNU Data'!$M20,FALSE)),0,VLOOKUP(D$1,' '!$B$6:$Z$6798,'DNU Data'!$M20,FALSE)) -> 0 | G20: =IF(ISERROR(VLOOKUP(G$1,' '!$B$6:$Z$6798,'DNU Data'!$M20,FALSE)),0,VLOOKUP(G$1,' '!$B$6:$Z$6798,'DNU Data'!$M20,FALSE)) -> 0 | J20: =IF(ISERROR(VLOOKUP(J$1,' '!$B$6:$Z$6798,'DNU Data'!$M20,FALSE)),0,VLOOKUP(J$1,' '!$B$6:$Z$6798,'DNU Data'!$M20,FALSE)) -> 0 | M20: =+M19+1 -> 13
A21: 2 Bedroom | D21: =IF(ISERROR(VLOOKUP(D$1,' '!$B$6:$Z$6798,'DNU Data'!$M21,FALSE)),0,VLOOKUP(D$1,' '!$B$6:$Z$6798,'DNU Data'!$M21,FALSE)) -> 0 | G21: =IF(ISERROR(VLOOKUP(G$1,' '!$B$6:$Z$6798,'DNU Data'!$M21,FALSE)),0,VLOOKUP(G$1,' '!$B$6:$Z$6798,'DNU Data'!$M21,FALSE)) -> 0 | J21: =IF(ISERROR(VLOOKUP(J$1,' '!$B$6:$Z$6798,'DNU Data'!$M21,FALSE)),0,VLOOKUP(J$1,' '!$B$6:$Z$6798,'DNU Data'!$M21,FALSE)) -> 0 | M21: 14
A22: 3 Bedroom | D22: =IF(ISERROR(VLOOKUP(D$1,' '!$B$6:$Z$6798,'DNU Data'!$M22,FALSE)),0,VLOOKUP(D$1,' '!$B$6:$Z$6798,'DNU Data'!$M22,FALSE)) -> 0 | G22: =IF(ISERROR(VLOOKUP(G$1,' '!$B$6:$Z$6798,'DNU Data'!$M22,FALSE)),0,VLOOKUP(G$1,' '!$B$6:$Z$6798,'DNU Data'!$M22,FALSE)) -> 0 | J22: =IF(ISERROR(VLOOKUP(J$1,' '!$B$6:$Z$6798,'DNU Data'!$M22,FALSE)),0,VLOOKUP(J$1,' '!$B$6:$Z$6798,'DNU Data'!$M22,FALSE)) -> 0 | M22: 15
A23: 4 Bedroom | D23: =IF(ISERROR(VLOOKUP(D$1,' '!$B$6:$Z$6798,'DNU Data'!$M23,FALSE)),0,VLOOKUP(D$1,' '!$B$6:$Z$6798,'DNU Data'!$M23,FALSE)) -> 0 | G23: =IF(ISERROR(VLOOKUP(G$1,' '!$B$6:$Z$6798,'DNU Data'!$M23,FALSE)),0,VLOOKUP(G$1,' '!$B$6:$Z$6798,'DNU Data'!$M23,FALSE)) -> 0 | J23: =IF(ISERROR(VLOOKUP(J$1,' '!$B$6:$Z$6798,'DNU Data'!$M23,FALSE)),0,VLOOKUP(J$1,' '!$B$6:$Z$6798,'DNU Data'!$M23,FALSE)) -> 0 | M23: 16
A24: 5 Bedroom | D24: =IF(ISERROR(VLOOKUP(D$1,' '!$B$6:$Z$6798,'DNU Data'!$M24,FALSE)),0,VLOOKUP(D$1,' '!$B$6:$Z$6798,'DNU Data'!$M24,FALSE)) -> 0 | G24: =IF(ISERROR(VLOOKUP(G$1,' '!$B$6:$Z$6798,'DNU Data'!$M24,FALSE)),0,VLOOKUP(G$1,' '!$B$6:$Z$6798,'DNU Data'!$M24,FALSE)) -> 0 | J24: =IF(ISERROR(VLOOKUP(J$1,' '!$B$6:$Z$6798,'DNU Data'!$M24,FALSE)),0,VLOOKUP(J$1,' '!$B$6:$Z$6798,'DNU Data'!$M24,FALSE)) -> 0 | M24: 17
A27: Fair Market Rents
A28: 0 Bedroom | D28: =IF(ISERROR(VLOOKUP(D$1,' '!$B$3:$Z$6798,'DNU Data'!$M28,FALSE)),0,VLOOKUP(D$1,' '!$B$3:$Z$6798,'DNU Data'!$M28,FALSE)) -> 0 | G28: =IF(ISERROR(VLOOKUP(G$1,' '!$B$3:$Z$6798,'DNU Data'!$M28,FALSE)),0,VLOOKUP(G$1,' '!$B$3:$Z$6798,'DNU Data'!$M28,FALSE)) -> 0 | J28: =IF(ISERROR(VLOOKUP(J$1,' '!$B$3:$Z$6798,'DNU Data'!$M28,FALSE)),0,VLOOKUP(J$1,' '!$B$3:$Z$6798,'DNU Data'!$M28,FALSE)) -> 0 | M28: 19
A29: 1 Bedroom | D29: =IF(ISERROR(VLOOKUP(D$1,' '!$B$3:$Z$6798,'DNU Data'!$M29,FALSE)),0,VLOOKUP(D$1,' '!$B$3:$Z$6798,'DNU Data'!$M29,FALSE)) -> 0 | G29: =IF(ISERROR(VLOOKUP(G$1,' '!$B$3:$Z$6798,'DNU Data'!$M29,FALSE)),0,VLOOKUP(G$1,' '!$B$3:$Z$6798,'DNU Data'!$M29,FALSE)) -> 0 | J29: =IF(ISERROR(VLOOKUP(J$1,' '!$B$3:$Z$6798,'DNU Data'!$M29,FALSE)),0,VLOOKUP(J$1,' '!$B$3:$Z$6798,'DNU Data'!$M29,FALSE)) -> 0 | M29: =+M28+1 -> 20
A30: 2 Bedroom | D30: =IF(ISERROR(VLOOKUP(D$1,' '!$B$3:$Z$6798,'DNU Data'!$M30,FALSE)),0,VLOOKUP(D$1,' '!$B$3:$Z$6798,'DNU Data'!$M30,FALSE)) -> 0 | G30: =IF(ISERROR(VLOOKUP(G$1,' '!$B$3:$Z$6798,'DNU Data'!$M30,FALSE)),0,VLOOKUP(G$1,' '!$B$3:$Z$6798,'DNU Data'!$M30,FALSE)) -> 0 | J30: =IF(ISERROR(VLOOKUP(J$1,' '!$B$3:$Z$6798,'DNU Data'!$M30,FALSE)),0,VLOOKUP(J$1,' '!$B$3:$Z$6798,'DNU Data'!$M30,FALSE)) -> 0 | M30: 21
A31: 3 Bedroom | D31: =IF(ISERROR(VLOOKUP(D$1,' '!$B$3:$Z$6798,'DNU Data'!$M31,FALSE)),0,VLOOKUP(D$1,' '!$B$3:$Z$6798,'DNU Data'!$M31,FALSE)) -> 0 | G31: =IF(ISERROR(VLOOKUP(G$1,' '!$B$3:$Z$6798,'DNU Data'!$M31,FALSE)),0,VLOOKUP(G$1,' '!$B$3:$Z$6798,'DNU Data'!$M31,FALSE)) -> 0 | J31: =IF(ISERROR(VLOOKUP(J$1,' '!$B$3:$Z$6798,'DNU Data'!$M31,FALSE)),0,VLOOKUP(J$1,' '!$B$3:$Z$6798,'DNU Data'!$M31,FALSE)) -> 0 | M31: 22
A32: 4 Bedroom | D32: =IF(ISERROR(VLOOKUP(D$1,' '!$B$3:$Z$6798,'DNU Data'!$M32,FALSE)),0,VLOOKUP(D$1,' '!$B$3:$Z$6798,'DNU Data'!$M32,FALSE)) -> 0 | G32: =IF(ISERROR(VLOOKUP(G$1,' '!$B$3:$Z$6798,'DNU Data'!$M32,FALSE)),0,VLOOKUP(G$1,' '!$B$3:$Z$6798,'DNU Data'!$M32,FALSE)) -> 0 | J32: =IF(ISERROR(VLOOKUP(J$1,' '!$B$3:$Z$6798,'DNU Data'!$M32,FALSE)),0,VLOOKUP(J$1,' '!$B$3:$Z$6798,'DNU Data'!$M32,FALSE)) -> 0 | M32: 23
A33: 5 Bedroom | D33: =IF(ISERROR(VLOOKUP(D$1,' '!$B$3:$Z$6798,'DNU Data'!$M33,FALSE)),0,VLOOKUP(D$1,' '!$B$3:$Z$6798,'DNU Data'!$M33,FALSE)) -> 0 | G33: =IF(ISERROR(VLOOKUP(G$1,' '!$B$3:$Z$6798,'DNU Data'!$M33,FALSE)),0,VLOOKUP(G$1,' '!$B$3:$Z$6798,'DNU Data'!$M33,FALSE)) -> 0 | J33: =IF(ISERROR(VLOOKUP(J$1,' '!$B$3:$Z$6798,'DNU Data'!$M33,FALSE)),0,VLOOKUP(J$1,' '!$B$3:$Z$6798,'DNU Data'!$M33,FALSE)) -> 0 | M33: 24
A37: Operating Expense Pre-Pop
A38: 95% Form Expenses | D38: =IF(ISERROR(VLOOKUP(D$1,' '!$B$3:$Z$6798,$M38,FALSE)),0,VLOOKUP(D$1,' '!$B$3:$Z$6798,$M38,FALSE))*12 -> 0 | E38: =D38 -> 0 | G38: =IF(ISERROR(VLOOKUP(G$1,' '!$B$3:$Z$6798,$M38,FALSE)),0,VLOOKUP(G$1,' '!$B$3:$Z$6798,$M38,FALSE))*12 -> 0 | H38: =G38 -> 0 | J38: =IF(ISERROR(VLOOKUP(J$1,' '!$B$3:$Z$6798,$M38,FALSE)),0,VLOOKUP(J$1,' '!$B$3:$Z$6798,$M38,FALSE))*12 -> 0 | K38: =J38 -> 0 | M38: 10
A41: UA | D41: =IF(ISERROR(VLOOKUP(D$1,' '!$B$3:$Z$6798,$M41,FALSE)),0,VLOOKUP(D$1,' '!$B$3:$Z$6798,$M41,FALSE)) -> 0 | E41: =D41 -> 0 | G41: =IF(ISERROR(VLOOKUP(G$1,' '!$B$3:$Z$6798,$M41,FALSE)),0,VLOOKUP(G$1,' '!$B$3:$Z$6798,$M41,FALSE)) -> 0 | H41: =G41 -> 0 | J41: =IF(ISERROR(VLOOKUP(J$1,' '!$B$3:$Z$6798,$M41,FALSE)),0,VLOOKUP(J$1,' '!$B$3:$Z$6798,$M41,FALSE)) -> 0 | K41: =J41 -> 0 | M41: 11
D44: =D28*D19 -> 0 | G44: =G28*G19 -> 0 | J44: =J28*J19 -> 0
D45: =D29*D20 -> 0 | G45: =G29*G20 -> 0 | J45: =J29*J20 -> 0
D46: 0 | G46: 0 | J46: 0 | O46: ???
D47: 0 | G47: 0 | J47: 0
D48: 0 | G48: 0 | J48: 0
D49: 0 | G49: 0 | J49: 0
D50: 0 | G50: 0 | J50: 0
A52: QCT or DDA | D52: =IF(ISERROR(VLOOKUP(D$1,' '!$B$6:$AC$6798,'DNU Data'!$M52,FALSE)),"No",VLOOKUP(D$1,' '!$B$6:$AC$6798,'DNU Data'!$M52,FALSE)) -> No | G52: =IF(ISERROR(VLOOKUP(G$1,' '!$B$6:$AC$6798,'DNU Data'!$M52,FALSE)),"No",VLOOKUP(G$1,' '!$B$6:$AC$6798,'DNU Data'!$M52,FALSE)) -> No | J52: =IF(ISERROR(VLOOKUP(J$1,' '!$B$6:$AC$6798,'DNU Data'!$M52,FALSE)),"No",VLOOKUP(J$1,' '!$B$6:$AC$6798,'DNU Data'!$M52,FALSE)) -> No | M52: 27
A55: Contract Rents
A56: 0 Bedroom | D56: =IF(ISERROR(VLOOKUP(D$1,' '!$B$3:$AZ$6798,'DNU Data'!$M56,FALSE)),0,VLOOKUP(D$1,' '!$B$3:$AZ$6798,'DNU Data'!$M56,FALSE)) -> 0 | G56: =IF(ISERROR(VLOOKUP(G$1,' '!$B$3:$AZ$6798,'DNU Data'!$M56,FALSE)),0,VLOOKUP(G$1,' '!$B$3:$AZ$6798,'DNU Data'!$M56,FALSE)) -> 0 | J56: =IF(ISERROR(VLOOKUP(J$1,' '!$B$3:$AZ$6798,'DNU Data'!$M56,FALSE)),0,VLOOKUP(J$1,' '!$B$3:$AZ$6798,'DNU Data'!$M56,FALSE)) -> 0 | M56: 25
A57: 1 Bedroom | D57: =IF(ISERROR(VLOOKUP(D$1,' '!$B$3:$AZ$6798,'DNU Data'!$M57,FALSE)),0,VLOOKUP(D$1,' '!$B$3:$AZ$6798,'DNU Data'!$M57,FALSE)) -> 0 | G57: =IF(ISERROR(VLOOKUP(G$1,' '!$B$3:$AZ$6798,'DNU Data'!$M57,FALSE)),0,VLOOKUP(G$1,' '!$B$3:$AZ$6798,'DNU Data'!$M57,FALSE)) -> 0 | J57: =IF(ISERROR(VLOOKUP(J$1,' '!$B$3:$AZ$6798,'DNU Data'!$M57,FALSE)),0,VLOOKUP(J$1,' '!$B$3:$AZ$6798,'DNU Data'!$M57,FALSE)) -> 0 | M57: =+M56+1 -> 26
A58: 2 Bedroom | D58: =IF(ISERROR(VLOOKUP(D$1,' '!$B$3:$AZ$6798,'DNU Data'!$M58,FALSE)),0,VLOOKUP(D$1,' '!$B$3:$AZ$6798,'DNU Data'!$M58,FALSE)) -> 0 | G58: =IF(ISERROR(VLOOKUP(G$1,' '!$B$3:$AZ$6798,'DNU Data'!$M58,FALSE)),0,VLOOKUP(G$1,' '!$B$3:$AZ$6798,'DNU Data'!$M58,FALSE)) -> 0 | J58: =IF(ISERROR(VLOOKUP(J$1,' '!$B$3:$AZ$6798,'DNU Data'!$M58,FALSE)),0,VLOOKUP(J$1,' '!$B$3:$AZ$6798,'DNU Data'!$M58,FALSE)) -> 0 | M58: 27
A59: 3 Bedroom | D59: =IF(ISERROR(VLOOKUP(D$1,' '!$B$3:$AZ$6798,'DNU Data'!$M59,FALSE)),0,VLOOKUP(D$1,' '!$B$3:$AZ$6798,'DNU Data'!$M59,FALSE)) -> 0 | G59: =IF(ISERROR(VLOOKUP(G$1,' '!$B$3:$AZ$6798,'DNU Data'!$M59,FALSE)),0,VLOOKUP(G$1,' '!$B$3:$AZ$6798,'DNU Data'!$M59,FALSE)) -> 0 | J59: =IF(ISERROR(VLOOKUP(J$1,' '!$B$3:$AZ$6798,'DNU Data'!$M59,FALSE)),0,VLOOKUP(J$1,' '!$B$3:$AZ$6798,'DNU Data'!$M59,FALSE)) -> 0 | M59: 28
A60: 4 Bedroom | D60: =IF(ISERROR(VLOOKUP(D$1,' '!$B$3:$AZ$6798,'DNU Data'!$M60,FALSE)),0,VLOOKUP(D$1,' '!$B$3:$AZ$6798,'DNU Data'!$M60,FALSE)) -> 0 | G60: =IF(ISERROR(VLOOKUP(G$1,' '!$B$3:$AZ$6798,'DNU Data'!$M60,FALSE)),0,VLOOKUP(G$1,' '!$B$3:$AZ$6798,'DNU Data'!$M60,FALSE)) -> 0 | J60: =IF(ISERROR(VLOOKUP(J$1,' '!$B$3:$AZ$6798,'DNU Data'!$M60,FALSE)),0,VLOOKUP(J$1,' '!$B$3:$AZ$6798,'DNU Data'!$M60,FALSE)) -> 0 | M60: 29
A61: 5 Bedroom | D61: =IF(ISERROR(VLOOKUP(D$1,' '!$B$3:$AZ$6798,'DNU Data'!$M61,FALSE)),0,VLOOKUP(D$1,' '!$B$3:$AZ$6798,'DNU Data'!$M61,FALSE)) -> 0 | G61: =IF(ISERROR(VLOOKUP(G$1,' '!$B$3:$AZ$6798,'DNU Data'!$M61,FALSE)),0,VLOOKUP(G$1,' '!$B$3:$AZ$6798,'DNU Data'!$M61,FALSE)) -> 0 | J61: =IF(ISERROR(VLOOKUP(J$1,' '!$B$3:$AZ$6798,'DNU Data'!$M61,FALSE)),0,VLOOKUP(J$1,' '!$B$3:$AZ$6798,'DNU Data'!$M61,FALSE)) -> 0 | M61: 30

Sheet PHA List
A1: PHA | B1: PHA Name
A2: BLANK | B2: Blank PHA - Start tool entry for new property
A3: AK001 | B3: Alaska Housing Finance Corporation
A4: AL001 | B4: Housing Authority of the Birmingham District
A5: AL002 | B5: MOBILE HOUSING BOARD
A6: AL004 | B6: ANNISTON HA
A7: AL005 | B7: PHENIX CITY HOUSING AUTHORITY
A8: AL006 | B8: Housing Authority of the City of Montgomery
A9: AL007 | B9: Housing Authority of the City of Dothan
A10: AL008 | B10: Selma Housing Authority
A11: AL009 | B11: Housing Authority of the City of Attalla
A12: AL010 | B12: Fairfield Housing Authority
A13: AL011 | B13: Housing Authority of the City of Fort Payne
A14: AL012 | B14: Housing Authority of the City of Jasper
A15: AL013 | B15: Tarrant Housing Authority
A16: AL014 | B16: The Guntersville Housing Authority
A17: AL047 | B17: The Housing Authority of the City of Huntsville
A18: AL048 | B18: Housing Authority of the City of Decatur
A19: AL049 | B19: Greater Gadsden
A20: AL051 | B20: Housing Authority of Red Bay
A21: AL052 | B21: HA CULLMAN
A22: AL053 | B22: Housing Authority of Hamilton, Alabama
A23: AL055 | B23: HA CORDOVA
A24: AL056 | B24: Haleyville Housing Authority
A25: AL057 | B25: Sylacauga Housing Authority
A26: AL058 | B26: Winfield Housing Authority
A27: AL059 | B27: Housing Authority of the City of Tuscumbia
A28: AL060 | B28: HA RUSSELLVILLE
A29: AL062 | B29: Housing Authority of the City of Lanett, AL
A30: AL063 | B30: H A ONEONTA
A31: AL064 | B31: Housing Authority of the City of Carbon Hill
A32: AL065 | B32: Housing Authority of the City of Roanoke, AL
A33: AL066 | B33: Housing Authority of Reform
A34: AL067 | B34: Housing Authority of the City of Athens, Al
A35: AL068 | B35: Sheffield Housing Authority
A36: AL071 | B36: Housing Authority of Guin, Alabama
A37: AL073 | B37: HOUSING AUTHORITY OF THE CITY OF OZARK
A38: AL074 | B38: Housing Authority of Boston
A39: AL075 | B39: BOAZ HOUSING AUTHORITY
A40: AL076 | B40: HACKLEBURG HOUSING AUTHORITY
A41: AL077 | B41: HA TUSCALOOSA
A42: AL078 | B42: Housing Authority of the Town of Berry
A43: AL079 | B43: Housing Authority of the Town of Montevallo
A44: AL080 | B44: Housing Authority of the City of Moulton, AL
A45: AL081 | B45: Bear Creek Housing Authority
A46: AL082 | B46: CROSSVILLE HOUSING AUHTORITY
A47: AL083 | B47: Collinsville Housing Authority
A48: AL084 | B48: Housing Authority of the City of Vernon, AL
A49: AL085 | B49: Housing Authority of the Town of Calera
A50: AL086 | B50: Jefferson County Housing Authority
A51: AL087 | B51: Housing Authority of the City of Hartselle
A52: AL088 | B52: Housing Authority of the City of Luverne, AL
A53: AL089 | B53: Vincent Housing Authority
A54: AL090 | B54: PHIL CAMPBELL HOUSING AUTHORITY
A55: AL091 | B55: HA ARAB
A56: AL093 | B56: Housing Authority of the Town of Hanceville
A57: AL094 | B57: Housing Authority of the City of Georgiana
A58: AL095 | B58: HA MILLPORT
A59: AL096 | B59: Housing Authority of the City of Heflin
A60: AL098 | B60: Housing Authority of the City of Aliceville
A61: AL100 | B61: Housing Authority of the City of Columbia
A62: AL101 | B62: Abbeville Housing Authority
A63: AL102 | B63: Altoona Housing Authority
A64: AL103 | B64: Housing Authority of the City of Hartford
A65: AL104 | B65: Cottonwood Housing Authority
A66: AL106 | B66: Pell City Housing Authority
A67: AL107 | B67: HA ELBA
A68: AL108 | B68: Ragland Housing Authority
A69: AL109 | B69: Housing Authority of the City of Demopolis, AL
A70: AL110 | B70: HA PIEDMONT
A71: AL111 | B71: Housing Authority of the City of Florala
A72: AL112 | B72: HA OPP
A73: AL114 | B73: LINEVILLE HOUSING AUTHORITY
A74: AL115 | B74: ENTERPRISE HOUSING AUTHORITY
A75: AL116 | B75: YORK HOUSING AUTHORITY
A76: AL117 | B76: Washington County Housing Authority
A77: AL118 | B77: EUFAULA HOUSING AUTHORITY
A78: AL119 | B78: Housing Authority of the City of Sulligent, AL
A79: AL120 | B79: Housing Authority of the City of Linden
A80: AL121 | B80: Albertville Housing Authority
A81: AL122 | B81: Childersburg Housing Authority
A82: AL123 | B82: Housing Authority of the City of Headland, AL
A83: AL125 | B83: HA BESSEMER
A84: AL126 | B84: Brundidge Housing Authority
A85: AL127 | B85: HA ANDALUSIA
A86: AL128 | B86: HA SAMSON
A87: AL129 | B87: WALKER COUNTY HOUSING AUTHORITY
A88: AL131 | B88: Housing Authority of the City of Prattville, AL
A89: AL132 | B89: Housing Authority of the City of Goodwater
A90: AL133 | B90: Housing Authority of the Town of Hobson City
A91: AL134 | B91: Housing Authority of the Town of Blountsville, AL
A92: AL137 | B92: Housing Authority of the City of Fayette
A93: AL138 | B93: GORDO HOUSING AUTHORITY
A94: AL139 | B94: HA JACKSONVILLE
A95: AL140 | B95: Housing Authority of the City of Centre, Al
A96: AL141 | B96: Housing Authority of the Town of Kennedy
A97: AL142 | B97: Housing Authority of the City of Newton
A98: AL143 | B98: Housing Authority of the Town of Slocomb
A99: AL144 | B99: HA ASHFORD
A100: AL145 | B100: Housing Authority of the City of Brantley
A101: AL146 | B101: Housing Authority of the City of Eutaw
A102: AL147 | B102: Housing Authority of the City of Bridgeport
A103: AL149 | B103: Housing Authority of the Town of New Brockton
A104: AL150 | B104: Housing Authority of the City of Clanton
A105: AL151 | B105: Housing Authority of the City of Brent
A106: AL152 | B106: HA NORTHPORT
A107: AL153 | B107: Housing Authority of the Town of Parrish
A108: AL154 | B108: HA ATMORE
A109: AL156 | B109: Housing Authority of the City of Brewton
A110: AL157 | B110: Housing Authority of the City of Greensboro
A111: AL158 | B111: Housing Authority of the Town of Clayton
A112: AL160 | B112: TUSKEGEE HOUSING AUTHORITY
A113: AL161 | B113: Housing Authority of the City of Marion, AL
A114: AL164 | B114: HA BAY MINETTE
A115: AL165 | B115: HA FOLEY
A116: AL166 | B116: Housing Authority of the City of Chickasaw
A117: AL167 | B117: STEVENSON HOUSING AUTHORITY
A118: AL168 | B118: Rainsville Housing Authority
A119: AL169 | B119: The Housing Authority of the City of Prichard
A120: AL171 | B120: UNIONTOWN HOUSING AUTHORITY
A121: AL172 | B121: HA TALLASSEE
A122: AL173 | B122: HA MONROEVILLE
A123: AL174 | B123: Housing Authority of the City of Alexander City
A124: AL175 | B124: Housing Authority of the City of Livingston
A125: AL176 | B125: Sumiton Housing Authority
A126: AL177 | B126: HA TROY
A127: AL178 | B127: Housing Authority of the City of Dadeville
A128: AL179 | B128: Housing Authority of the City of Daleville
A129: AL181 | B129: EVERGREEN HOUSING AUTHORITY
A130: AL182 | B130: The Housing Authority of the City of Triana,
A131: AL187 | B131: Regional HA of Lawrence, Cullman & Morgan Counties
A132: AL189 | B132: Top of Alabama Regional Housing Authority
A133: AL190 | B133: Housing Authority of Greene County, AL
A134: AL199 | B134: Housing Authority of the City of Valley
A135: AL202 | B135: MOBILE COUNTY HOUSING AUTHORITY
A136: AR002 | B136: North Little Rock Housing Authority
A137: AR004 | B137: Housing Authority of the City of Little Rock
A138: AR005 | B138: Blytheville Housing Authority
A139: AR006 | B139: Housing Authority of the City of Conway
A140: AR010 | B140: NW Regional Housing Authority
A141: AR012 | B141: Arkadelphia Housing Authority
A142: AR015 | B142: Housing Authority of the City of Texarkana
A143: AR016 | B143: Camden Housing Authority
A144: AR017 | B144: Housing Authority of the City of Pine Bluff
A145: AR018 | B145: Housing Authority of the City of Magnolia
A146: AR020 | B146: Little River County Housing Authority
A147: AR021 | B147: Housing Authority of the City of Osceola
A148: AR022 | B148: Housing Authority of the County of Sevier
A149: AR023 | B149: Housing Authority of the County of Poinsett
A150: AR024 | B150: West Memphis Housing Authority
A151: AR025 | B151: Housing Authority of the County of Howard
A152: AR026 | B152: Housing Authority of the City of Morrilton
A153: AR027 | B153: Housing Authority of the City of Marianna
A154: AR028 | B154: Housing Authority of the City of Newport
A155: AR029 | B155: Housing Authority of the City of Van Buren
A156: AR032 | B156: Housing Authority of the City of Paris
A157: AR034 | B157: Trumann Housing Authority
A158: AR035 | B158: Searcy Housing Authority
A159: AR037 | B159: Housing Authority of the City of Prescott
A160: AR038 | B160: Housing Authority of the City of Booneville
A161: AR039 | B161: Wynne Housing Authority
A162: AR040 | B162: Housing Authority of the City of Des Arc
A163: AR041 | B163: Lonoke County Housing Authority
A164: AR042 | B164: Star City Housing Authority
A165: AR043 | B165: Housing Authority of the City of Dumas
A166: AR044 | B166: Housing Authority of the City of Waldron
A167: AR045 | B167: Pike County Housing Authority
A168: AR046 | B168: Housing Authority of the City of Amity
A169: AR047 | B169: Housing Authority of the City of Hoxie
A170: AR049 | B170: Housing Authority of the City of Gurdon
A171: AR050 | B171: Housing Authority of the City of Helena
A172: AR051 | B172: Housing Authority of the City of Clarksville
A173: AR052 | B173: Clarendon Housing Authority
A174: AR053 | B174: Housing Authority of the City of McGehee
A175: AR054 | B175: Housing Authority of the City of Wilson
A176: AR055 | B176: Housing Authority of the City of Dardanelle
A177: AR059 | B177: Housing Authority of the City of Brinkley
A178: AR060 | B178: Housing Authority of the City of West Helena
A179: AR061 | B179: Housing Authority of the City of Hughes
A180: AR064 | B180: Housing Authority of the City of Earle
A181: AR065 | B181: Housing Authority of the City of Stephens
A182: AR066 | B182: Russellville Housing Authority
A183: AR068 | B183: Hope Housing Authority
A184: AR069 | B184: Housing Authority of the City of Rector
A185: AR070 | B185: Housing Authority of the City of Monette
A186: AR071 | B186: Housing Authority of the City of Batesville
A187: AR072 | B187: Housing Authority of the City of Parkin
A188: AR073 | B188: Housing Authority of the City of Sparkman
A189: AR074 | B189: Housing Authority of the City of Salem
A190: AR075 | B190: Housing Authority of the City of Leachville
A191: AR076 | B191: Housing Authority of the City of Mount Ida
A192: AR078 | B192: Housing Authority of the City of Dell
A193: AR079 | B193: Housing Authority of the City of Luxora
A194: AR080 | B194: Housing Authority of the City of Manila
A195: AR081 | B195: Housing Authority of the City of Carthage
A196: AR082 | B196: Warren Housing Authority
A197: AR083 | B197: Housing Authority of the City of Gould
A198: AR084 | B198: Housing Authority of the City of Bald Knob
A199: AR085 | B199: Housing Authority of the City of Dover
A200: AR086 | B200: Housing Authority of the City of Mammoth Spring
... 2720 more rows

Sheet  (hidden)
A1: SORTED ON PHA THEN PIC # | F1: x | K1: x | M1: 0 | N1: 1 | O1: 2 | P1: 3 | Q1: 4 | R1: 5 | S1: 6 | T1: 2019 Fair Market Rent | Z1: 2018 RAD rents with 2019 OCAF
A2: PHA | B2: PIC Development Number | C2: Project Name | D2: Total PIC Units | E2: Avg BR Size | F2: Operating Fund (per unit per year) | G2: Tenant Rents (per unit per year) | H2: Capital Fund (per unit per year) | I2: Weighted Contract Rent PUM | J2: Weighted FMR | K2: Total Expenses (HUD Calculation) (HUD Mod: Total Formula Expense)/(Eligible Unit Months: Total Unit Months) | L2: Utility Allowance | M2: PIC Units 0-BR | N2: PIC Units 1-BR | O2: PIC Units 2-BR | P2: PIC Units 3-BR | Q2: PIC Units 4-BR | R2: PIC Units 5-BR | S2: PIC Units 6+-BR | T2: FMR 0 BR | U2: FMR 1 BR | V2: FMR 2 BR | W2: FMR 3 BR | X2: FMR 4 BR | Y2: FMR 5 BR | Z2: RAD Rent -0 | AA2: RAD Rent -1 | AB2: RAD Rent -2 | AC2: RAD Rent -3 | AD2: RAD Rent -4 | AE2: RAD Rent -5
A3: BLANK | B3: BLANK000001 | C3: Blank Property 1 | D3: 0 | K3: 0 | L3: 0 | M3: 0 | N3: 0 | O3: 0 | P3: 0 | Q3: 0 | R3: 0 | S3: 0 | T3: 0 | U3: 0 | V3: 0 | W3: 0 | X3: 0 | Y3: 0 | Z3: 0 | AA3: 0 | AB3: 0 | AC3: 0 | AD3: 0 | AE3: 0
A4: BLANK | B4: BLANK000002 | C4: Blank Property 2 | D4: 0 | K4: 0 | L4: 0 | M4: 0 | N4: 0 | O4: 0 | P4: 0 | Q4: 0 | R4: 0 | S4: 0 | T4: 0 | U4: 0 | V4: 0 | W4: 0 | X4: 0 | Y4: 0 | Z4: 0 | AA4: 0 | AB4: 0 | AC4: 0 | AD4: 0 | AE4: 0
A5: BLANK | B5: BLANK000003 | C5: Blank Property 3 | D5: 0 | K5: 0 | L5: 0 | M5: 0 | N5: 0 | O5: 0 | P5: 0 | Q5: 0 | R5: 0 | S5: 0 | T5: 0 | U5: 0 | V5: 0 | W5: 0 | X5: 0 | Y5: 0 | Z5: 0 | AA5: 0 | AB5: 0 | AC5: 0 | AD5: 0 | AE5: 0
A6: AK001 | B6: AK001000213 | C6: Wrangell | D6: 20 | K6: 921.4375 | L6: 35.91666667 | M6: 0 | N6: 4 | O6: 4 | P6: 12 | Q6: 0 | R6: 0 | S6: 0 | T6: 743 | U6: 748 | V6: 989 | W6: 1252 | X6: 1505 | Y6: 1730.75 | Z6: 991.2316495 | AA6: 998.1343768 | AB6: 1328.084745 | AC6: 1688.407113 | AD6: 2043.2073 | AE6: 2349.688395
A7: AK001 | B7: AK001000216 | C7: Cordova | D7: 16 | K7: 1035.67033 | L7: 36.41666667 | M7: 0 | N7: 0 | O7: 0 | P7: 16 | Q7: 0 | R7: 0 | S7: 0 | T7: 793 | U7: 924 | V7: 1222 | W7: 1531 | X7: 1860 | Y7: 2139 | Z7: 891.4217222 | AA7: 958.6786905 | AB7: 1274.679684 | AC7: 1598.153674 | AD7: 1962.19536 | AE7: 2256.524664
A8: AK001 | B8: AK001000244 | C8: Wasilla | D8: 32 | K8: 635.1015625 | L8: 73.25 | M8: 0 | N8: 32 | O8: 0 | P8: 0 | Q8: 0 | R8: 0 | S8: 0 | T8: 768 | U8: 815 | V8: 1078 | W8: 1559 | X8: 1893 | Y8: 2176.95 | Z8: 1042.054591 | AA8: 1175.831869 | AB8: 1564.490068 | AC8: 2275.621917 | AD8: 2755.811938 | AE8: 3169.183729
A9: AK001 | B9: AK001000247 | C9: Anchorage Central | D9: 120 | K9: 737.6458333 | L9: 0 | M9: 0 | N9: 120 | O9: 0 | P9: 0 | Q9: 0 | R9: 0 | S9: 0 | T9: 931 | U9: 1005 | V9: 1313 | W9: 1898 | X9: 2306 | Y9: 2651.9 | Z9: 1139.071108 | AA9: 1277.289921 | AB9: 1649.987076 | AC9: 2400.317774 | AD9: 2906.297356 | AE9: 3342.241959
A10: AK001 | B10: AK001000257 | C10: Bethel | D10: 117 | K10: 1212.52 | L10: 28.5 | M10: 0 | N10: 0 | O10: 0 | P10: 92 | Q10: 20 | R10: 5 | S10: 0 | T10: 1151 | U10: 1365 | V10: 1563 | W10: 1958 | X10: 2113 | Y10: 2429.95 | Z10: 939.2138624 | AA10: 1145.166241 | AB10: 1314.721862 | AC10: 1648.506751 | AD10: 1790.542874 | AE10: 2059.124305
A11: AK001 | B11: AK001000260 | C11: Nome | D11: 33 | K11: 1084 | L11: 28.91666667 | M11: 0 | N11: 0 | O11: 8 | P11: 20 | Q11: 5 | R11: 0 | S11: 0 | T11: 1027 | U11: 1340 | V11: 1599 | W11: 2003 | X11: 2161 | Y11: 2485.15 | Z11: 825.9440122 | AA11: 1094.162944 | AB11: 1295.114271 | AC11: 1623.788898 | AD11: 1764.284529 | AE11: 2028.927209
A12: AK001 | B12: AK001000263 | C12: Valdez | D12: 7 | K12: 847.7619048 | L12: 52.5 | M12: 0 | N12: 0 | O12: 4 | P12: 3 | Q12: 0 | R12: 0 | S12: 0 | T12: 793 | U12: 924 | V12: 1222 | W12: 1531 | X12: 1860 | Y12: 2139 | Z12: 817.3042637 | AA12: 878.9691362 | AB12: 1168.696157 | AC12: 1465.27483 | AD12: 1799.048188 | AE12: 2068.905416
A13: AK001 | B13: AK001000265 | C13: Kodiak | D13: 40 | K13: 900.725 | L13: 19.83333333 | M13: 0 | N13: 10 | O13: 17 | P13: 10 | Q13: 3 | R13: 0 | S13: 0 | T13: 954 | U13: 1031 | V13: 1222 | W13: 1646 | X13: 1652 | Y13: 1899.8 | Z13: 1020.610075 | AA13: 1050.160033 | AB13: 1205.865579 | AC13: 1753.676332 | AD13: 1975.301014 | AE13: 2271.596166
A14: AK001 | B14: AK001000271 | C14: ANCHORAGE SOUTH | D14: 178 | K14: 835.286985 | L14: 41.08333333 | M14: 0 | N14: 0 | O14: 122 | P14: 55 | Q14: 0 | R14: 1 | S14: 0 | T14: 931 | U14: 1005 | V14: 1313 | W14: 1898 | X14: 2306 | Y14: 2651.9 | Z14: 850.2828533 | AA14: 953.4591042 | AB14: 1231.666495 | AC14: 1791.766143 | AD14: 2169.464918 | AE14: 2494.884656
A15: AK001 | B15: AK001000274 | C15: ANCHORAGE EAST | D15: 193 | K15: 817.7106211 | L15: 35.41666667 | M15: 9 | N15: 32 | O15: 79 | P15: 71 | Q15: 2 | R15: 0 | S15: 0 | T15: 931 | U15: 1005 | V15: 1313 | W15: 1898 | X15: 2306 | Y15: 2651.9 | Z15: 841.7235855 | AA15: 943.8612254 | AB15: 1219.268076 | AC15: 1773.729549 | AD15: 2147.626266 | AE15: 2469.770206
A16: AK001 | B16: AK001000275 | C16: FAIRBANKS | D16: 165 | K16: 929.1136364 | L16: 28.75 | M16: 0 | N16: 60 | O16: 4 | P16: 74 | Q16: 23 | R16: 4 | S16: 0 | T16: 871 | U16: 1025 | V16: 1356 | W16: 1961 | X16: 2382 | Y16: 2739.3 | Z16: 729.4446747 | AA16: 859.7921767 | AB16: 1143.047325 | AC16: 1662.766211 | AD16: 2012.866233 | AE16: 2314.796168
A17: AK001 | B17: AK001000277 | C17: JUNEAU | D17: 207 | K17: 769.0273752 | L17: 15.25 | M17: 0 | N17: 85 | O17: 53 | P17: 50 | Q17: 17 | R17: 2 | S17: 0 | T17: 936 | U17: 1101 | V17: 1457 | W17: 2083 | X17: 2559 | Y17: 2942.85 | Z17: 755.8457955 | AA17: 890.4029591 | AB17: 1184.43528 | AC17: 1693.592942 | AD17: 2086.466636 | AE17: 2399.436631
A18: AK001 | B18: AK001000279 | C18: KETCHIKAN | D18: 73 | K18: 761.0639269 | L18: 5.916666667 | M18: 0 | N18: 57 | O18: 0 | P18: 16 | Q18: 0 | R18: 0 | S18: 0 | T18: 854 | U18: 1005 | V18: 1330 | W18: 1785 | X18: 2336 | Y18: 2686.4 | Z18: 950.2573355 | AA18: 1119.903776 | AB18: 1488.855126 | AC18: 1956.272592 | AD18: 2621.808629 | AE18: 3015.079923
A19: AK001 | B19: AK001000280 | C19: SITKA | D19: 44 | K19: 770.5170455 | L19: 45.66666667 | M19: 0 | N19: 24 | O19: 8 | P19: 10 | Q19: 2 | R19: 0 | S19: 0 | T19: 916 | U19: 1050 | V19: 1253 | W19: 1786 | X19: 2201 | Y19: 2531.15 | Z19: 891.6188542 | AA19: 994.3080688 | AB19: 1245.106728 | AC19: 1730.905705 | AD19: 2193.007171 | AE19: 2521.958246
A20: AL001 | B20: AL001000001 | C20: ELYTON VILLAGE | D20: 478 | K20: 572.0181311 | L20: 103.3333333 | M20: 0 | N20: 38 | O20: 382 | P20: 58 | Q20: 0 | R20: 0 | S20: 0 | T20: 706 | U20: 763 | V20: 873 | W20: 1154 | X20: 1282 | Y20: 1474.3 | Z20: 592.5028644 | AA20: 657.5754333 | AB20: 755.1842867 | AC20: 1006.912382 | AD20: 1125.926686 | AE20: 1294.815689
A21: AL001 | B21: AL001000004 | C21: SOUTHTOWN | D21: 455 | K21: 527.9868132 | L21: 97 | M21: 0 | N21: 164 | O21: 199 | P21: 92 | Q21: 0 | R21: 0 | S21: 0 | T21: 706 | U21: 763 | V21: 873 | W21: 1154 | X21: 1282 | Y21: 1474.3 | Z21: 557.2848669 | AA21: 618.4895632 | AB21: 710.2966078 | AC21: 947.0621437 | AD21: 1059.002312 | AE21: 1217.852659
A22: AL001 | B22: AL001000006 | C22: CHARLES P MARKS VILLAGE | D22: 500 | K22: 593.6650677 | L22: 139.25 | M22: 0 | N22: 50 | O22: 201 | P22: 201 | Q22: 40 | R22: 8 | S22: 0 | T22: 706 | U22: 763 | V22: 873 | W22: 1154 | X22: 1282 | Y22: 1474.3 | Z22: 543.5962817 | AA22: 603.2976075 | AB22: 692.8495961 | AC22: 923.7994615 | AD22: 1032.990044 | AE22: 1187.938551
A23: AL001 | B23: AL001000007 | C23: JOSEPH H LOVEMAN VILLAGE | D23: 280 | K23: 1224.048148 | L23: 129.25 | M23: 0 | N23: 18 | O23: 101 | P23: 101 | Q23: 50 | R23: 10 | S23: 0 | T23: 706 | U23: 763 | V23: 873 | W23: 1154 | X23: 1282 | Y23: 1474.3 | Z23: 589.4923592 | AA23: 654.2342946 | AB23: 751.3471977 | AC23: 1001.796264 | AD23: 1120.205856 | AE23: 1288.236734
A24: AL001 | B24: AL001000009 | C24: SMITHFIELD COURT | D24: 456 | K24: 484.0100733 | L24: 85 | M24: 16 | N24: 300 | O24: 100 | P24: 40 | Q24: 0 | R24: 0 | S24: 0 | T24: 706 | U24: 763 | V24: 873 | W24: 1154 | X24: 1282 | Y24: 1474.3 | Z24: 567.7147558 | AA24: 630.0649313 | AB24: 723.5901946 | AC24: 964.7869261 | AD24: 1078.822115 | AE24: 1240.645433
A25: AL001 | B25: AL001000010 | C25: TOM BROWN VILLAGE | D25: 248 | K25: 678.5519481 | L25: 136.5 | M25: 0 | N25: 32 | O25: 20 | P25: 42 | Q25: 108 | R25: 46 | S25: 0 | T25: 706 | U25: 763 | V25: 873 | W25: 1154 | X25: 1282 | Y25: 1474.3 | Z25: 518.8015962 | AA25: 575.7798062 | AB25: 661.2471212 | AC25: 881.6628282 | AD25: 985.8729755 | AE25: 1133.753922
A26: AL001 | B26: AL001000011 | C26: MORTON SIMPSON VILLAGE | D26: 456 | K26: 678.9763925 | L26: 137.8333333 | M26: 0 | N26: 64 | O26: 163 | P26: 181 | Q26: 48 | R26: 0 | S26: 0 | T26: 706 | U26: 763 | V26: 873 | W26: 1154 | X26: 1282 | Y26: 1474.3 | Z26: 601.3956987 | AA26: 667.4449373 | AB26: 766.5187952 | AC26: 1022.02506 | AD26: 1142.825641 | AE26: 1314.249488
A27: AL001 | B27: AL001000013 | C27: COLLEGEVILLE CENTER | D27: 394 | K27: 775.5074405 | L27: 123.5 | M27: 0 | N27: 54 | O27: 114 | P27: 126 | Q27: 64 | R27: 36 | S27: 0 | T27: 706 | U27: 763 | V27: 873 | W27: 1154 | X27: 1282 | Y27: 1474.3 | Z27: 633.2652697 | AA27: 702.8146345 | AB27: 807.1386818 | AC27: 1076.184909 | AD27: 1203.387037 | AE27: 1383.895093
A28: AL001 | B28: AL001000014 | C28: RUSSELL B HARRIS HOMES | D28: 188 | K28: 598.9064716 | L28: 104.9166667 | M28: 0 | N28: 52 | O28: 59 | P28: 57 | Q28: 10 | R28: 10 | S28: 0 | T28: 706 | U28: 763 | V28: 873 | W28: 1154 | X28: 1282 | Y28: 1474.3 | Z28: 573.6853993 | AA28: 636.6913102 | AB28: 731.2001766 | AC28: 974.9335688 | AD28: 1090.168064 | AE28: 1253.693273
A29: AL001 | B29: AL001000016 | C29: NORTH BIRMINGHAM HOMES | D29: 271 | K29: 692.0839483 | L29: 127.25 | M29: 0 | N29: 39 | O29: 62 | P29: 94 | Q29: 45 | R29: 31 | S29: 0 | T29: 706 | U29: 763 | V29: 873 | W29: 1154 | X29: 1282 | Y29: 1474.3 | Z29: 573.4676335 | AA29: 636.449628 | AB29: 730.9226196 | AC29: 974.5634928 | AD29: 1089.754246 | AE29: 1253.217383
A30: AL001 | B30: AL001000017 | C30: COOPER GREEN HOMES | D30: 227 | K30: 609.2176946 | L30: 95.75 | M30: 0 | N30: 50 | O30: 69 | P30: 67 | Q30: 36 | R30: 5 | S30: 0 | T30: 706 | U30: 763 | V30: 873 | W30: 1154 | X30: 1282 | Y30: 1474.3 | Z30: 568.4677934 | AA30: 630.9006724 | AB30: 724.549991 | AC30: 966.0666547 | AD30: 1080.253105 | AE30: 1242.29107
A31: AL001 | B31: AL001000018 | C31: RALPH KIMBROUGH HOMES | D31: 231 | K31: 602.3347123 | L31: 117.25 | M31: 0 | N31: 68 | O31: 64 | P31: 66 | Q31: 20 | R31: 13 | S31: 0 | T31: 706 | U31: 763 | V31: 873 | W31: 1154 | X31: 1282 | Y31: 1474.3 | Z31: 568.0234357 | AA31: 630.4075124 | AB31: 723.9836275 | AC31: 965.3115034 | AD31: 1079.408696 | AE31: 1241.320001
A32: AL001 | B32: AL001000023 | C32: ROOSEVELT CITY | D32: 118 | K32: 522.8987069 | L32: 285.5833333 | M32: 0 | N32: 4 | O32: 12 | P32: 55 | Q32: 39 | R32: 8 | S32: 0 | T32: 706 | U32: 763 | V32: 873 | W32: 1154 | X32: 1282 | Y32: 1474.3 | Z32: 489.6331306 | AA32: 543.4078674 | AB32: 624.0699728 | AC32: 832.093297 | AD32: 930.4444605 | AE32: 1070.01113
A33: AL001 | B33: AL001000031 | C33: Park Place | D33: 87 | K33: 639.1473988 | L33: 94.66666667 | M33: 0 | N33: 28 | O33: 39 | P33: 19 | Q33: 1 | R33: 0 | S33: 0 | T33: 706 | U33: 763 | V33: 873 | W33: 1154 | X33: 1282 | Y33: 1474.3 | Z33: 583.8891843 | AA33: 648.0157421 | AB33: 744.2055788 | AC33: 992.2741051 | AD33: 1109.558204 | AE33: 1275.991935
A34: AL001 | B34: AL001000032 | C34: Park Place II | D34: 85 | K34: 624.4843137 | L34: 94.41666667 | M34: 0 | N34: 23 | O34: 40 | P34: 22 | Q34: 0 | R34: 0 | S34: 0 | T34: 706 | U34: 763 | V34: 873 | W34: 1154 | X34: 1282 | Y34: 1474.3 | Z34: 568.0414905 | AA34: 630.4275502 | AB34: 724.0066397 | AC34: 965.3421862 | AD34: 1079.443006 | AE34: 1241.359457
A35: AL001 | B35: AL001000033 | C35: Park Place III | D35: 68 | K35: 516.3312578 | L35: 94 | M35: 0 | N35: 63 | O35: 5 | P35: 0 | Q35: 0 | R35: 0 | S35: 0 | T35: 706 | U35: 763 | V35: 873 | W35: 1154 | X35: 1282 | Y35: 1474.3 | Z35: 568.5109081 | AA35: 630.9485223 | AB35: 724.6049435 | AC35: 966.1399247 | AD35: 1080.335035 | AE35: 1242.38529
A36: AL001 | B36: AL001000034 | C36: TUXEDO TERRACE/HOPE IV-PHASE I | D36: 56 | K36: 877.6706408 | L36: 104.5833333 | M36: 0 | N36: 16 | O36: 24 | P36: 14 | Q36: 2 | R36: 0 | S36: 0 | T36: 706 | U36: 763 | V36: 873 | W36: 1154 | X36: 1282 | Y36: 1474.3 | Z36: 742.8570493 | AA36: 824.4425056 | AB36: 946.82069 | AC36: 1262.427587 | AD36: 1411.643092 | AE36: 1623.389556
A37: AL001 | B37: AL001000035 | C37: TUXEDO TERRACE II | D37: 54 | K37: 865.1790123 | L37: 121.8333333 | M37: 0 | N37: 4 | O37: 9 | P37: 38 | Q37: 3 | R37: 0 | S37: 0 | T37: 706 | U37: 763 | V37: 873 | W37: 1154 | X37: 1282 | Y37: 1474.3 | Z37: 632.2965742 | AA37: 701.7395506 | AB37: 805.9040152 | AC37: 1074.538687 | AD37: 1201.546236 | AE37: 1381.778171
A38: AL001 | B38: AL001000037 | C38: GLENBROOK AT OXMOOR-HOPEVI PHASE I | D38: 50 | K38: 505.7616667 | L38: 112.3333333 | M38: 0 | N38: 10 | O38: 30 | P38: 10 | Q38: 0 | R38: 0 | S38: 0 | T38: 706 | U38: 763 | V38: 873 | W38: 1154 | X38: 1282 | Y38: 1474.3 | Z38: 485.3544535 | AA38: 538.6592779 | AB38: 618.6165145 | AC38: 824.8220193 | AD38: 922.3137376 | AE38: 1060.660798
A39: AL001 | B39: AL001000040 | C39: MASON CITY I | D39: 6 | K39: 488.8450704 | L39: 0 | M39: 0 | N39: 0 | O39: 0 | P39: 5 | Q39: 1 | R39: 0 | S39: 0 | T39: 706 | U39: 763 | V39: 873 | W39: 1154 | X39: 1282 | Y39: 1474.3 | Z39: 385.6050578 | AA39: 427.9547462 | AB39: 491.4792789 | AC39: 655.3057052 | AD39: 732.7610564 | AE39: 842.6752148
A40: AL001 | B40: AL001000042 | C40: MASON CITY III | D40: 8 | K40: 490.6896552 | L40: 26.25 | M40: 0 | N40: 0 | O40: 0 | P40: 5 | Q40: 3 | R40: 0 | S40: 0 | T40: 706 | U40: 763 | V40: 873 | W40: 1154 | X40: 1282 | Y40: 1474.3 | Z40: 378.8587141 | AA40: 420.4674746 | AB40: 482.8806153 | AC40: 643.8408204 | AD40: 719.9410535 | AE40: 827.9322115
A41: AL001 | B41: AL001000043 | C41: MASON CITY IV | D41: 1 | K41: 479.9166667 | L41: 0 | M41: 0 | N41: 0 | O41: 0 | P41: 1 | Q41: 0 | R41: 0 | S41: 0 | T41: 706 | U41: 763 | V41: 873 | W41: 1154 | X41: 1282 | Y41: 1474.3 | Z41: 385.2788927 | AA41: 427.5927596 | AB41: 491.0635598 | AC41: 654.7514131 | AD41: 732.1412485 | AE41: 841.9624357
A42: AL001 | B42: AL001000044 | C42: Tuxedo Terrace Phase I | D42: 9 | K42: 459.271028 | L42: 0 | M42: 0 | N42: 0 | O42: 0 | P42: 9 | Q42: 0 | R42: 0 | S42: 0 | T42: 706 | U42: 763 | V42: 873 | W42: 1154 | X42: 1282 | Y42: 1474.3 | Z42: 370.1213036 | AA42: 410.7704641 | AB42: 471.7442048 | AC42: 628.9922731 | AD42: 703.3374483 | AE42: 808.8380655
A43: AL001 | B43: AL001000045 | C43: Tuxedo Terrace Phase II | D43: 6 | K43: 479.8888889 | L43: 0 | M43: 0 | N43: 0 | O43: 0 | P43: 6 | Q43: 0 | R43: 0 | S43: 0 | T43: 706 | U43: 763 | V43: 873 | W43: 1154 | X43: 1282 | Y43: 1474.3 | Z43: 382.8148129 | AA43: 424.8580582 | AB43: 487.9229263 | AC43: 650.5639017 | AD43: 727.4587846 | AE43: 836.5776023
A44: AL001 | B44: AL001000046 | C44: TUXEDO TRACE III | D44: 6 | K44: 459.1944444 | L44: 0 | M44: 0 | N44: 0 | O44: 0 | P44: 6 | Q44: 0 | R44: 0 | S44: 0 | T44: 706 | U44: 763 | V44: 873 | W44: 1154 | X44: 1282 | Y44: 1474.3 | Z44: 370.2221313 | AA44: 410.8823654 | AB44: 471.8727165 | AC44: 629.163622 | AD44: 703.5290501 | AE44: 809.0584076
A45: AL002 | B45: AL002000001 | C45: OAKLAWN HOMES | D45: 100 | K45: 667.5757906 | L45: 44.58333333 | M45: 0 | N45: 16 | O45: 64 | P45: 20 | Q45: 0 | R45: 0 | S45: 0 | T45: 677 | U45: 681 | V45: 848 | W45: 1122 | X45: 1274 | Y45: 1465.1 | Z45: 647.596289 | AA45: 651.4112892 | AB45: 801.1500483 | AC45: 1051.032563 | AD45: 1216.985073 | AE45: 1399.532834
A46: AL002 | B46: AL002000002 | C46: ORANGE GROVE HOMES | D46: 247 | K46: 516.1575053 | L46: 61.41666667 | M46: 0 | N46: 32 | O46: 164 | P46: 51 | Q46: 0 | R46: 0 | S46: 0 | T46: 677 | U46: 681 | V46: 848 | W46: 1122 | X46: 1274 | Y46: 1465.1 | Z46: 537.648801 | AA46: 540.8160988 | AB46: 665.1325373 | AC46: 872.590543 | AD46: 1010.367997 | AE46: 1161.923197
A47: AL002 | B47: AL002000005 | C47: THOMAS JAMES PLACE | D47: 796 | K47: 511.2684062 | L47: 127.5 | M47: 0 | N47: 132 | O47: 463 | P47: 197 | Q47: 0 | R47: 4 | S47: 0 | T47: 677 | U47: 681 | V47: 848 | W47: 1122 | X47: 1274 | Y47: 1465.1 | Z47: 531.26896 | AA47: 534.398674 | AB47: 657.2399505 | AC47: 862.2362208 | AD47: 998.3787819 | AE47: 1148.135599
A48: AL002 | B48: AL002000006 | C48: GULF VILLAGE | D48: 199 | K48: 609.1425993 | L48: 46.16666667 | M48: 0 | N48: 30 | O48: 120 | P48: 49 | Q48: 0 | R48: 0 | S48: 0 | T48: 677 | U48: 681 | V48: 848 | W48: 1122 | X48: 1274 | Y48: 1465.1 | Z48: 606.1069027 | AA48: 609.6774883 | AB48: 749.8229725 | AC48: 983.6963282 | AD48: 1139.016801 | AE48: 1309.869321
A49: AL002 | B49: AL002000008 | C49: JOSEPHINE ALLEN HOMES | D49: 275 | L49: 0 | M49: 0 | N49: 57 | O49: 58 | P49: 111 | Q49: 36 | R49: 13 | S49: 0 | T49: 677 | U49: 681 | V49: 848 | W49: 1122 | X49: 1274 | Y49: 1465.1 | Z49: 436.1344149 | AA49: 438.7036898 | AB49: 539.5477297 | AC49: 707.8352359 | AD49: 819.5986942 | AE49: 942.5384984
A50: AL002 | B50: AL002000010 | C50: R V TAYLOR PLAZA | D50: 450 | K50: 698.3506429 | L50: 47.58333333 | M50: 0 | N50: 144 | O50: 68 | P50: 198 | Q50: 28 | R50: 12 | S50: 0 | T50: 677 | U50: 681 | V50: 848 | W50: 1122 | X50: 1274 | Y50: 1465.1 | Z50: 606.8182763 | AA50: 610.3930526 | AB50: 750.7030222 | AC50: 984.8508696 | AD50: 1140.353638 | AE50: 1311.406684
A51: AL002 | B51: AL002000012 | C51: CENTRAL PLAZA TOWERS | D51: 465 | K51: 514.2273254 | L51: 0 | M51: 196 | N51: 234 | O51: 33 | P51: 2 | Q51: 0 | R51: 0 | S51: 0 | T51: 677 | U51: 681 | V51: 848 | W51: 1122 | X51: 1274 | Y51: 1465.1 | Z51: 660.5946655 | AA51: 664.4862394 | AB51: 817.230514 | AC51: 1072.128603 | AD51: 1241.412066 | AE51: 1427.623876
A52: AL002 | B52: AL002000013 | C52: Emerson Gardens | D52: 94 | K52: 404.5141844 | L52: 104.9166667 | M52: 0 | N52: 86 | O52: 8 | P52: 0 | Q52: 0 | R52: 0 | S52: 0 | T52: 677 | U52: 681 | V52: 848 | W52: 1122 | X52: 1274 | Y52: 1465.1 | Z52: 565.8079941 | AA52: 569.1411781 | AB52: 699.9686524 | AC52: 918.2922083 | AD52: 1063.285715 | AE52: 1222.778572
A53: AL002 | B53: AL002000016 | C53: FRANK W. BOYKIN TOWERS | D53: 122 | K53: 503.3482143 | L53: 0 | M53: 0 | N53: 109 | O53: 13 | P53: 0 | Q53: 0 | R53: 0 | S53: 0 | T53: 677 | U53: 681 | V53: 848 | W53: 1122 | X53: 1274 | Y53: 1465.1 | Z53: 660.5724482 | AA53: 664.4638912 | AB53: 817.2030288 | AC53: 1072.092545 | AD53: 1241.370315 | AE53: 1427.575862
A54: AL002 | B54: AL002000019 | C54: DOWNTOWN RENAISSANCE I LP | D54: 57 | K54: 395.2865497 | L54: 88.25 | M54: 0 | N54: 47 | O54: 10 | P54: 0 | Q54: 0 | R54: 0 | S54: 0 | T54: 677 | U54: 681 | V54: 848 | W54: 1122 | X54: 1274 | Y54: 1465.1 | Z54: 473.7228062 | AA54: 476.513515 | AB54: 586.0488325 | AC54: 768.840254 | AD54: 890.2360836 | AE54: 1023.771496
A55: AL002 | B55: AL002000020 | C55: Renaissance Townhouses | D55: 48 | K55: 490.7597865 | L55: 213.6666667 | M55: 0 | N55: 0 | O55: 15 | P55: 33 | Q55: 0 | R55: 0 | S55: 0 | T55: 677 | U55: 681 | V55: 848 | W55: 1122 | X55: 1274 | Y55: 1465.1 | Z55: 420.424024 | AA55: 422.9007487 | AB55: 520.1121946 | AC55: 682.3376649 | AD55: 790.0751909 | AE55: 908.5864695
A56: AL002 | B56: AL002000021 | C56: THE RENAISSANCE FAMILY | D56: 87 | K56: 457.3019417 | L56: 145.8333333 | M56: 0 | N56: 14 | O56: 53 | P56: 20 | Q56: 0 | R56: 0 | S56: 0 | T56: 677 | U56: 681 | V56: 848 | W56: 1122 | X56: 1274 | Y56: 1465.1 | Z56: 453.5647414 | AA56: 456.2366986 | AB56: 561.1110202 | AC56: 736.1242194 | AD56: 852.3543593 | AE56: 980.2075132
A57: AL004 | B57: AL004000001 | C57: GLENADDIE HOMES | D57: 264 | K57: 476.2238005 | L57: 124.9166667 | M57: 0 | N57: 66 | O57: 116 | P57: 70 | Q57: 10 | R57: 2 | S57: 0 | T57: 457 | U57: 513 | V57: 676 | W57: 886 | X57: 1031 | Y57: 1185.65 | Z57: 437.1144046 | AA57: 468.2714062 | AB57: 622.2236494 | AC57: 812.8311885 | AD57: 948.4557836 | AE57: 1090.724151
A58: AL004 | B58: AL004000002 | C58: COOPER HOMES | D58: 229 | K58: 691.2664042 | L58: 126 | M58: 0 | N58: 26 | O58: 92 | P58: 79 | Q58: 30 | R58: 2 | S58: 0 | T58: 457 | U58: 513 | V58: 676 | W58: 886 | X58: 1031 | Y58: 1185.65 | Z58: 417.917609 | AA58: 447.7062855 | AB58: 594.8973931 | AC58: 777.1340025 | AD58: 906.8023592 | AE58: 1042.822713
A59: AL004 | B59: AL004000003 | C59: CONSTANTINE HOMES | D59: 255 | K59: 502.4324147 | L59: 133.75 | M59: 0 | N59: 36 | O59: 114 | P59: 81 | Q59: 20 | R59: 4 | S59: 0 | T59: 457 | U59: 513 | V59: 676 | W59: 886 | X59: 1031 | Y59: 1185.65 | Z59: 428.8954753 | AA59: 459.4666413 | AB59: 610.5241672 | AC59: 797.5477706 | AD59: 930.6222577 | AE59: 1070.215596
A60: AL005 | B60: AL005000001 | C60: RIVERVIEW | D60: 202 | K60: 445.7042484 | L60: 87.91666667 | M60: 0 | N60: 72 | O60: 72 | P60: 58 | Q60: 0 | R60: 0 | S60: 0 | T60: 643 | U60: 714 | V60: 862 | W60: 1175 | X60: 1514 | Y60: 1741.1 | Z60: 446.6760208 | AA60: 492.7102645 | AB60: 591.9716024 | AC60: 821.4235358 | AD60: 1042.963334 | AE60: 1199.407834
A61: AL005 | B61: AL005000002 | C61: DOUGLAS | D61: 272 | K61: 443.2135417 | L61: 88.66666667 | M61: 0 | N61: 91 | O61: 128 | P61: 45 | Q61: 8 | R61: 0 | S61: 0 | T61: 643 | U61: 714 | V61: 862 | W61: 1175 | X61: 1514 | Y61: 1741.1 | Z61: 449.321416 | AA61: 495.628293 | AB61: 595.4774966 | AC61: 826.2883367 | AD61: 1049.140182 | AE61: 1206.51121
A62: AL005 | B62: AL005000005 | C62: STOUGH | D62: 200 | K62: 452.7266667 | L62: 110.1666667 | M62: 0 | N62: 30 | O62: 92 | P62: 58 | Q62: 14 | R62: 6 | S62: 0 | T62: 643 | U62: 714 | V62: 862 | W62: 1175 | X62: 1514 | Y62: 1741.1 | Z62: 416.1916423 | AA62: 459.0841787 | AB62: 551.5712104 | AC62: 765.3636965 | AD62: 971.784028 | AE62: 1117.551632
A63: AL005 | B63: AL005000006 | C63: BLAKE | D63: 71 | K63: 372.0223005 | L63: 77.66666667 | M63: 12 | N63: 58 | O63: 1 | P63: 0 | Q63: 0 | R63: 0 | S63: 0 | T63: 643 | U63: 714 | V63: 862 | W63: 1175 | X63: 1514 | Y63: 1741.1 | Z63: 498.1350037 | AA63: 549.4725886 | AB63: 660.1692561 | AC63: 916.055031 | AD63: 1163.117158 | AE63: 1337.584732
A64: AL006 | B64: AL006000002 | C64: PARKS PLACE | D64: 150 | K64: 439.4064479 | L64: 82.66666667 | M64: 0 | N64: 48 | O64: 70 | P64: 32 | Q64: 0 | R64: 0 | S64: 0 | T64: 581 | U64: 696 | V64: 825 | W64: 1043 | X64: 1436 | Y64: 1651.4 | Z64: 417.5221433 | AA64: 490.6595255 | AB64: 588.6494163 | AC64: 749.1256142 | AD64: 1030.313996 | AE64: 1184.861096
A65: AL006 | B65: AL006000004 | C65: PATERSON COURT | D65: 200 | K65: 414.8308333 | L65: 97.66666667 | M65: 14 | N65: 101 | O65: 58 | P65: 23 | Q65: 4 | R65: 0 | S65: 0 | T65: 581 | U65: 696 | V65: 825 | W65: 1043 | X65: 1436 | Y65: 1651.4 | Z65: 427.6233297 | AA65: 502.5301374 | AB65: 602.8907148 | AC65: 767.2493415 | AD65: 1055.240564 | AE65: 1213.526648
A66: AL006 | B66: AL006000006 | C66: GIBBS VILLAGE | D66: 314 | K66: 478.5469041 | L66: 111.6666667 | M66: 0 | N66: 74 | O66: 122 | P66: 64 | Q66: 40 | R66: 14 | S66: 0 | T66: 581 | U66: 696 | V66: 825 | W66: 1043 | X66: 1436 | Y66: 1651.4 | Z66: 406.4845641 | AA66: 477.6884928 | AB66: 573.0879313 | AC66: 729.3217944 | AD66: 1003.076705 | AE66: 1153.538211
A67: AL006 | B67: AL006000007 | C67: GIBBS VILLAGE | D67: 192 | K67: 460.6855263 | L67: 105.3333333 | M67: 0 | N67: 52 | O67: 84 | P67: 56 | Q67: 0 | R67: 0 | S67: 0 | T67: 581 | U67: 696 | V67: 825 | W67: 1043 | X67: 1436 | Y67: 1651.4 | Z67: 440.3880079 | AA67: 517.5308052 | AB67: 620.8871744 | AC67: 790.151953 | AD67: 1086.739795 | AE67: 1249.750764
A68: AL006 | B68: AL006000008 | C68: SMILEY COURT | D68: 284 | K68: 536.4063066 | L68: 0 | M68: 0 | N68: 51 | O68: 92 | P68: 94 | Q68: 30 | R68: 17 | S68: 0 | T68: 581 | U68: 696 | V68: 825 | W68: 1043 | X68: 1436 | Y68: 1651.4 | Z68: 418.2387635 | AA68: 491.5016762 | AB68: 589.6597533 | AC68: 750.4113869 | AD68: 1032.082391 | AE68: 1186.89475
A69: AL006 | B69: AL006000009 | C69: RICHARDSON TERRACE | D69: 90 | K69: 465.5592593 | L69: 0 | M69: 0 | N69: 86 | O69: 4 | P69: 0 | Q69: 0 | R69: 0 | S69: 0 | T69: 581 | U69: 696 | V69: 825 | W69: 1043 | X69: 1436 | Y69: 1651.4 | Z69: 533.8231975 | AA69: 627.3330433 | AB69: 752.6180795 | AC69: 957.7950227 | AD69: 1317.308605 | AE69: 1514.904895
A70: AL006 | B70: AL006000011 | C70: Victor Tulane Gardens | D70: 102 | K70: 508.8627451 | L70: 119.1666667 | M70: 0 | N70: 0 | O70: 46 | P70: 50 | Q70: 6 | R70: 0 | S70: 0 | T70: 581 | U70: 696 | V70: 825 | W70: 1043 | X70: 1436 | Y70: 1651.4 | Z70: 384.4754439 | AA70: 451.8240335 | AB70: 542.0580663 | AC70: 689.8326416 | AD70: 948.7650834 | AE70: 1091.079846
A71: AL006 | B71: AL006000012 | C71: THE PLAZA AT CENTENNIAL HILL | D71: 66 | K71: 523.6507732 | L71: 133.9166667 | M71: 0 | N71: 0 | O71: 34 | P71: 32 | Q71: 0 | R71: 0 | S71: 0 | T71: 581 | U71: 696 | V71: 825 | W71: 1043 | X71: 1436 | Y71: 1651.4 | Z71: 402.1390906 | AA71: 472.5818224 | AB71: 566.9614049 | AC71: 721.5250689 | AD71: 992.3534361 | AE71: 1141.206451
A72: AL006 | B72: AL006000013 | C72: The Plaza at Centennial Hill 2 | D72: 42 | K72: 472.4814815 | L72: 131 | M72: 0 | N72: 0 | O72: 28 | P72: 14 | Q72: 0 | R72: 0 | S72: 0 | T72: 581 | U72: 696 | V72: 825 | W72: 1043 | X72: 1436 | Y72: 1651.4 | Z72: 394.3578432 | AA72: 463.4375334 | AB72: 555.9909048 | AC72: 707.5638173 | AD72: 973.1517526 | AE72: 1119.124515
A73: AL007 | B73: AL007000010 | C73: HENRY GREEN APTS. | D73: 99 | K73: 429.6792929 | L73: 149.5833333 | M73: 0 | N73: 24 | O73: 51 | P73: 12 | Q73: 12 | R73: 0 | S73: 0 | T73: 515 | U73: 519 | V73: 682 | W73: 906 | X73: 1047 | Y73: 1204.05 | Z73: 437.0775872 | AA73: 440.3700737 | AB73: 572.069535 | AC73: 768.7956053 | AD73: 897.2025801 | AE73: 1031.782967
A74: AL007 | B74: AL007000020 | C74: MCRAE HOMES | D74: 92 | K74: 434.5652174 | L74: 152.8333333 | M74: 0 | N74: 16 | O74: 45 | P74: 25 | Q74: 6 | R74: 0 | S74: 0 | T74: 515 | U74: 519 | V74: 682 | W74: 906 | X74: 1047 | Y74: 1204.05 | Z74: 433.3068261 | AA74: 436.5709077 | AB74: 567.1341698 | AC74: 762.1630425 | AD74: 889.4622231 | AE74: 1022.881557
A75: AL007 | B75: AL007000030 | C75: MARTIN HOMES | D75: 148 | K75: 445.4363739 | L75: 153.8333333 | M75: 0 | N75: 22 | O75: 66 | P75: 36 | Q75: 22 | R75: 2 | S75: 0 | T75: 515 | U75: 519 | V75: 682 | W75: 906 | X75: 1047 | Y75: 1204.05 | Z75: 418.0955728 | AA75: 421.2450687 | AB75: 547.2249023 | AC75: 735.4072787 | AD75: 858.2376165 | AE75: 986.973259
A76: AL007 | B76: AL007000040 | C76: JOHNSON | D76: 214 | K76: 404.3321651 | L76: 148.0833333 | M76: 0 | N76: 42 | O76: 101 | P76: 47 | Q76: 24 | R76: 0 | S76: 0 | T76: 515 | U76: 519 | V76: 682 | W76: 906 | X76: 1047 | Y76: 1204.05 | Z76: 416.1314447 | AA76: 419.2661449 | AB76: 544.6541508 | AC76: 731.9524847 | AD76: 854.2057905 | AE76: 982.336659
A77: AL007 | B77: AL007000050 | C77: USSERY AND MARVIN LEWIS VILLAGE | D77: 117 | K77: 388.9138177 | L77: 130.5 | M77: 0 | N77: 64 | O77: 24 | P77: 28 | Q77: 1 | R77: 0 | S77: 0 | T77: 515 | U77: 519 | V77: 682 | W77: 906 | X77: 1047 | Y77: 1204.05 | Z77: 457.0797028 | AA77: 460.5228644 | AB77: 598.2493285 | AC77: 803.9782343 | AD77: 938.2615369 | AE77: 1079.000767
A78: AL008 | B78: AL008000002 | C78: GEORGE WASHINGTON CARVER | D78: 216 | K78: 418.8774351 | L78: 113 | M78: 0 | N78: 48 | O78: 84 | P78: 64 | Q78: 16 | R78: 4 | S78: 0 | T78: 507 | U78: 524 | V78: 628 | W78: 812 | X78: 890 | Y78: 1023.5 | Z78: 415.3916527 | AA78: 453.0748617 | AB78: 531.0703408 | AC78: 712.4755562 | AD78: 817.6379999 | AE78: 940.2836999
A79: AL008 | B79: AL008000003 | C79: FELIX HEIGHTS | D79: 127 | K79: 406.2326044 | L79: 96.58333333 | M79: 0 | N79: 30 | O79: 48 | P79: 49 | Q79: 0 | R79: 0 | S79: 0 | T79: 507 | U79: 524 | V79: 628 | W79: 812 | X79: 890 | Y79: 1023.5 | Z79: 420.7831201 | AA79: 458.9554284 | AB79: 537.9632295 | AC79: 721.7229465 | AD79: 828.2503186 | AE79: 952.4878664
A80: AL008 | B80: AL008000007 | C80: VALLEY CREEK HOMES | D80: 100 | K80: 416.5688312 | L80: 107.6666667 | M80: 0 | N80: 32 | O80: 38 | P80: 24 | Q80: 4 | R80: 2 | S80: 0 | T80: 507 | U80: 524 | V80: 628 | W80: 812 | X80: 890 | Y80: 1023.5 | Z80: 433.6473243 | AA80: 472.9866386 | AB80: 554.4098704 | AC80: 743.7874993 | AD80: 853.5716321 | AE80: 981.6073769
A81: AL008 | B81: AL008000008 | C81: RANGEDALE | D81: 126 | K81: 422.688172 | L81: 105.4166667 | M81: 0 | N81: 21 | O81: 52 | P81: 36 | Q81: 13 | R81: 4 | S81: 0 | T81: 507 | U81: 524 | V81: 628 | W81: 812 | X81: 890 | Y81: 1023.5 | Z81: 419.2257628 | AA81: 457.2567919 | AB81: 535.9721777 | AC81: 719.051783 | AD81: 825.1848875 | AE81: 948.9626206
A82: AL008 | B82: AL008000012 | C82: Moss Court | D82: 12 | K82: 345.7304965 | L82: 71 | M82: 0 | N82: 12 | O82: 0 | P82: 0 | Q82: 0 | R82: 0 | S82: 0 | T82: 507 | U82: 524 | V82: 628 | W82: 812 | X82: 890 | Y82: 1023.5 | Z82: 402.599957 | AA82: 439.1227379 | AB82: 514.7164008 | AC82: 690.5353693 | AD82: 792.4594091 | AE82: 911.3283205
A83: AL009 | B83: AL009000003 | C83: HANBY MANOR | D83: 108 | K83: 485.1066978 | L83: 133 | M83: 0 | N83: 12 | O83: 41 | P83: 44 | Q83: 11 | R83: 0 | S83: 0 | T83: 497 | U83: 500 | V83: 662 | W83: 836 | X83: 969 | Y83: 1114.35 | Z83: 429.3457525 | AA83: 431.9531154 | AB83: 574.4889522 | AC83: 720.5012729 | AD83: 844.7855697 | AE83: 971.5034051
A84: AL010 | B84: AL010000001 | C84: DEMETRIUS C. NEWTON GARDENS | D84: 102 | K84: 575.126634 | L84: 111.6666667 | M84: 0 | N84: 16 | O84: 44 | P84: 32 | Q84: 10 | R84: 0 | S84: 0 | T84: 706 | U84: 763 | V84: 873 | W84: 1154 | X84: 1282 | Y84: 1474.3 | Z84: 518.702237 | AA84: 575.6695347 | AB84: 661.1204812 | AC84: 881.493975 | AD84: 985.6841642 | AE84: 1133.536789
A85: AL010 | B85: AL010000002 | C85: MATTIE G. JACKSON GARDENS | D85: 196 | K85: 557.0612245 | L85: 155.8333333 | M85: 0 | N85: 39 | O85: 71 | P85: 56 | Q85: 24 | R85: 6 | S85: 0 | T85: 706 | U85: 763 | V85: 873 | W85: 1154 | X85: 1282 | Y85: 1474.3 | Z85: 510.6115886 | AA85: 566.6903179 | AB85: 650.808412 | AC85: 867.7445493 | AD85: 970.3095939 | AE85: 1115.856033
A86: AL011 | B86: AL011000001 | C86: WILLIAMS AVE. APTS. | D86: 191 | K86: 426.9528796 | L86: 114.75 | M86: 16 | N86: 48 | O86: 61 | P86: 56 | Q86: 10 | R86: 0 | S86: 0 | T86: 484 | U86: 487 | V86: 646 | W86: 833 | X86: 891 | Y86: 1024.65 | Z86: 445.1664918 | AA86: 448.4824434 | AB86: 594.3843103 | AC86: 746.9180803 | AD86: 819.8690138 | AE86: 942.8493659
A87: AL011 | B87: AL011000002 | C87: LOOKOUT COURTS | D87: 84 | K87: 461.2896825 | L87: 101.0833333 | M87: 0 | N87: 38 | O87: 20 | P87: 22 | Q87: 4 | R87: 0 | S87: 0 | T87: 484 | U87: 487 | V87: 646 | W87: 833 | X87: 891 | Y87: 1024.65 | Z87: 490.0734751 | AA87: 493.7239293 | AB87: 654.3439137 | AC87: 822.2648065 | AD87: 902.5747987 | AE87: 1037.961019
A88: AL011 | B88: AL011000003 | C88: VALLEY HEAD HA | D88: 8 | K88: 365.5 | L88: 161.25 | M88: 0 | N88: 2 | O88: 2 | P88: 2 | Q88: 2 | R88: 0 | S88: 0 | T88: 484 | U88: 487 | V88: 646 | W88: 833 | X88: 891 | Y88: 1024.65 | Z88: 372.4847137 | AA88: 375.259274 | AB88: 497.3399251 | AC88: 624.9696966 | AD88: 686.0100222 | AE88: 788.9115255
A89: AL012 | B89: AL012000001 | C89: BANKHEAD/CARVER APTS | D89: 136 | K89: 453.1511194 | L89: 129.75 | M89: 0 | N89: 19 | O89: 62 | P89: 47 | Q89: 8 | R89: 0 | S89: 0 | T89: 499 | U89: 502 | V89: 664 | W89: 832 | X89: 999 | Y89: 1148.85 | Z89: 417.3655738 | AA89: 419.8597903 | AB89: 544.5706191 | AC89: 688.403775 | AD89: 813.9460094 | AE89: 936.0379108
A90: AL012 | B90: AL012000006 | C90: PETREE/MATHEWS APTS | D90: 186 | K90: 409.2876344 | L90: 109.75 | M90: 64 | N90: 73 | O90: 23 | P90: 25 | Q90: 1 | R90: 0 | S90: 0 | T90: 499 | U90: 502 | V90: 664 | W90: 832 | X90: 999 | Y90: 1148.85 | Z90: 500.2811993 | AA90: 503.2709276 | AB90: 652.7573417 | AC90: 825.165006 | AD90: 975.6479962 | AE90: 1121.995196
A91: AL013 | B91: AL013000001 | C91: NESTLEWOOD | D91: 97 | K91: 520.8187285 | L91: 53.41666667 | M91: 0 | N91: 38 | O91: 41 | P91: 16 | Q91: 2 | R91: 0 | S91: 0 | T91: 706 | U91: 763 | V91: 873 | W91: 1154 | X91: 1282 | Y91: 1474.3 | Z91: 516.7190691 | AA91: 573.4685622 | AB91: 658.5928019 | AC91: 878.1237359 | AD91: 981.915572 | AE91: 1129.202908
A92: AL014 | B92: AL014000100 | C92: HEMBREE HOMES | D92: 144 | K92: 402.1672454 | L92: 75.66666667 | M92: 0 | N92: 40 | O92: 55 | P92: 40 | Q92: 9 | R92: 0 | S92: 0 | T92: 483 | U92: 486 | V92: 643 | W92: 866 | X92: 869 | Y92: 999.35 | Z92: 414.8517552 | AA92: 417.5110613 | AB92: 552.2492382 | AC92: 749.0378913 | AD92: 752.5836328 | AE92: 865.4711777
A93: AL014 | B93: AL014000200 | C93: CRAIN COURTS | D93: 140 | K93: 401.1446429 | L93: 78.66666667 | M93: 1 | N93: 33 | O93: 51 | P93: 35 | Q93: 17 | R93: 3 | S93: 0 | T93: 483 | U93: 486 | V93: 643 | W93: 866 | X93: 869 | Y93: 999.35 | Z93: 413.7291749 | AA93: 416.381285 | AB93: 550.7548631 | AC93: 747.0110102 | AD93: 750.547157 | AE93: 863.1292305
A94: AL014 | B94: AL014000300 | C94: ADDN MARTIN MANOR | D94: 66 | K94: 430.4760101 | L94: 0 | M94: 34 | N94: 28 | O94: 4 | P94: 0 | Q94: 0 | R94: 0 | S94: 0 | T94: 483 | U94: 486 | V94: 643 | W94: 866 | X94: 869 | Y94: 999.35 | Z94: 576.2963323 | AA94: 579.9905396 | AB94: 767.1637074 | AC94: 1040.535044 | AD94: 1045.460654 | AE94: 1202.279752
A95: AL047 | B95: AL047000002 | C95: BUTLER TERRACE | D95: 120 | K95: 510.9986111 | L95: 107.75 | M95: 0 | N95: 20 | O95: 62 | P95: 34 | Q95: 2 | R95: 2 | S95: 0 | T95: 586 | U95: 685 | V95: 809 | W95: 1084 | X95: 1421 | Y95: 1634.15 | Z95: 459.2396432 | AA95: 531.5192031 | AB95: 632.0054206 | AC95: 851.4884747 | AD95: 1113.281515 | AE95: 1280.273742
A96: AL047 | B96: AL047000003 | C96: SPARKMAN HOMES | D96: 166 | K96: 534.62249 | L96: 107.6666667 | M96: 0 | N96: 12 | O96: 71 | P96: 71 | Q96: 10 | R96: 2 | S96: 0 | T96: 586 | U96: 685 | V96: 809 | W96: 1084 | X96: 1421 | Y96: 1634.15 | Z96: 440.7193003 | AA96: 510.0839502 | AB96: 606.5177318 | AC96: 817.1494128 | AD96: 1068.384791 | AE96: 1228.64251
A97: AL047 | B97: AL047000004 | C97: BUTLER TERRACE ADDITION | D97: 134 | K97: 532.7523394 | L97: 108 | M97: 0 | N97: 12 | O97: 62 | P97: 50 | Q97: 8 | R97: 2 | S97: 0 | T97: 586 | U97: 685 | V97: 809 | W97: 1084 | X97: 1421 | Y97: 1634.15 | Z97: 446.1219399 | AA97: 516.3369094 | AB97: 613.9528425 | AC97: 827.1665911 | AD97: 1081.481785 | AE97: 1243.704053
A98: AL047 | B98: AL047000006 | C98: NORTHWOODS | D98: 447 | K98: 471.6329232 | L98: 94.5 | M98: 0 | N98: 106 | O98: 176 | P98: 120 | Q98: 36 | R98: 9 | S98: 0 | T98: 586 | U98: 685 | V98: 809 | W98: 1084 | X98: 1421 | Y98: 1634.15 | Z98: 425.6242145 | AA98: 492.6130544 | AB98: 585.7438806 | AC98: 789.1612116 | AD98: 1031.791522 | AE98: 1186.56025
A99: AL047 | B99: AL047000008 | C99: JOHNSON TOWERS | D99: 120 | K99: 464.5902778 | L99: 0 | M99: 38 | N99: 70 | O99: 11 | P99: 1 | Q99: 0 | R99: 0 | S99: 0 | T99: 586 | U99: 685 | V99: 809 | W99: 1084 | X99: 1421 | Y99: 1634.15 | Z99: 564.0942239 | AA99: 652.8768081 | AB99: 776.3062544 | AC99: 1045.90215 | AD99: 1367.468339 | AE99: 1572.58859
A100: AL047 | B100: AL047000010 | C100: SEARCY HOMES | D100: 78 | K100: 533.7831197 | L100: 105.4166667 | M100: 0 | N100: 9 | O100: 23 | P100: 17 | Q100: 22 | R100: 7 | S100: 0 | T100: 586 | U100: 685 | V100: 809 | W100: 1084 | X100: 1421 | Y100: 1634.15 | Z100: 400.0547778 | AA100: 463.0192533 | AB100: 550.5552316 | AC100: 741.7522367 | AD100: 969.8064958 | AE100: 1115.27747
A101: AL047 | B101: AL047000011 | C101: TODD TOWERS | D101: 100 | K101: 459.405 | L101: 0 | M101: 60 | N101: 37 | O101: 2 | P101: 1 | Q101: 0 | R101: 0 | S101: 0 | T101: 586 | U101: 685 | V101: 809 | W101: 1084 | X101: 1421 | Y101: 1634.15 | Z101: 581.8965264 | AA101: 673.4810084 | AB101: 800.8057762 | AC101: 1078.909874 | AD101: 1410.624401 | AE101: 1622.218061
A102: AL047 | B102: AL047000014 | C102: L.R. PATTON APTS. | D102: 110 | K102: 444.2386364 | L102: 160.4166667 | M102: 0 | N102: 10 | O102: 0 | P102: 100 | Q102: 0 | R102: 0 | S102: 0 | T102: 586 | U102: 685 | V102: 809 | W102: 1084 | X102: 1421 | Y102: 1634.15 | Z102: 320.8485607 | AA102: 371.3467987 | AB102: 441.5516661 | AC102: 594.8938765 | AD102: 777.7960311 | AE102: 894.4654358
A103: AL047 | B103: AL047000016 | C103: SCATTERED SITES | D103: 88 | K103: 396.71875 | L103: 120.4166667 | M103: 0 | N103: 0 | O103: 62 | P103: 26 | Q103: 0 | R103: 0 | S103: 0 | T103: 586 | U103: 685 | V103: 809 | W103: 1084 | X103: 1421 | Y103: 1634.15 | Z103: 346.0344196 | AA103: 400.4966507 | AB103: 476.2124354 | AC103: 641.5916494 | AD103: 838.8511938 | AE103: 964.6788728
A104: AL047 | B104: AL047000019 | C104: STONE MANOR | D104: 50 | K104: 419.0255102 | L104: 100 | M104: 0 | N104: 2 | O104: 42 | P104: 6 | Q104: 0 | R104: 0 | S104: 0 | T104: 586 | U104: 685 | V104: 809 | W104: 1084 | X104: 1421 | Y104: 1634.15 | Z104: 378.7118864 | AA104: 438.317212 | AB104: 521.1831526 | AC104: 702.1798123 | AD104: 918.0673944 | AE104: 1055.777504
A105: AL047 | B105: AL047000051 | C105: BROOKSIDE | D105: 72 | K105: 458.3842593 | L105: 83.08333333 | M105: 0 | N105: 26 | O105: 39 | P105: 7 | Q105: 0 | R105: 0 | S105: 0 | T105: 586 | U105: 685 | V105: 809 | W105: 1084 | X105: 1421 | Y105: 1634.15 | Z105: 480.6043663 | AA105: 556.2465122 | AB105: 661.4075444 | AC105: 891.1013778 | AD105: 1165.073541 | AE105: 1339.834572
A106: AL047 | B106: AL047000052 | C106: LINCOLN | D106: 194 | K106: 485.693299 | L106: 96.5 | M106: 0 | N106: 42 | O106: 72 | P106: 60 | Q106: 16 | R106: 4 | S106: 0 | T106: 586 | U106: 685 | V106: 809 | W106: 1084 | X106: 1421 | Y106: 1634.15 | Z106: 428.0648845 | AA106: 495.4378606 | AB106: 589.1027298 | AC106: 793.6865229 | AD106: 1037.708156 | AE106: 1193.364379
A107: AL047 | B107: AL047000060 | C107: GATEWAY PLACE | D107: 48 | K107: 563.0868056 | L107: 0 | M107: 0 | N107: 47 | O107: 1 | P107: 0 | Q107: 0 | R107: 0 | S107: 0 | T107: 586 | U107: 685 | V107: 809 | W107: 1084 | X107: 1421 | Y107: 1634.15 | Z107: 562.3109038 | AA107: 650.8128119 | AB107: 773.85205 | AC107: 1042.595649 | AD107: 1363.145243 | AE107: 1567.617029
A108: AL047 | B108: AL047000061 | C108: Legacy Hill | D108: 40 | K108: 428.0541667 | L108: 73.66666667 | M108: 0 | N108: 8 | O108: 24 | P108: 8 | Q108: 0 | R108: 0 | S108: 0 | T108: 586 | U108: 685 | V108: 809 | W108: 1084 | X108: 1421 | Y108: 1634.15 | Z108: 394.7730087 | AA108: 456.9061886 | AB108: 543.2864631 | AC108: 731.9591678 | AD108: 957.0025144 | AE108: 1100.552892
A109: AL047 | B109: AL047000062 | C109: Chestnut Glen | D109: 40 | K109: 384.1354167 | L109: 73.25 | M109: 0 | N109: 8 | O109: 24 | P109: 8 | Q109: 0 | R109: 0 | S109: 0 | T109: 586 | U109: 685 | V109: 809 | W109: 1084 | X109: 1421 | Y109: 1634.15 | Z109: 365.577091 | AA109: 423.1151361 | AB109: 503.1070523 | AC109: 677.8262379 | AD109: 886.2262303 | AE109: 1019.160165
A110: AL048 | B110: AL048000001 | C110: EAST ACRES | D110: 254 | K110: 475.9280891 | L110: 37.08333333 | M110: 0 | N110: 53 | O110: 117 | P110: 58 | Q110: 22 | R110: 4 | S110: 0 | T110: 448 | U110: 528 | V110: 681 | W110: 879 | X110: 935 | Y110: 1075.25 | Z110: 400.2549868 | AA110: 472.5357971 | AB110: 604.4482758 | AC110: 788.764342 | AD110: 836.6503788 | AE110: 962.1479356
A111: AL048 | B111: AL048000003 | C111: STERRS HOMES | D111: 202 | K111: 462.9313198 | L111: 27.08333333 | M111: 0 | N111: 78 | O111: 72 | P111: 38 | Q111: 14 | R111: 0 | S111: 0 | T111: 448 | U111: 528 | V111: 681 | W111: 879 | X111: 935 | Y111: 1075.25 | Z111: 416.1180425 | AA111: 491.263513 | AB111: 628.4039965 | AC111: 820.0249461 | AD111: 869.8088203 | AE111: 1000.280143
A112: AL048 | B112: AL048000009 | C112: JORDAN-NEILL | D112: 146 | K112: 448.1204338 | L112: 0 | M112: 0 | N112: 144 | O112: 1 | P112: 1 | Q112: 0 | R112: 0 | S112: 0 | T112: 448 | U112: 528 | V112: 681 | W112: 879 | X112: 935 | Y112: 1075.25 | Z112: 509.9245982 | AA112: 602.0103044 | AB112: 770.0667183 | AC112: 1004.885269 | AD112: 1065.892049 | AE112: 1225.775857
A113: AL049 | B113: AL049000001 | C113: COLLEY HOMES | D113: 236 | K113: 565.2378822 | L113: 33.5 | M113: 0 | N113: 38 | O113: 120 | P113: 64 | Q113: 12 | R113: 2 | S113: 0 | T113: 497 | U113: 500 | V113: 662 | W113: 836 | X113: 969 | Y113: 1114.35 | Z113: 528.3150465 | AA113: 531.5234374 | AB113: 706.9154771 | AC113: 886.5853715 | AD113: 1039.518674 | AE113: 1195.446476
A114: AL049 | B114: AL049000002 | C114: CARVER VILLAGE | D114: 160 | K114: 508.5573514 | L114: 84.33333333 | M114: 0 | N114: 26 | O114: 82 | P114: 42 | Q114: 8 | R114: 2 | S114: 0 | T114: 497 | U114: 500 | V114: 662 | W114: 836 | X114: 969 | Y114: 1114.35 | Z114: 489.7550087 | AA114: 492.7292294 | AB114: 655.3199611 | AC114: 821.8763203 | AD114: 963.6475071 | AE114: 1108.194633
A115: AL049 | B115: AL049000003 | C115: EMMA SANSOM HOMES | D115: 220 | K115: 519.0469697 | L115: 71.83333333 | M115: 0 | N115: 36 | O115: 114 | P115: 58 | Q115: 10 | R115: 2 | S115: 0 | T115: 497 | U115: 500 | V115: 662 | W115: 836 | X115: 969 | Y115: 1114.35 | Z115: 499.2667824 | AA115: 502.298767 | AB115: 668.0472534 | AC115: 837.8383859 | AD115: 982.3629808 | AE115: 1129.717428
A116: AL049 | B116: AL049000004 | C116: GATEWAY VILLAGE | D116: 106 | K116: 530.5987261 | L116: 69.75 | M116: 0 | N116: 12 | O116: 54 | P116: 34 | Q116: 6 | R116: 0 | S116: 0 | T116: 497 | U116: 500 | V116: 662 | W116: 836 | X116: 969 | Y116: 1114.35 | Z116: 498.3616742 | AA116: 501.3881621 | AB116: 666.8361673 | AC116: 836.3194897 | AD116: 980.5820796 | AE116: 1127.669392
A117: AL049 | B117: AL049000005 | C117: CAMPBELL COURT | D117: 150 | K117: 509.9633333 | L117: 36.33333333 | M117: 0 | N117: 22 | O117: 90 | P117: 38 | Q117: 0 | R117: 0 | S117: 0 | T117: 497 | U117: 500 | V117: 662 | W117: 836 | X117: 969 | Y117: 1114.35 | Z117: 508.0224153 | AA117: 511.1075716 | AB117: 679.7627864 | AC117: 852.5315431 | AD117: 999.5906633 | AE117: 1149.529263
A118: AL049 | B118: AL049000006 | C118: STARNES PARK | D118: 102 | K118: 528.8161765 | L118: 36.33333333 | M118: 0 | N118: 16 | O118: 63 | P118: 23 | Q118: 0 | R118: 0 | S118: 0 | T118: 497 | U118: 500 | V118: 662 | W118: 836 | X118: 969 | Y118: 1114.35 | Z118: 524.3232261 | AA118: 527.5073752 | AB118: 701.5741952 | AC118: 879.8865474 | AD118: 1031.664323 | AE118: 1186.413972
A119: AL051 | B119: AL051000001 | C119: FIFTH COURT | D119: 164 | K119: 415.2855691 | L119: 39.5 | M119: 0 | N119: 76 | O119: 54 | P119: 29 | Q119: 4 | R119: 1 | S119: 0 | T119: 492 | U119: 543 | V119: 628 | W119: 787 | X119: 849 | Y119: 976.35 | Z119: 474.2362942 | AA119: 509.5830987 | AB119: 595.004543 | AC119: 746.210318 | AD119: 841.4503191 | AE119: 967.667867
A120: AL052 | B120: AL052000001 | C120: WESTFIELD ADDN | D120: 165 | K120: 436.7717172 | L120: 114.5833333 | M120: 0 | N120: 42 | O120: 60 | P120: 50 | Q120: 13 | R120: 0 | S120: 0 | T120: 497 | U120: 535 | V120: 662 | W120: 892 | X120: 895 | Y120: 1029.25 | Z120: 448.5186829 | AA120: 475.1257234 | AB120: 588.2056456 | AC120: 776.3554321 | AD120: 801.0619697 | AE120: 921.2212651
A121: AL052 | B121: AL052000004 | C121: HILLTOP | D121: 155 | K121: 417.5435484 | L121: 106.3333333 | M121: 1 | N121: 63 | O121: 49 | P121: 36 | Q121: 6 | R121: 0 | S121: 0 | T121: 497 | U121: 535 | V121: 662 | W121: 892 | X121: 895 | Y121: 1029.25 | Z121: 463.2475955 | AA121: 490.728385 | AB121: 607.5217407 | AC121: 801.8501811 | AD121: 827.3680571 | AE121: 951.4732657
A122: AL053 | B122: AL053000020 | C122: HAMILTON | D122: 279 | K122: 389.6173835 | L122: 115.1666667 | M122: 0 | N122: 82 | O122: 115 | P122: 72 | Q122: 10 | R122: 0 | S122: 0 | T122: 472 | U122: 475 | V122: 628 | W122: 844 | X122: 1056 | Y122: 1214.4 | Z122: 414.1984544 | AA122: 416.9414905 | AB122: 554.0932966 | AC122: 735.1336807 | AD122: 871.3711414 | AE122: 1002.076813
A123: AL053 | B123: AL053000030 | C123: DOUBLE SPRINGS | D123: 199 | K123: 386.1069156 | L123: 126.25 | M123: 0 | N123: 62 | O123: 67 | P123: 54 | Q123: 16 | R123: 0 | S123: 0 | T123: 472 | U123: 475 | V123: 628 | W123: 908 | X123: 962 | Y123: 1106.3 | Z123: 388.502589 | AA123: 391.0754538 | AB123: 519.7186952 | AC123: 755.5646377 | AD123: 865.3402037 | AE123: 995.1412343
A124: AL055 | B124: AL055000001 | C124: CORDOVA HA | D124: 60 | K124: 445.4375 | L124: 143.9166667 | M124: 0 | N124: 8 | O124: 24 | P124: 28 | Q124: 0 | R124: 0 | S124: 0 | T124: 499 | U124: 502 | V124: 664 | W124: 832 | X124: 999 | Y124: 1148.85 | Z124: 454.8788078 | AA124: 457.5972071 | AB124: 593.5171696 | AC124: 750.278193 | AD124: 887.1042886 | AE124: 1020.169932
A125: AL056 | B125: AL056000001 | C125: SOUTH HALEYVILLE | D125: 139 | K125: 411.4844125 | L125: 60 | M125: 28 | N125: 43 | O125: 40 | P125: 26 | Q125: 2 | R125: 0 | S125: 0 | T125: 472 | U125: 475 | V125: 628 | W125: 908 | X125: 962 | Y125: 1106.3 | Z125: 436.7416982 | AA125: 439.6340273 | AB125: 584.2504837 | AC125: 849.3806536 | AD125: 972.7866964 | AE125: 1118.704701
A126: AL056 | B126: AL056000002 | C126: SOUTH HALEYVILLE | D126: 136 | K126: 401.5110294 | L126: 61.33333333 | M126: 2 | N126: 47 | O126: 49 | P126: 32 | Q126: 6 | R126: 0 | S126: 0 | T126: 472 | U126: 475 | V126: 628 | W126: 908 | X126: 962 | Y126: 1106.3 | Z126: 409.151382 | AA126: 411.8609938 | AB126: 547.3415839 | AC126: 795.7226656 | AD126: 911.3327691 | AE126: 1048.032685
A127: AL057 | B127: AL057000021 | C127: DREW COURT | D127: 309 | K127: 465.0046423 | L127: 10.91666667 | M127: 3 | N127: 71 | O127: 115 | P127: 97 | Q127: 21 | R127: 2 | S127: 0 | T127: 505 | U127: 508 | V127: 672 | W127: 880 | X127: 923 | Y127: 1061.45 | Z127: 428.6016205 | AA127: 431.3315671 | AB127: 573.2887917 | AC127: 778.0347888 | AD127: 798.9643796 | AE127: 918.8090365
A128: AL057 | B128: AL057000022 | C128: SYLAVON COURT | D128: 220 | K128: 451.1261364 | L128: 0 | M128: 0 | N128: 192 | O128: 27 | P128: 1 | Q128: 0 | R128: 0 | S128: 0 | T128: 505 | U128: 508 | V128: 672 | W128: 880 | X128: 923 | Y128: 1061.45 | Z128: 576.8324596 | AA128: 580.5065517 | AB128: 771.5593408 | AC128: 1047.116248 | AD128: 1075.284288 | AE128: 1236.576931
A129: AL057 | B129: AL057000023 | C129: SYLAVON TOWERS | D129: 97 | K129: 500.8281787 | L129: 0 | M129: 0 | N129: 86 | O129: 11 | P129: 0 | Q129: 0 | R129: 0 | S129: 0 | T129: 505 | U129: 508 | V129: 672 | W129: 880 | X129: 923 | Y129: 1061.45 | Z129: 640.0386342 | AA129: 644.1153134 | AB129: 856.1026318 | AC129: 1161.853572 | AD129: 1193.108112 | AE129: 1372.074329
A130: AL058 | B130: AL058000001 | C130: NORTH WESTWOOD HGHTS | D130: 138 | K130: 461.0785024 | L130: 69.75 | M130: 0 | N130: 46 | O130: 65 | P130: 23 | Q130: 4 | R130: 0 | S130: 0 | T130: 472 | U130: 475 | V130: 628 | W130: 844 | X130: 1056 | Y130: 1214.4 | Z130: 490.9037863 | AA130: 494.1548047 | AB130: 656.7057273 | AC130: 871.2729452 | AD130: 1032.740195 | AE130: 1187.651224
A131: AL058 | B131: AL058000005 | C131: Brook Lane V | D131: 9 | K131: 357.6944444 | L131: 111.5833333 | M131: 0 | N131: 0 | O131: 9 | P131: 0 | Q131: 0 | R131: 0 | S131: 0 | T131: 472 | U131: 475 | V131: 628 | W131: 844 | X131: 1056 | Y131: 1214.4 | Z131: 371.5425262 | AA131: 374.0030727 | AB131: 497.0303992 | AC131: 659.4264703 | AD131: 781.6336146 | AE131: 898.8786568
A132: AL059 | B132: AL059000010 | C132: GARY COURTS | D132: 241 | K132: 417.1649378 | L132: 110.75 | M132: 40 | N132: 81 | O132: 52 | P132: 56 | Q132: 11 | R132: 1 | S132: 0 | T132: 531 | U132: 534 | V132: 675 | W132: 888 | X132: 1130 | Y132: 1299.5 | Z132: 442.3643183 | AA132: 444.8873087 | AB132: 562.6268612 | AC132: 745.9641642 | AD132: 933.5064512 | AE132: 1073.532419
A133: AL060 | B133: AL060000010 | C133: WESTSIDE | D133: 209 | K133: 457.0727567 | L133: 45 | M133: 0 | N133: 125 | O133: 42 | P133: 38 | Q133: 4 | R133: 0 | S133: 0 | T133: 492 | U133: 543 | V133: 628 | W133: 787 | X133: 849 | Y133: 976.35 | Z133: 516.6595997 | AA133: 555.1683897 | AB133: 648.231299 | AC133: 812.9633452 | AD133: 916.7231406 | AE133: 1054.231612
A134: AL062 | B134: AL062000001 | C134: JACKSON HEIGHTS | D134: 244 | K134: 485.390063 | L134: 62.58333333 | M134: 28 | N134: 38 | O134: 58 | P134: 72 | Q134: 36 | R134: 12 | S134: 0 | T134: 467 | U134: 579 | V134: 691 | W134: 868 | X134: 958 | Y134: 1101.7 | Z134: 397.7773256 | AA134: 502.6458932 | AB134: 611.1306184 | AC134: 764.8173124 | AD134: 842.5646987 | AE134: 968.9494035
A135: AL062 | B135: AL062000002 | C135: CRYSTAL SPRINGS | D135: 120 | K135: 471.7151854 | L135: 90.25 | M135: 0 | N135: 10 | O135: 52 | P135: 46 | Q135: 12 | R135: 0 | S135: 0 | T135: 467 | U135: 579 | V135: 691 | W135: 868 | X135: 958 | Y135: 1101.7 | Z135: 382.2909055 | AA135: 483.0766897 | AB135: 587.3378457 | AC135: 735.0411501 | AD135: 809.7616453 | AE135: 931.225892
A136: AL063 | B136: AL063000001 | C136: HARRIS APTS. | D136: 166 | K136: 374.1328431 | L136: 143.0833333 | M136: 4 | N136: 80 | O136: 56 | P136: 22 | Q136: 4 | R136: 0 | S136: 0 | T136: 706 | U136: 763 | V136: 873 | W136: 1154 | X136: 1282 | Y136: 1474.3 | Z136: 417.7489553 | AA136: 463.6288984 | AB136: 532.448813 | AC136: 709.9317507 | AD136: 793.8437518 | AE136: 912.9203146
A137: AL064 | B137: AL064000001 | C137: MEADOWVIEW | D137: 110 | K137: 452.7439394 | L137: 114.1666667 | M137: 12 | N137: 32 | O137: 32 | P137: 28 | Q137: 6 | R137: 0 | S137: 0 | T137: 499 | U137: 502 | V137: 664 | W137: 832 | X137: 999 | Y137: 1148.85 | Z137: 475.5492298 | AA137: 478.3911574 | AB137: 620.4875408 | AC137: 784.3720363 | AD137: 927.415729 | AE137: 1066.528088
A138: AL065 | B138: AL065000001 | C138: HARVEY ENLOE HOMES | D138: 50 | K138: 369.3683333 | L138: 239.0833333 | M138: 0 | N138: 8 | O138: 21 | P138: 16 | Q138: 5 | R138: 0 | S138: 0 | T138: 407 | U138: 519 | V138: 628 | W138: 908 | X138: 925 | Y138: 1063.75 | Z138: 331.4230289 | AA138: 360.0192637 | AB138: 455.3400463 | AC138: 650.3810323 | AD138: 717.1055802 | AE138: 824.6714172
A139: AL066 | B139: AL066000001 | C139: REFORM HA | D139: 60 | K139: 376.1736111 | L139: 91.66666667 | M139: 0 | N139: 16 | O139: 23 | P139: 16 | Q139: 5 | R139: 0 | S139: 0 | T139: 478 | U139: 481 | V139: 628 | W139: 846 | X139: 849 | Y139: 976.35 | Z139: 379.7309488 | AA139: 383.9408262 | AB139: 510.2371507 | AC139: 692.1038578 | AD139: 694.6297843 | AE139: 798.824252
A140: AL067 | B140: AL067000001 | C140: ROBERTS APTS & SANDERFER ROAD APTS | D140: 240 | K140: 443.1963851 | L140: 59.33333333 | M140: 12 | N140: 72 | O140: 75 | P140: 63 | Q140: 16 | R140: 2 | S140: 0 | T140: 586 | U140: 685 | V140: 809 | W140: 1084 | X140: 1421 | Y140: 1634.15 | Z140: 389.7485167 | AA140: 451.0908936 | AB140: 536.371759 | AC140: 722.6431231 | AD140: 944.8222199 | AE140: 1086.545553
A141: AL068 | B141: AL068000001 | C141: MANNING | D141: 126 | K141: 405.6951058 | L141: 177.5833333 | M141: 3 | N141: 43 | O141: 43 | P141: 32 | Q141: 5 | R141: 0 | S141: 0 | T141: 531 | U141: 534 | V141: 675 | W141: 888 | X141: 1130 | Y141: 1299.5 | Z141: 441.578558 | AA141: 444.0970668 | AB141: 561.6274815 | AC141: 744.6391272 | AD141: 931.8482877 | AE141: 1071.625531
A142: AL068 | B142: AL068000002 | C142: ARCHER VILLAGE | D142: 154 | K142: 367.8039216 | L142: 174.6666667 | M142: 0 | N142: 69 | O142: 48 | P142: 32 | Q142: 5 | R142: 0 | S142: 0 | T142: 531 | U142: 534 | V142: 675 | W142: 888 | X142: 1130 | Y142: 1299.5 | Z142: 427.1300893 | AA142: 429.5661925 | AB142: 543.2510072 | AC142: 720.2745043 | AD142: 901.3581733 | AE142: 1036.561899
A143: AL068 | B143: AL068000003 | C143: LONG LOWE | D143: 116 | K143: 418.4590643 | L143: 183.25 | M143: 2 | N143: 28 | O143: 41 | P143: 40 | Q143: 5 | R143: 0 | S143: 0 | T143: 531 | U143: 534 | V143: 675 | W143: 888 | X143: 1130 | Y143: 1299.5 | Z143: 427.7138526 | AA143: 430.1532852 | AB143: 543.9934741 | AC143: 721.2589111 | AD143: 902.5900692 | AE143: 1037.97858
A144: AL068 | B144: AL068000004 | C144: JACKSON HOMES | D144: 10 | K144: 357.5416667 | L144: 189.5 | M144: 0 | N144: 0 | O144: 8 | P144: 2 | Q144: 0 | R144: 0 | S144: 0 | T144: 531 | U144: 534 | V144: 675 | W144: 888 | X144: 1130 | Y144: 1299.5 | Z144: 364.2075547 | AA144: 366.2847841 | AB144: 463.222156 | AC144: 614.1674924 | AD144: 768.5748777 | AE144: 883.8611094
A145: AL071 | B145: AL071000001 | C145: EARNEST COURTS | D145: 183 | K145: 446.9184882 | L145: 53 | M145: 2 | N145: 47 | O145: 76 | P145: 46 | Q145: 10 | R145: 2 | S145: 0 | T145: 472 | U145: 475 | V145: 628 | W145: 844 | X145: 1056 | Y145: 1214.4 | Z145: 428.6656557 | AA145: 431.5045011 | AB145: 573.4467712 | AC145: 760.8105677 | AD145: 901.806556 | AE145: 1037.077539
A146: AL073 | B146: AL073000111 | C146: OZARK HA | D146: 167 | K146: 466.9650699 | L146: 101.1666667 | M146: 2 | N146: 23 | O146: 64 | P146: 64 | Q146: 11 | R146: 3 | S146: 0 | T146: 477 | U146: 501 | V146: 629 | W146: 850 | X146: 1105 | Y146: 1270.75 | Z146: 368.8884822 | AA146: 444.8630331 | AB146: 562.0286057 | AC146: 768.8990696 | AD146: 989.4998741 | AE146: 1137.924855
A147: AL073 | B147: AL073000222 | C147: HERRING/HILLCREST HOMES | D147: 132 | K147: 422.5909091 | L147: 95.08333333 | M147: 0 | N147: 45 | O147: 54 | P147: 26 | Q147: 5 | R147: 2 | S147: 0 | T147: 477 | U147: 501 | V147: 629 | W147: 850 | X147: 1105 | Y147: 1270.75 | Z147: 381.1260011 | AA147: 459.6209343 | AB147: 580.6733615 | AC147: 794.4065532 | AD147: 1022.325576 | AE147: 1175.674413
A148: AL073 | B148: AL073000333 | C148: GLENWAY HOMES | D148: 94 | K148: 445.587766 | L148: 115 | M148: 0 | N148: 18 | O148: 38 | P148: 29 | Q148: 8 | R148: 1 | S148: 0 | T148: 477 | U148: 501 | V148: 629 | W148: 850 | X148: 1105 | Y148: 1270.75 | Z148: 363.1215048 | AA148: 437.908316 | AB148: 553.2421934 | AC148: 756.8785708 | AD148: 974.0306369 | AE148: 1120.135232
A149: AL074 | B149: AL074000010 | C149: BOSTON HEIGHTS | D149: 91 | K149: 379.8690476 | L149: 120.75 | M149: 0 | N149: 35 | O149: 39 | P149: 15 | Q149: 2 | R149: 0 | S149: 0 | T149: 472 | U149: 475 | V149: 628 | W149: 844 | X149: 1056 | Y149: 1214.4 | Z149: 408.0542035 | AA149: 410.7565492 | AB149: 545.8738351 | AC149: 724.2286526 | AD149: 858.4451566 | AE149: 987.2119301
A150: AL075 | B150: AL075000010 | C150: SUMMERVILLE HOMES | D150: 122 | K150: 397.9863388 | L150: 164 | M150: 0 | N150: 8 | O150: 57 | P150: 51 | Q150: 6 | R150: 0 | S150: 0 | T150: 483 | U150: 486 | V150: 643 | W150: 866 | X150: 869 | Y150: 999.35 | Z150: 380.1289524 | AA150: 382.5656764 | AB150: 506.0263618 | AC150: 686.3439418 | AD150: 689.5929072 | AE150: 793.0318432
A151: AL075 | B151: AL075000020 | C151: MT VERNON HOMES | D151: 100 | K151: 395.3870152 | L151: 128 | M151: 0 | N151: 19 | O151: 47 | P151: 32 | Q151: 1 | R151: 1 | S151: 0 | T151: 483 | U151: 486 | V151: 643 | W151: 866 | X151: 869 | Y151: 999.35 | Z151: 398.1687321 | AA151: 400.7210957 | AB151: 530.0408548 | AC151: 718.9157662 | AD151: 722.3189178 | AE151: 830.6667554
A152: AL075 | B152: AL075000030 | C152: MT VERNON HOMES | D152: 139 | K152: 395.9277978 | L152: 119.4166667 | M152: 3 | N152: 54 | O152: 71 | P152: 11 | Q152: 0 | R152: 0 | S152: 0 | T152: 483 | U152: 486 | V152: 643 | W152: 866 | X152: 869 | Y152: 999.35 | Z152: 459.0171596 | AA152: 461.9595773 | AB152: 611.0420735 | AC152: 828.7809826 | AD152: 832.7042062 | AE152: 957.6098371
A153: AL075 | B153: AL075000040 | C153: GERALDINE HOMES | D153: 90 | K153: 368.4069224 | L153: 151.25 | M153: 0 | N153: 26 | O153: 44 | P153: 19 | Q153: 1 | R153: 0 | S153: 0 | T153: 484 | U153: 487 | V153: 646 | W153: 833 | X153: 891 | Y153: 1024.65 | Z153: 409.4645836 | AA153: 412.5145992 | AB153: 546.7152821 | AC153: 687.015996 | AD153: 754.1163375 | AE153: 867.2337881
A154: AL076 | B154: AL076000001 | C154: RAY ROAD | D154: 62 | K154: 396.8234501 | L154: 90.16666667 | M154: 2 | N154: 10 | O154: 28 | P154: 20 | Q154: 2 | R154: 0 | S154: 0 | T154: 472 | U154: 475 | V154: 628 | W154: 844 | X154: 1056 | Y154: 1214.4 | Z154: 428.4636286 | AA154: 431.3011361 | AB154: 573.1765098 | AC154: 760.4520031 | AD154: 901.381541 | AE154: 1036.588772
A155: AL077 | B155: AL077000006 | C155: HAY COURT/HAY COURT ANNEX | D155: 217 | K155: 591.5441628 | L155: 149.6666667 | M155: 1 | N155: 42 | O155: 70 | P155: 52 | Q155: 40 | R155: 12 | S155: 0 | T155: 658 | U155: 705 | V155: 847 | W155: 1092 | X155: 1145 | Y155: 1316.75 | Z155: 496.7013967 | AA155: 547.2836758 | AB155: 667.5202409 | AC155: 857.4110921 | AD155: 908.8225889 | AE155: 1045.145977
A156: AL077 | B156: AL077000009 | C156: CRESCENT EAST | D156: 180 | K156: 664.3546296 | L156: 95.08333333 | M156: 1 | N156: 12 | O156: 60 | P156: 53 | Q156: 37 | R156: 17 | S156: 0 | T156: 658 | U156: 705 | V156: 847 | W156: 1092 | X156: 1145 | Y156: 1316.75 | Z156: 515.9846143 | AA156: 568.5306268 | AB156: 693.4350827 | AC156: 890.697982 | AD156: 944.1054045 | AE156: 1085.721215
A157: AL077 | B157: AL077000010 | C157: BRANSCOMB | D157: 96 | K157: 761.6267361 | L157: 96.75 | M157: 0 | N157: 0 | O157: 23 | P157: 39 | Q157: 24 | R157: 10 | S157: 0 | T157: 658 | U157: 705 | V157: 847 | W157: 1092 | X157: 1145 | Y157: 1316.75 | Z157: 548.7629923 | AA157: 604.6470366 | AB157: 737.4861583 | AC157: 947.2803574 | AD157: 1004.080534 | AE157: 1154.692614
A158: AL077 | B158: AL077000011 | C158: McKenzie Court I | D158: 101 | K158: 433.9546205 | L158: 129.4166667 | M158: 0 | N158: 19 | O158: 61 | P158: 21 | Q158: 0 | R158: 0 | S158: 0 | T158: 658 | U158: 705 | V158: 847 | W158: 1092 | X158: 1145 | Y158: 1316.75 | Z158: 399.2021105 | AA158: 439.8554139 | AB158: 536.4903154 | AC158: 689.1068151 | AD158: 730.4265661 | AE158: 839.990551
A159: AL077 | B159: AL077000012 | C159: McKenzie Court II, LTD | D159: 133 | K159: 437.8788071 | L159: 134.5 | M159: 0 | N159: 19 | O159: 53 | P159: 59 | Q159: 2 | R159: 0 | S159: 0 | T159: 658 | U159: 705 | V159: 847 | W159: 1092 | X159: 1145 | Y159: 1316.75 | Z159: 377.9001363 | AA159: 416.3841234 | AB159: 507.8624536 | AC159: 652.3351267 | AD159: 691.4499989 | AE159: 795.1674988
A160: AL077 | B160: AL077000014 | C160: Rosedale Court Phase I | D160: 36 | K160: 628.7562189 | L160: 143.4166667 | M160: 0 | N160: 7 | O160: 24 | P160: 5 | Q160: 0 | R160: 0 | S160: 0 | T160: 658 | U160: 705 | V160: 847 | W160: 1092 | X160: 1145 | Y160: 1316.75 | Z160: 505.630111 | AA160: 557.1216581 | AB160: 679.5195982 | AC160: 872.8239311 | AD160: 925.159602 | AE160: 1063.933542
A161: AL077 | B161: AL077000016 | C161: Rosedale Phase II | D161: 35 | K161: 529.981383 | L161: 143.5833333 | M161: 0 | N161: 15 | O161: 17 | P161: 3 | Q161: 0 | R161: 0 | S161: 0 | T161: 658 | U161: 705 | V161: 847 | W161: 1092 | X161: 1145 | Y161: 1316.75 | Z161: 431.9379336 | AA161: 475.9249352 | AB161: 580.4842012 | AC161: 745.6157318 | AD161: 790.3238317 | AE161: 908.8724065
A162: AL077 | B162: AL077000017 | C162: Rosedale Phase III | D162: 48 | K162: 399.4534535 | L162: 70.91666667 | M162: 0 | N162: 24 | O162: 24 | P162: 0 | Q162: 0 | R162: 0 | S162: 0 | T162: 658 | U162: 705 | V162: 847 | W162: 1092 | X162: 1145 | Y162: 1316.75 | Z162: 522.8463793 | AA162: 576.0911691 | AB162: 702.6566533 | AC162: 902.5428317 | AD162: 956.6604869 | AE162: 1100.15956
A163: AL078 | B163: AL078000001 | C163: BERRY HA | D163: 60 | K163: 455.9041667 | L163: 78.41666667 | M163: 0 | N163: 16 | O163: 22 | P163: 18 | Q163: 4 | R163: 0 | S163: 0 | T163: 492 | U163: 549 | V163: 628 | W163: 841 | X163: 887 | Y163: 1020.05 | Z163: 451.1027317 | AA163: 493.1309366 | AB163: 565.9798249 | AC163: 794.8000512 | AD163: 800.4038118 | AE163: 920.4643836
A164: AL079 | B164: AL079000001 | C164: SCOTT VILLAGE | D164: 72 | K164: 589.2731481 | L164: 55.83333333 | M164: 0 | N164: 11 | O164: 27 | P164: 30 | Q164: 4 | R164: 0 | S164: 0 | T164: 706 | U164: 763 | V164: 873 | W164: 1154 | X164: 1282 | Y164: 1474.3 | Z164: 500.1142632 | AA164: 555.0401072 | AB164: 637.4288731 | AC164: 849.9051641 | AD164: 950.3616418 | AE164: 1092.915888
A165: AL080 | B165: AL080000001 | C165: MCWHORTER APTS. | D165: 58 | K165: 392.3836207 | L165: 168.9166667 | M165: 0 | N165: 18 | O165: 24 | P165: 16 | Q165: 0 | R165: 0 | S165: 0 | T165: 448 | U165: 528 | V165: 681 | W165: 879 | X165: 935 | Y165: 1075.25 | Z165: 355.9315536 | AA165: 420.2081321 | AB165: 537.5128879 | AC165: 701.4181631 | AD165: 744.0013964 | AE165: 855.6016059
A166: AL081 | B166: AL081000001 | C166: LYNNELLE DR APTS. | D166: 24 | K166: 431.4270833 | L166: 84.83333333 | M166: 0 | N166: 7 | O166: 11 | P166: 6 | Q166: 0 | R166: 0 | S166: 0 | T166: 472 | U166: 475 | V166: 628 | W166: 844 | X166: 1056 | Y166: 1214.4 | Z166: 463.7372854 | AA166: 466.8083932 | AB166: 620.3637857 | AC166: 823.0569039 | AD166: 975.5885938 | AE166: 1121.926883
A167: AL082 | B167: AL082000050 | C167: EASTWOOD HOMES | D167: 30 | K167: 385.7083333 | L167: 162.25 | M167: 0 | N167: 13 | O167: 13 | P167: 4 | Q167: 0 | R167: 0 | S167: 0 | T167: 484 | U167: 487 | V167: 646 | W167: 833 | X167: 891 | Y167: 1024.65 | Z167: 427.13337 | AA167: 430.3149966 | AB167: 570.3065667 | AC167: 716.66139 | AD167: 786.657175 | AE167: 904.6557513
A168: AL083 | B168: AL083000001 | C168: COLLINSVILLE HOMES | D168: 60 | K168: 381.6138889 | L168: 124.25 | M168: 0 | N168: 14 | O168: 26 | P168: 16 | Q168: 4 | R168: 0 | S168: 0 | T168: 484 | U168: 487 | V168: 646 | W168: 833 | X168: 891 | Y168: 1024.65 | Z168: 401.2989189 | AA168: 404.2881101 | AB168: 535.812523 | AC168: 673.3153184 | AD168: 739.0775248 | AE168: 849.9391535
A169: AL084 | B169: AL084000010 | C169: VERNON COURTS | D169: 145 | K169: 437.5402098 | L169: 48.75 | M169: 10 | N169: 41 | O169: 65 | P169: 24 | Q169: 5 | R169: 0 | S169: 0 | T169: 492 | U169: 546 | V169: 628 | W169: 908 | X169: 940 | Y169: 1081 | Z169: 464.3828848 | AA169: 502.8410947 | AB169: 582.6418802 | AC169: 821.0827817 | AD169: 823.9671475 | AE169: 947.5622196
A170: AL085 | B170: AL085000001 | C170: SUNNYCREST/DOGWOOD LANE | D170: 126 | K170: 530.885582 | L170: 53.66666667 | M170: 0 | N170: 37 | O170: 50 | P170: 35 | Q170: 4 | R170: 0 | S170: 0 | T170: 706 | U170: 763 | V170: 873 | W170: 1154 | X170: 1282 | Y170: 1474.3 | Z170: 505.2870269 | AA170: 560.7809778 | AB170: 644.0219042 | AC170: 858.6958722 | AD170: 960.1913877 | AE170: 1104.220096
A171: AL086 | B171: AL086000001 | C171: FULTON/BROOK/HICKORY/RED HOLLOW | D171: 206 | K171: 586.4261895 | L171: 123.9166667 | M171: 0 | N171: 20 | O171: 104 | P171: 66 | Q171: 16 | R171: 0 | S171: 0 | T171: 706 | U171: 763 | V171: 873 | W171: 1154 | X171: 1282 | Y171: 1474.3 | Z171: 527.7818732 | AA171: 585.7463564 | AB171: 672.6930812 | AC171: 896.9241082 | AD171: 1002.938097 | AE171: 1153.378812
A172: AL086 | B172: AL086000002 | C172: WARRIOR/CHELSEA/BRADFORD/TRAFFORD | D172: 182 | K172: 496.6062271 | L172: 107.3333333 | M172: 6 | N172: 34 | O172: 76 | P172: 58 | Q172: 8 | R172: 0 | S172: 0 | T172: 706 | U172: 763 | V172: 873 | W172: 1154 | X172: 1282 | Y172: 1474.3 | Z172: 484.2373852 | AA172: 537.4195257 | AB172: 617.1927366 | AC172: 822.9236488 | AD172: 920.1909848 | AE172: 1058.219633
A173: AL086 | B173: AL086000003 | C173: OAK RIDGE/TERRACE MNR I/TERRACE MNR II | D173: 172 | K173: 437.2562984 | L173: 301.5833333 | M173: 0 | N173: 16 | O173: 76 | P173: 80 | Q173: 0 | R173: 0 | S173: 0 | T173: 706 | U173: 763 | V173: 873 | W173: 1154 | X173: 1282 | Y173: 1474.3 | Z173: 412.696011 | AA173: 458.0210065 | AB173: 526.0084996 | AC173: 701.3446662 | AD173: 784.2416973 | AE173: 901.8779519
A174: AL087 | B174: AL087000001 | C174: PUCKETT HOMES, PATTILLO CIR.,ROBERTS CT. | D174: 186 | K174: 427.8037634 | L174: 76.33333333 | M174: 20 | N174: 54 | O174: 60 | P174: 40 | Q174: 12 | R174: 0 | S174: 0 | T174: 448 | U174: 528 | V174: 681 | W174: 879 | X174: 935 | Y174: 1075.25 | Z174: 389.0301356 | AA174: 459.2838847 | AB174: 587.4969768 | AC174: 766.644037 | AD174: 813.1871458 | AE174: 935.1652177
A175: AL088 | B175: AL088000001 | C175: ELLIS DRIVE | D175: 141 | K175: 385.3959811 | L175: 99 | M175: 0 | N175: 36 | O175: 54 | P175: 44 | Q175: 7 | R175: 0 | S175: 0 | T175: 472 | U175: 475 | V175: 628 | W175: 787 | X175: 966 | Y175: 1110.9 | Z175: 398.5648749 | AA175: 401.1870122 | AB175: 529.6717416 | AC175: 675.6373866 | AD175: 848.6984507 | AE175: 976.0032183
A176: AL089 | B176: AL089000001 | C176: JOHN SPARKMAN CT | D176: 32 | K176: 499.4192708 | L176: 166.4166667 | M176: 0 | N176: 2 | O176: 12 | P176: 12 | Q176: 6 | R176: 0 | S176: 0 | T176: 706 | U176: 763 | V176: 873 | W176: 1154 | X176: 1282 | Y176: 1474.3 | Z176: 429.0483185 | AA176: 476.1692321 | AB176: 546.8506024 | AC176: 729.1341366 | AD176: 815.3158075 | AE176: 937.6131786
A177: AL090 | B177: AL090000001 | C177: STALCUP CIRCLE | D177: 62 | K177: 359.3991935 | L177: 184 | M177: 0 | N177: 16 | O177: 32 | P177: 14 | Q177: 0 | R177: 0 | S177: 0 | T177: 492 | U177: 543 | V177: 628 | W177: 787 | X177: 849 | Y177: 976.35 | Z177: 411.6010449 | AA177: 442.2793836 | AB177: 516.4187023 | AC177: 647.653818 | AD177: 730.3148974 | AE177: 839.862132
A178: AL091 | B178: AL091001003 | C178: STONE CREEK | D178: 105 | K178: 409.2595238 | L178: 88.16666667 | M178: 0 | N178: 28 | O178: 50 | P178: 25 | Q178: 2 | R178: 0 | S178: 0 | T178: 483 | U178: 486 | V178: 643 | W178: 866 | X178: 869 | Y178: 999.35 | Z178: 442.0701155 | AA178: 444.9038983 | AB178: 588.4822264 | AC178: 798.1821529 | AD178: 801.96053 | AE178: 922.2546095
A179: AL093 | B179: AL093000001 | C179: CENTRAL ACRES | D179: 51 | K179: 465.5065359 | L179: 130.9166667 | M179: 0 | N179: 4 | O179: 10 | P179: 33 | Q179: 4 | R179: 0 | S179: 0 | T179: 497 | U179: 535 | V179: 662 | W179: 892 | X179: 895 | Y179: 1029.25 | Z179: 389.4899149 | AA179: 412.5952488 | AB179: 510.792918 | AC179: 674.1806365 | AD179: 695.6355894 | AE179: 799.9809279
A180: AL094 | B180: AL094000001 | C180: HOLLIS CIR APTS & WASHINGTON APTS | D180: 100 | K180: 385.5966667 | L180: 196.4166667 | M180: 0 | N180: 25 | O180: 35 | P180: 28 | Q180: 12 | R180: 0 | S180: 0 | T180: 473 | U180: 476 | V180: 628 | W180: 814 | X180: 1103 | Y180: 1268.45 | Z180: 373.31729 | AA180: 375.78959 | AB180: 499.4045866 | AC180: 666.6968822 | AD180: 811.7384783 | AE180: 933.49925
A181: AL095 | B181: AL095000010 | C181: MILLPORT | D181: 44 | K181: 373.3390152 | L181: 161.25 | M181: 0 | N181: 18 | O181: 16 | P181: 10 | Q181: 0 | R181: 0 | S181: 0 | T181: 492 | U181: 546 | V181: 628 | W181: 908 | X181: 940 | Y181: 1081 | Z181: 414.0006917 | AA181: 448.2864633 | AB181: 519.4294393 | AC181: 732.001223 | AD181: 734.5726559 | AE181: 844.7585543
A182: AL096 | B182: AL096000001 | C182: SOUTHSIDE COURTS | D182: 34 | K182: 417.4460784 | L182: 133.25 | M182: 0 | N182: 6 | O182: 16 | P182: 12 | Q182: 0 | R182: 0 | S182: 0 | T182: 472 | U182: 475 | V182: 628 | W182: 824 | X182: 1103 | Y182: 1268.45 | Z182: 416.8532072 | AA182: 419.4970965 | AB182: 557.8606346 | AC182: 699.7493584 | AD182: 917.4295744 | AE182: 1055.044011
A183: AL098 | B183: AL098000001 | C183: FRANCONIA VILLAGE | D183: 173 | K183: 389.8246628 | L183: 111.6666667 | M183: 0 | N183: 66 | O183: 50 | P183: 43 | Q183: 12 | R183: 2 | S183: 0 | T183: 478 | U183: 481 | V183: 628 | W183: 846 | X183: 849 | Y183: 976.35 | Z183: 412.7089221 | AA183: 417.284409 | AB183: 554.5490172 | AC183: 752.2100531 | AD183: 754.9553452 | AE183: 868.198647
A184: AL100 | B184: AL100000001 | C184: COLUMBIA HA | D184: 17 | K184: 479.3529412 | L184: 94.75 | M184: 0 | N184: 3 | O184: 5 | P184: 9 | Q184: 0 | R184: 0 | S184: 0 | T184: 515 | U184: 519 | V184: 682 | W184: 906 | X184: 1047 | Y184: 1204.05 | Z184: 423.8437369 | AA184: 427.0365334 | AB184: 554.7483938 | AC184: 745.5179854 | AD184: 870.0370493 | AE184: 1000.542607
A185: AL101 | B185: AL101000001 | C185: ABBEVILLE HOUSING AUTH | D185: 40 | K185: 418.9458333 | L185: 131.3333333 | M185: 0 | N185: 8 | O185: 18 | P185: 14 | Q185: 0 | R185: 0 | S185: 0 | T185: 493 | U185: 549 | V185: 628 | W185: 802 | X185: 1103 | Y185: 1268.45 | Z185: 464.989108 | AA185: 478.8177803 | AB185: 549.6897261 | AC185: 688.8407417 | AD185: 968.0070649 | AE185: 1113.208125
A186: AL102 | B186: AL102000001 | C186: SNEAD HOMES | D186: 97 | K186: 398.9295533 | L186: 128.1666667 | M186: 2 | N186: 23 | O186: 54 | P186: 18 | Q186: 0 | R186: 0 | S186: 0 | T186: 497 | U186: 500 | V186: 662 | W186: 836 | X186: 969 | Y186: 1114.35 | Z186: 417.2948734 | AA186: 419.8290528 | AB186: 558.364193 | AC186: 700.278239 | AD186: 821.0741234 | AE186: 944.2352419
A187: AL103 | B187: AL103000001 | C187: HOLMAN HOMES | D187: 34 | K187: 396.0735294 | L187: 96.83333333 | M187: 0 | N187: 6 | O187: 16 | P187: 10 | Q187: 2 | R187: 0 | S187: 0 | T187: 515 | U187: 519 | V187: 682 | W187: 906 | X187: 1047 | Y187: 1204.05 | Z187: 398.3624542 | AA187: 401.3633013 | AB187: 521.3971859 | AC187: 700.6978009 | AD187: 817.7308383 | AE187: 940.390464
A188: AL104 | B188: AL104000001 | C188: WILLOW LANE | D188: 53 | K188: 374.3254717 | L188: 35.33333333 | M188: 0 | N188: 35 | O188: 10 | P188: 7 | Q188: 1 | R188: 0 | S188: 0 | T188: 515 | U188: 519 | V188: 682 | W188: 906 | X188: 1047 | Y188: 1204.05 | Z188: 437.292525 | AA188: 440.5866306 | AB188: 572.3508566 | AC188: 769.1736692 | AD188: 897.6437895 | AE188: 1032.290358
A189: AL106 | B189: AL106000001 | C189: CRESTVIEW GARDENS | D189: 78 | K189: 505.6634199 | L189: 95.5 | M189: 0 | N189: 8 | O189: 40 | P189: 24 | Q189: 6 | R189: 0 | S189: 0 | T189: 706 | U189: 763 | V189: 873 | W189: 1154 | X189: 1282 | Y189: 1474.3 | Z189: 467.9726365 | AA189: 519.3684752 | AB189: 596.4622332 | AC189: 795.2829776 | AD189: 889.2832615 | AE189: 1022.675751
A190: AL107 | B190: AL107000001 | C190: MORROW VILLAGE | D190: 125 | K190: 391.0186667 | L190: 158.25 | M190: 0 | N190: 18 | O190: 40 | P190: 55 | Q190: 12 | R190: 0 | S190: 0 | T190: 555 | U190: 558 | V190: 680 | W190: 983 | X190: 1194 | Y190: 1373.1 | Z190: 417.8547107 | AA190: 419.449576 | AB190: 493.6108128 | AC190: 717.6893886 | AD190: 869.2015928 | AE190: 999.5818318
A191: AL108 | B191: AL108000101 | C191: MCDONALD COURTS | D191: 60 | K191: 526.1777778 | L191: 107.0833333 | M191: 0 | N191: 17 | O191: 21 | P191: 17 | Q191: 5 | R191: 0 | S191: 0 | T191: 706 | U191: 763 | V191: 873 | W191: 1154 | X191: 1282 | Y191: 1474.3 | Z191: 488.8907639 | AA191: 542.5839691 | AB191: 623.1237771 | AC191: 830.8317027 | AD191: 929.0337492 | AE191: 1068.388812
A192: AL109 | B192: AL109000001 | C192: ALLEN GASTON LANE HOMES | D192: 180 | K192: 400.3626629 | L192: 180.6666667 | M192: 2 | N192: 32 | O192: 70 | P192: 59 | Q192: 14 | R192: 3 | S192: 0 | T192: 492 | U192: 539 | V192: 628 | W192: 908 | X192: 1103 | Y192: 1268.45 | Z192: 380.1548113 | AA192: 391.9608613 | AB192: 476.9644216 | AC192: 693.4086723 | AD192: 839.8036928 | AE192: 965.7742468
A193: AL110 | B193: AL110000001 | C193: CRAIG HOMES | D193: 211 | K193: 445.3744076 | L193: 90.83333333 | M193: 9 | N193: 62 | O193: 66 | P193: 57 | Q193: 17 | R193: 0 | S193: 0 | T193: 457 | U193: 513 | V193: 676 | W193: 886 | X193: 1031 | Y193: 1185.65 | Z193: 405.2601025 | AA193: 434.1465668 | AB193: 576.8796847 | AC193: 753.5968782 | AD193: 879.3379582 | AE193: 1011.238652
A194: AL111 | B194: AL111000001 | C194: WESTLAWN HGTS/NORTHSIDE | D194: 42 | K194: 383.1924603 | L194: 207.25 | M194: 0 | N194: 6 | O194: 16 | P194: 16 | Q194: 4 | R194: 0 | S194: 0 | T194: 485 | U194: 488 | V194: 628 | W194: 842 | X194: 1093 | Y194: 1256.95 | Z194: 349.6628868 | AA194: 351.978535 | AB194: 467.7609478 | AC194: 618.2780845 | AD194: 823.5988966 | AE194: 947.1387311
A195: AL112 | B195: AL112000001 | C195: WILLIAMS RD APTS | D195: 170 | K195: 403.3759804 | L195: 94.91666667 | M195: 0 | N195: 31 | O195: 88 | P195: 45 | Q195: 6 | R195: 0 | S195: 0 | T195: 485 | U195: 488 | V195: 628 | W195: 842 | X195: 1093 | Y195: 1256.95 | Z195: 399.0091302 | AA195: 401.6515748 | AB195: 533.7738033 | AC195: 705.5327004 | AD195: 939.8294524 | AE195: 1080.80387
A196: AL114 | B196: AL114000001 | C196: BLAKES FERRY | D196: 146 | K196: 459.2379009 | L196: 65.25 | M196: 0 | N196: 31 | O196: 45 | P196: 56 | Q196: 14 | R196: 0 | S196: 0 | T196: 535 | U196: 549 | V196: 628 | W196: 908 | X196: 1103 | Y196: 1268.45 | Z196: 463.7162314 | AA196: 477.2751856 | AB196: 547.7817471 | AC196: 796.3625729 | AD196: 964.4936042 | AE196: 1109.167645
A197: AL114 | B197: AL114000002 | C197: TALLAPOOSA & RANDOLPH | D197: 45 | K197: 398.1816479 | L197: 77.83333333 | M197: 0 | N197: 14 | O197: 18 | P197: 11 | Q197: 2 | R197: 0 | S197: 0 | T197: 407 | U197: 519 | V197: 628 | W197: 908 | X197: 925 | Y197: 1063.75 | Z197: 412.1147683 | AA197: 447.6733434 | AB197: 566.2019273 | AC197: 808.7296449 | AD197: 891.6996535 | AE197: 1025.454602
A198: AL115 | B198: AL115000001 | C198: NELL COURT | D198: 150 | K198: 380.8872222 | L198: 121.9166667 | M198: 0 | N198: 50 | O198: 50 | P198: 38 | Q198: 10 | R198: 2 | S198: 0 | T198: 555 | U198: 558 | V198: 680 | W198: 983 | X198: 1194 | Y198: 1373.1 | Z198: 411.2990119 | AA198: 412.8688555 | AB198: 485.8665809 | AC198: 706.4296006 | AD198: 855.5647386 | AE198: 983.8994493
A199: AL116 | B199: AL116000001 | C199: MCDONALD CT | D199: 90 | K199: 373.3075489 | L199: 190.0833333 | M199: 14 | N199: 15 | O199: 22 | P199: 32 | Q199: 6 | R199: 1 | S199: 0 | T199: 557 | U199: 561 | V199: 742 | W199: 930 | X199: 1003 | Y199: 1153.45 | Z199: 375.7674179 | AA199: 377.8627753 | AB199: 502.8857638 | AC199: 630.7025621 | AD199: 685.1818532 | AE199: 787.9591311
A200: AL117 | B200: AL117000001 | C200: CHATOM APTS | D200: 30 | K200: 370.8472222 | L200: 213.25 | M200: 0 | N200: 5 | O200: 11 | P200: 10 | Q200: 4 | R200: 0 | S200: 0 | T200: 496 | U200: 504 | V200: 633 | W200: 793 | X200: 894 | Y200: 1028.1 | Z200: 394.528038 | AA200: 394.528038 | AB200: 495.3430497 | AC200: 623.147907 | AD200: 700.1483491 | AE200: 805.1706014
... 2050 more rows
